Trans No.,Service Area Categorisation,Service Division Categorisation,Responsible Unit,Unit Code,Expenses Type,Expenses Sub Type,Expense Code,Narrative,Amount,Invoice Date,Cap/Rev,Supplier Name
1,Central Services,SupS Customer Services and Dev,Data protection,A01016,Supplies & Services           ,Services                      ,DF95,Services from Provider                  ,754.36,04/08/2016,R,MAKING EXPERIENCES COUNT      
2,Central Services,SupS Chief Execs,Local Involvement Network,A01039,Third Party Payments          ,Private Contractors           ,EH10,Contract Payments                       ,"10,423.75",11/07/2016,R,MERTON VOLUNTARY SERV COUNCIL 
3,Central Services,SupS Chief Execs,Local Involvement Network,A01039,Third Party Payments          ,Private Contractors           ,EH10,Contract Payments                       ,"2,764.94",08/07/2016,R,VOICEABILITY                  
4,Cultural Env Reg&Plan Services,Comm Safety (Crime Reduction),Crime and Strategy Team,A01100,Third Party Payments          ,Private Contractors           ,EH02,Miscellaneous Hired Services            ,"1,680.00",09/08/2016,R,MORDEN BAPTIST CHURCH         
5,Cultural Env Reg&Plan Services,Comm Safety (Crime Reduction),Crime and Strategy Team,A01100,Third Party Payments          ,Private Contractors           ,EH02,Miscellaneous Hired Services            ,"1,610.00",09/08/2016,R,MORDEN BAPTIST CHURCH         
6,Central Services,Comm Safety (Crime Reduction),PRG Reserve,A01106,Supplies & Services           ,Comms and Computing           ,DG07,Computer Software                       ,"4,750.00",12/08/2016,R,VANTAGE TECHNOLOGIES LIMITED  
7,Cultural Env Reg&Plan Services,Comm Safety (Crime Reduction),CCTV,A01200,Supplies & Services           ,Equip Furniture/Materials     ,DA01,Equipment - R & M                       ,"3,554.12",27/07/2016,R,TYCO FIRE & INTEGR'TD SOL (UK 
8,Cultural Env Reg&Plan Services,Comm Safety (Crime Reduction),CCTV,A01200,Supplies & Services           ,Equip Furniture/Materials     ,DA01,Equipment - R & M                       ,"3,554.12",05/08/2016,R,TYCO FIRE & INTEGR'TD SOL (UK 
9,Cultural Env Reg&Plan Services,Comm Safety (Crime Reduction),CCTV,A01200,Supplies & Services           ,Services                      ,DF57,Consulting Engineers Fees               ,"1,579.85",02/08/2016,R,GLOBAL MSC SECURITY LTD       
10,Central Services,SupS Chief Execs,NON-STATUTORY MARKETING & COMM,A02019,Supplies & Services           ,Services                      ,DF02,Misc Advertising/Publicity              ,537.50,22/07/2016,R,JCDECAUX UNITED KINGDOM       
11,Central Services,SupS Chief Execs,NON-STATUTORY MARKETING & COMM,A02019,Supplies & Services           ,Services                      ,DF02,Misc Advertising/Publicity              ,537.50,22/07/2016,R,JCDECAUX UNITED KINGDOM       
12,Central Services,SupS Chief Execs,NON-STATUTORY MARKETING & COMM,A02019,Supplies & Services           ,Services                      ,DF02,Misc Advertising/Publicity              ,537.00,25/05/2016,R,JCDECAUX UNITED KINGDOM       
13,Central Services,SupS Chief Execs,NON-STATUTORY MARKETING & COMM,A02019,Supplies & Services           ,Services                      ,DF35,Graphic Design                          ,"6,450.00",24/07/2016,R,THE BIG IDEA (MARK BUCKINGHAM)
14,Central Services,SupS Chief Execs,NON-STATUTORY MARKETING & COMM,A02019,Supplies & Services           ,Services                      ,DF35,Graphic Design                          ,655.00,07/07/2016,R,TA2                           
15,Central Services,SupS Chief Execs,Press and Public Relations.,A02026,Supplies & Services           ,Prntng Stnry Gen Off Exp      ,DE20,Council Magazine                        ,800.00,20/07/2016,R,ELIZABETH THOMPSON            
16,Central Services,SupS Chief Execs,Press and Public Relations.,A02026,Supplies & Services           ,Services                      ,DF35,Graphic Design                          ,"3,950.00",21/06/2016,R,DOMINO 4 LIMITED              
17,Central Services,SupS Chief Execs,Sales and Marketing                     ,A02034,Supplies & Services           ,Services                      ,DF02,Misc Advertising/Publicity              ,500.00,01/07/2016,R,TIME & LEISURE                
18,CS -Oth Operating Inc & Expend,T/A Corporate Services,Prting Jobs - Internal,A03040,Supplies & Services           ,Prntng Stnry Gen Off Exp      ,DE05,Micro-filming                           ,"5,659.68",11/08/2016,R,MISL LTD                      
19,CS -Oth Operating Inc & Expend,T/A Corporate Services,Prting Jobs - Internal,A03040,Supplies & Services           ,Prntng Stnry Gen Off Exp      ,DE05,Micro-filming                           ,"2,338.92",29/07/2016,R,MISL LTD                      
20,CS -Oth Operating Inc & Expend,T/A Corporate Services,Prting Jobs - Internal,A03040,Supplies & Services           ,Prntng Stnry Gen Off Exp      ,DE05,Micro-filming                           ,"1,880.00",15/08/2016,R,MISL LTD                      
21,CS -Oth Operating Inc & Expend,T/A Corporate Services,Prting Jobs - Internal,A03040,Supplies & Services           ,Prntng Stnry Gen Off Exp      ,DE05,Micro-filming                           ,"1,586.76",18/07/2016,R,MISL LTD                      
22,CS -Oth Operating Inc & Expend,T/A Corporate Services,Prting Jobs - Internal,A03040,Supplies & Services           ,Prntng Stnry Gen Off Exp      ,DE05,Micro-filming                           ,"1,497.26",18/07/2016,R,MISL LTD                      
23,CS -Oth Operating Inc & Expend,T/A Corporate Services,Prting Jobs - Internal,A03040,Supplies & Services           ,Prntng Stnry Gen Off Exp      ,DE05,Micro-filming                           ,"1,013.28",18/07/2016,R,MISL LTD                      
24,CS -Oth Operating Inc & Expend,T/A Corporate Services,Prting Jobs - Internal,A03040,Supplies & Services           ,Prntng Stnry Gen Off Exp      ,DE05,Micro-filming                           ,654.25,22/07/2016,R,MISL LTD                      
25,CS -Oth Operating Inc & Expend,T/A Corporate Services,Prting Jobs - Internal,A03040,Supplies & Services           ,Prntng Stnry Gen Off Exp      ,DE05,Micro-filming                           ,502.44,29/07/2016,R,MISL LTD                      
26,CS -Oth Operating Inc & Expend,T/A Corporate Services,Prtng Jobs - Ext Agncy,A03041,Supplies & Services           ,Prntng Stnry Gen Off Exp      ,DE01,External Printing                       ,568.00,30/08/2016,R,LIMETREE OFFSET LTD           
27,CS -Oth Operating Inc & Expend,T/A Corporate Services,PrintUnit-HighVolPhtcopying,A03042,Supplies & Services           ,Equip Furniture/Materials     ,DA01,Equipment - R & M                       ,"1,024.00",09/08/2016,R,DATA DESIGN SERVICES LTD      
28,CS -Oth Operating Inc & Expend,T/A Corporate Services,PrintUnit-HighVolPhtcopying,A03042,Supplies & Services           ,Equip Furniture/Materials     ,DA01,Equipment - R & M                       ,564.00,08/08/2016,R,HEIDELBERG GRAPHIC EQUIPM LTD 
29,Central Services,SupS Best Value,Merton Link,A04070,Supplies & Services           ,Comms and Computing           ,DG50,Other IT Expenditure                    ,"5,478.00",15/08/2016,R,Q-MATIC UK LTD                
30,Central Services,Grants - Voluntary Groups,VOLUNTARY SECTOR COORDINATION,A04082,Supplies & Services           ,Grants and Subscriptions      ,DJ04,Subscriptions                           ,"53,629.00",06/07/2016,R,LONDON COUNCILS               
31,Central Services,SupS Comm and Member Services,COMMERICIAL SERVICES,A04085,Employees                     ,Direct Employee Expenses      ,AA17,Agency Staff & Casual Paymts            ,"2,636.25",20/07/2016,R,HAYS SPECIALIST RECRUITM'T LTD
32,Central Services,SupS Comm and Member Services,COMMERICIAL SERVICES,A04085,Employees                     ,Direct Employee Expenses      ,AA17,Agency Staff & Casual Paymts            ,"2,636.25",27/07/2016,R,HAYS SPECIALIST RECRUITM'T LTD
33,Central Services,SupS Comm and Member Services,COMMERICIAL SERVICES,A04085,Employees                     ,Direct Employee Expenses      ,AA17,Agency Staff & Casual Paymts            ,"2,636.25",03/08/2016,R,HAYS SPECIALIST RECRUITM'T LTD
34,Central Services,SupS Comm and Member Services,COMMERICIAL SERVICES,A04085,Employees                     ,Direct Employee Expenses      ,AA17,Agency Staff & Casual Paymts            ,"2,636.25",10/08/2016,R,HAYS SPECIALIST RECRUITM'T LTD
35,Central Services,SupS Comm and Member Services,COMMERICIAL SERVICES,A04085,Employees                     ,Direct Employee Expenses      ,AA17,Agency Staff & Casual Paymts            ,"2,636.25",18/08/2016,R,HAYS SPECIALIST RECRUITM'T LTD
36,Central Services,SupS Comm and Member Services,COMMERICIAL SERVICES,A04085,Employees                     ,Direct Employee Expenses      ,AA17,Agency Staff & Casual Paymts            ,"2,475.00",20/07/2016,R,HAYS SPECIALIST RECRUITM'T LTD
37,Central Services,SupS Comm and Member Services,COMMERICIAL SERVICES,A04085,Employees                     ,Direct Employee Expenses      ,AA17,Agency Staff & Casual Paymts            ,"2,475.00",04/08/2016,R,HAYS SPECIALIST RECRUITM'T LTD
38,Central Services,SupS Comm and Member Services,COMMERICIAL SERVICES,A04085,Employees                     ,Direct Employee Expenses      ,AA17,Agency Staff & Casual Paymts            ,"2,475.00",20/07/2016,R,HAYS SPECIALIST RECRUITM'T LTD
39,Central Services,SupS Comm and Member Services,COMMERICIAL SERVICES,A04085,Employees                     ,Direct Employee Expenses      ,AA17,Agency Staff & Casual Paymts            ,"2,227.50",04/08/2016,R,HAYS SPECIALIST RECRUITM'T LTD
40,Central Services,SupS Comm and Member Services,COMMERICIAL SERVICES,A04085,Employees                     ,Direct Employee Expenses      ,AA17,Agency Staff & Casual Paymts            ,"1,980.00",04/08/2016,R,HAYS SPECIALIST RECRUITM'T LTD
41,Central Services,SupS Comm and Member Services,COMMERICIAL SERVICES,A04085,Employees                     ,Direct Employee Expenses      ,AA17,Agency Staff & Casual Paymts            ,"1,485.00",14/07/2016,R,HAYS SPECIALIST RECRUITM'T LTD
42,Central Services,SupS Comm and Member Services,COMMERICIAL SERVICES,A04085,Employees                     ,Direct Employee Expenses      ,AA17,Agency Staff & Casual Paymts            ,"1,485.00",20/07/2016,R,HAYS SPECIALIST RECRUITM'T LTD
43,Central Services,SupS Comm and Member Services,COMMERICIAL SERVICES,A04085,Employees                     ,Direct Employee Expenses      ,AA17,Agency Staff & Casual Paymts            ,"1,485.00",20/07/2016,R,HAYS SPECIALIST RECRUITM'T LTD
44,Central Services,SupS Comm and Member Services,COMMERICIAL SERVICES,A04085,Employees                     ,Direct Employee Expenses      ,AA17,Agency Staff & Casual Paymts            ,"1,485.00",04/08/2016,R,HAYS SPECIALIST RECRUITM'T LTD
45,Highways & Transport Services,On-street parking,Blue Badge Service,A04088,Supplies & Services           ,Comms and Computing           ,DG15,Network Maintenance                     ,"1,013.79",01/08/2016,R,NORTHGATE PUBLIC SERVICES (UK)
46,Central Services,SupS Health & Safety,Learning and Development,B06146,Employees                     ,Indirect Employee Expenses    ,AB57,EXTERNAL TRAINING COSTS                 ,"1,785.00",11/08/2016,R,BRITISH SAFETY COUNCIL        
47,Central Services,SupS Health & Safety,Learning and Development,B06146,Employees                     ,Indirect Employee Expenses    ,AB57,EXTERNAL TRAINING COSTS                 ,"1,650.00",29/07/2016,R,SALVEO SAFETY                 
48,Central Services,SupS Health & Safety,Learning and Development,B06146,Employees                     ,Indirect Employee Expenses    ,AB57,EXTERNAL TRAINING COSTS                 ,"1,375.00",26/07/2016,R,PEARLCATCHERS LIMITED         
49,Central Services,SupS Health & Safety,Learning and Development,B06146,Employees                     ,Indirect Employee Expenses    ,AB57,EXTERNAL TRAINING COSTS                 ,830.00,05/08/2016,R,MAYBO LTD                     
50,Central Services,SupS Health & Safety,Learning and Development,B06146,Employees                     ,Indirect Employee Expenses    ,AB57,EXTERNAL TRAINING COSTS                 ,707.00,25/08/2016,R,ARBORICULTURAL ASSOCIATION    
51,Central Services,SupS Health & Safety,Learning and Development,B06146,Employees                     ,Indirect Employee Expenses    ,AB57,EXTERNAL TRAINING COSTS                 ,675.00,28/07/2016,R,PEARLCATCHERS LIMITED         
52,Central Services,SupS Health & Safety,Learning and Development,B06146,Employees                     ,Indirect Employee Expenses    ,AB57,EXTERNAL TRAINING COSTS                 ,675.00,26/07/2016,R,PEARLCATCHERS LIMITED         
53,Central Services,SupS Health & Safety,Learning and Development,B06146,Employees                     ,Indirect Employee Expenses    ,AB57,EXTERNAL TRAINING COSTS                 ,675.00,26/07/2016,R,PEARLCATCHERS LIMITED         
54,Central Services,SupS Health & Safety,Learning and Development,B06146,Employees                     ,Indirect Employee Expenses    ,AB57,EXTERNAL TRAINING COSTS                 ,675.00,26/07/2016,R,PEARLCATCHERS LIMITED         
55,Central Services,SupS Health & Safety,Learning and Development,B06146,Employees                     ,Indirect Employee Expenses    ,AB57,EXTERNAL TRAINING COSTS                 ,675.00,26/07/2016,R,PEARLCATCHERS LIMITED         
56,Central Services,SupS Health & Safety,Learning and Development,B06146,Employees                     ,Indirect Employee Expenses    ,AB57,EXTERNAL TRAINING COSTS                 ,675.00,26/07/2016,R,PEARLCATCHERS LIMITED         
57,Central Services,SupS Health & Safety,Learning and Development,B06146,Employees                     ,Indirect Employee Expenses    ,AB57,EXTERNAL TRAINING COSTS                 ,675.00,28/07/2016,R,PEARLCATCHERS LIMITED         
58,Central Services,SupS Health & Safety,Learning and Development,B06146,Employees                     ,Indirect Employee Expenses    ,AB57,EXTERNAL TRAINING COSTS                 ,675.00,26/07/2016,R,PEARLCATCHERS LIMITED         
59,Central Services,SupS Health & Safety,Learning and Development,B06146,Employees                     ,Indirect Employee Expenses    ,AB57,EXTERNAL TRAINING COSTS                 ,675.00,26/07/2016,R,PEARLCATCHERS LIMITED         
60,Central Services,SupS Health & Safety,Learning and Development,B06146,Employees                     ,Indirect Employee Expenses    ,AB57,EXTERNAL TRAINING COSTS                 ,550.00,01/08/2016,R,MSH TRAINING & CONSULTANCY LTD
61,Central Services,SupS Health & Safety,Learning and Development,B06146,Employees                     ,Indirect Employee Expenses    ,AB57,EXTERNAL TRAINING COSTS                 ,550.00,01/08/2016,R,MSH TRAINING & CONSULTANCY LTD
62,,,Library Self Service                    ,CC011AB,New Construction Conversion and Renovation,0,B5,Suppliers - Site works                  ,884.05,12/07/2016,C,TERRALEC LTD                  
63,,,Library Self Service                    ,CC011AB,Vehicles Plant Equipment and Machinery,0,D3,Equipment                               ,"10,735.00",21/07/2016,C,THEDESIGNCONCEPT LTD          
64,,,Library Self Service                    ,CC011AB,Vehicles Plant Equipment and Machinery,0,D3,Equipment                               ,"5,988.00",21/07/2016,C,THEDESIGNCONCEPT LTD          
65,,,Library Self Service                    ,CC011AB,Vehicles Plant Equipment and Machinery,0,D3,Equipment                               ,"1,400.00",21/07/2016,C,THEDESIGNCONCEPT LTD          
66,,,Laptops for Other Staff,CC018EB,Vehicles Plant Equipment and Machinery,0,D3,Equipment                               ,"25,421.76",26/07/2016,C,XMA LIMITED                   
67,,,Parks Bin Finance Lease                 ,CE003EA,Vehicles Plant Equipment and Machinery,0,D3,Equipment                               ,"6,552.00",21/05/2016,C,MACQUARIE EQUIPMENT FINANCE   
68,,,Disabled Facilities Grant DCLG          ,CE004RA,Other Capital Expenditure,0,E1,Grants                                  ,"5,626.00",16/08/2016,C,W C EVANS & SONS LTD          
69,,,Disabled Facilities Grant DCLG          ,CE004RA,Other Capital Expenditure,0,E1,Grants                                  ,"1,859.16",24/08/2016,C,CBS ADAPTATION                
70,,,Disabled Facilities Grant DCLG          ,CE004RA,Other Capital Expenditure,0,E1,Grants                                  ,500.00,04/08/2016,C,JUDY CANT                     
71,,,Mitcham Major schemes                   ,CE006FD,New Construction Conversion and Renovation,0,B5,Suppliers - Site works                  ,720.00,29/07/2016,C,FLUX METAL                    
72,,,Mitcham Major schemes                   ,CE006FD,New Construction Conversion and Renovation,0,B6,Other Costs - Site works                ,"119,057.67",02/08/2016,C,TRANSPORT FOR LONDON          
73,,,Mitcham Major schemes                   ,CE006FD,New Construction Conversion and Renovation,0,B6,Other Costs - Site works                ,"96,463.15",02/08/2016,C,TRANSPORT FOR LONDON          
74,,,Mitcham Major schemes                   ,CE006FD,New Construction Conversion and Renovation,0,B6,Other Costs - Site works                ,"90,778.49",02/08/2016,C,TRANSPORT FOR LONDON          
75,,,Mitcham Major schemes                   ,CE006FD,New Construction Conversion and Renovation,0,B6,Other Costs - Site works                ,"59,244.92",02/08/2016,C,TRANSPORT FOR LONDON          
76,,,Mitcham Major schemes                   ,CE006FD,New Construction Conversion and Renovation,0,B6,Other Costs - Site works                ,"28,679.87",02/08/2016,C,TRANSPORT FOR LONDON          
77,,,Mitcham Major schemes                   ,CE006FD,New Construction Conversion and Renovation,0,B6,Other Costs - Site works                ,"1,680.45",09/08/2016,C,CHARLES ENDIRECT              
78,,,Mitcham Major schemes                   ,CE006FD,New Construction Conversion and Renovation,0,C3,Public Notices - Structure              ,576.00,15/07/2016,C,NEWSQUEST MEDIA GROUP LTD     
79,,,Parks Investment                        ,CE013SA,New Construction Conversion and Renovation,0,B4,Contractor - Site works                 ,"4,730.00",01/08/2016,C,TAYLOR BUILDING COMPANY LTD   
80,,,Parks Investment                        ,CE013SA,New Construction Conversion and Renovation,0,B4,Contractor - Site works                 ,"4,500.00",01/08/2016,C,TAYLOR BUILDING COMPANY LTD   
81,,,Parks Investment                        ,CE013SA,New Construction Conversion and Renovation,0,B4,Contractor - Site works                 ,"1,625.00",01/08/2016,C,TAYLOR BUILDING COMPANY LTD   
82,,,Parks Investment                        ,CE013SA,New Construction Conversion and Renovation,0,B5,Suppliers - Site works                  ,"2,361.00",12/08/2016,C,EARTH ANCHORS LTD             
83,,,B714 Deen City Farm,CE016AA,Other Capital Expenditure,0,E1,Grants                                  ,"10,587.25",15/08/2016,C,DEEN CITY FARM                
84,,,Surface Water Drainage                  ,CE024FA,New Construction Conversion and Renovation,0,B4,Contractor - Site works                 ,827.83,17/08/2016,C,FM CONWAY LTD                 
85,,,Borough Roads Maintenance               ,CE026FA,New Construction Conversion and Renovation,0,B4,Contractor - Site works                 ,"153,832.36",17/08/2016,C,FM CONWAY LTD                 
86,,,Borough Roads Maintenance               ,CE026FA,New Construction Conversion and Renovation,0,B4,Contractor - Site works                 ,"60,000.00",17/08/2016,C,FM CONWAY LTD                 
87,,,Borough Roads Maintenance               ,CE026FA,New Construction Conversion and Renovation,0,B4,Contractor - Site works                 ,"40,000.00",05/08/2016,C,FM CONWAY LTD                 
88,,,Borough Roads Maintenance               ,CE026FA,New Construction Conversion and Renovation,0,B4,Contractor - Site works                 ,"29,254.02",17/08/2016,C,FM CONWAY LTD                 
89,,,Borough Roads Maintenance               ,CE026FA,New Construction Conversion and Renovation,0,C3,Public Notices - Structure              ,504.00,08/07/2016,C,NEWSQUEST MEDIA GROUP LTD     
90,,,TFL Projected Slippage                  ,CE026SA,New Construction Conversion and Renovation,0,B3,Other Expenses D&S Structure            ,"1,150.00",28/06/2016,C,LASER SURVEYS                 
91,,,TFL Projected Slippage                  ,CE026SA,New Construction Conversion and Renovation,0,B5,Suppliers - Site works                  ,704.00,29/07/2016,C,GRASS BARBERS LONDON LTD      
92,,,TFL Projected Slippage                  ,CE026SA,New Construction Conversion and Renovation,0,B6,Other Costs - Site works                ,763.00,08/08/2016,C,UK POWER NETWORKS (OPERATIONS)
93,,,TFL Projected Slippage                  ,CE026SA,New Construction Conversion and Renovation,0,B6,Other Costs - Site works                ,763.00,08/08/2016,C,UK POWER NETWORKS (OPERATIONS)
94,,,TFL Projected Slippage                  ,CE026SA,Vehicles Plant Equipment and Machinery,0,D3,Equipment                               ,"1,675.00",22/07/2016,C,CYCLEHOOP LTD                 
95,,,Maintain AntiSkid and Coloured          ,CE027FA,New Construction Conversion and Renovation,0,B4,Contractor - Site works                 ,"4,750.23",17/08/2016,C,FM CONWAY LTD                 
96,,,Repairs to Footways                     ,CE029FA,New Construction Conversion and Renovation,0,B4,Contractor - Site works                 ,"230,000.00",05/08/2016,C,FM CONWAY LTD                 
97,,,Repairs to Footways                     ,CE029FA,New Construction Conversion and Renovation,0,B4,Contractor - Site works                 ,"46,950.03",09/08/2016,C,FM CONWAY LTD                 
98,,,Repairs to Footways                     ,CE029FA,New Construction Conversion and Renovation,0,B4,Contractor - Site works                 ,"21,122.90",17/08/2016,C,FM CONWAY LTD                 
99,,,Repairs to Footways                     ,CE029FA,New Construction Conversion and Renovation,0,B4,Contractor - Site works                 ,"10,000.00",05/08/2016,C,FM CONWAY LTD                 
100,,,Repairs to Footways                     ,CE029FA,New Construction Conversion and Renovation,0,B4,Contractor - Site works                 ,"3,128.58",09/08/2016,C,FM CONWAY LTD                 
101,,,Repairs to Footways                     ,CE029FA,New Construction Conversion and Renovation,0,B4,Contractor - Site works                 ,615.04,05/08/2016,C,FM CONWAY LTD                 
102,,,Leisure Centre Plant & Machine          ,CE038MA,New Construction Conversion and Renovation,0,B4,Contractor - Site works                 ,"9,877.50",07/07/2016,C,ERGRO BUILDING SERVICES LTD   
103,,,Leisure Centre Plant & Machine          ,CE038MA,New Construction Conversion and Renovation,0,B4,Contractor - Site works                 ,"4,148.75",17/06/2016,C,SME INVOICE FINANCE LTD       
104,,,Leisure Centre Plant & Machine          ,CE038MA,New Construction Conversion and Renovation,0,B4,Contractor - Site works                 ,880.00,26/07/2016,C,LA BELLE ROOFING CO LTD       
105,,,Leisure Centre Plant & Machine          ,CE038MA,New Construction Conversion and Renovation,0,B4,Contractor - Site works                 ,840.00,12/07/2016,C,D N H PROPERTY MAINTENANCE    
106,,,Leisure Centre Plant & Machine          ,CE038MA,New Construction Conversion and Renovation,0,B4,Contractor - Site works                 ,840.00,07/07/2016,C,ERGRO BUILDING SERVICES LTD   
107,,,Leisure Centre Plant & Machine          ,CE038MA,New Construction Conversion and Renovation,0,B4,Contractor - Site works                 ,795.00,25/07/2016,C,SALTASH ENTERPRISES LTD       
108,,,Leisure Centre Plant & Machine          ,CE038MA,New Construction Conversion and Renovation,0,B4,Contractor - Site works                 ,774.00,27/07/2016,C,SALTASH ENTERPRISES LTD       
109,,,Morden Leisure Centre                   ,CE045AA,New Construction Conversion and Renovation,0,B1,Consultants Fees D&S Structure          ,"3,882.00",29/07/2016,C,GARDINER & THEOBALD LLP       
110,,,Morden Leisure Centre                   ,CE045AA,New Construction Conversion and Renovation,0,B1,Consultants Fees D&S Structure          ,"3,500.00",31/07/2016,C,SWEETT (UK) LIMITED           
111,,,Morden Leisure Centre                   ,CE045AA,New Construction Conversion and Renovation,0,B1,Consultants Fees D&S Structure          ,"1,000.00",31/07/2016,C,SWEETT (UK) LIMITED           
112,,,Morden Leisure Centre                   ,CE045AA,New Construction Conversion and Renovation,0,B1,Consultants Fees D&S Structure          ,562.00,29/07/2016,C,BUILDING DESIGN PARTNERSHIP LT
113,,,Mitcham Town Centre Imprvmnt            ,CE061FE,Vehicles Plant Equipment and Machinery,0,D5,Software                                ,"5,881.58",22/07/2016,C,THAMES WATER UTILITIES LTD.   
114,,,Street Lighting Replacement Pr          ,CE068FA,New Construction Conversion and Renovation,0,B4,Contractor - Site works                 ,"28,288.81",28/07/2016,C,KIER INTEGRATED SERVICES LTD  
115,,,Street Lighting Replacement Pr          ,CE068FA,New Construction Conversion and Renovation,0,B4,Contractor - Site works                 ,"21,131.49",28/07/2016,C,KIER INTEGRATED SERVICES LTD  
116,,,Street Lighting Replacement Pr          ,CE068FA,New Construction Conversion and Renovation,0,B4,Contractor - Site works                 ,"5,761.50",28/07/2016,C,KIER INTEGRATED SERVICES LTD  
117,,,Street Lighting Replacement Pr          ,CE068FA,New Construction Conversion and Renovation,0,B4,Contractor - Site works                 ,"1,843.74",28/07/2016,C,KIER INTEGRATED SERVICES LTD  
118,,,Street Lighting Replacement Pr          ,CE068FA,New Construction Conversion and Renovation,0,B4,Contractor - Site works                 ,"1,834.28",28/07/2016,C,KIER INTEGRATED SERVICES LTD  
119,,,Street Lighting Replacement Pr          ,CE068FA,New Construction Conversion and Renovation,0,B4,Contractor - Site works                 ,"1,587.99",28/07/2016,C,KIER INTEGRATED SERVICES LTD  
120,,,Street Lighting Replacement Pr          ,CE068FA,New Construction Conversion and Renovation,0,B4,Contractor - Site works                 ,"1,182.80",28/07/2016,C,KIER INTEGRATED SERVICES LTD  
121,,,Street Lighting Replacement Pr          ,CE068FA,New Construction Conversion and Renovation,0,B4,Contractor - Site works                 ,926.28,28/07/2016,C,KIER INTEGRATED SERVICES LTD  
122,,,Street Lighting Replacement Pr          ,CE068FA,New Construction Conversion and Renovation,0,B4,Contractor - Site works                 ,560.00,15/08/2016,C,TK CONSTRUCT & ELECTRIC INSTAL
123,,,Street Lighting Replacement Pr          ,CE068FA,New Construction Conversion and Renovation,0,B4,Contractor - Site works                 ,529.33,28/07/2016,C,KIER INTEGRATED SERVICES LTD  
124,,,Street Lighting Replacement Pr          ,CE068FA,New Construction Conversion and Renovation,0,B6,Other Costs - Site works                ,"6,744.00",02/08/2016,C,UK POWER NETWORKS (OPERATIONS)
125,,,Street Lighting Replacement Pr          ,CE068FA,New Construction Conversion and Renovation,0,B6,Other Costs - Site works                ,"6,420.00",08/08/2016,C,UK POWER NETWORKS (OPERATIONS)
126,,,Street Lighting Replacement Pr          ,CE068FA,New Construction Conversion and Renovation,0,B6,Other Costs - Site works                ,"6,201.00",08/08/2016,C,UK POWER NETWORKS (OPERATIONS)
127,,,Street Lighting Replacement Pr          ,CE068FA,New Construction Conversion and Renovation,0,B6,Other Costs - Site works                ,"4,158.00",10/08/2016,C,UK POWER NETWORKS (OPERATIONS)
128,,,Street Lighting Replacement Pr          ,CE068FA,New Construction Conversion and Renovation,0,B6,Other Costs - Site works                ,"3,852.00",21/07/2016,C,UK POWER NETWORKS (OPERATIONS)
129,,,Street Lighting Replacement Pr          ,CE068FA,New Construction Conversion and Renovation,0,B6,Other Costs - Site works                ,"2,382.00",05/08/2016,C,UK POWER NETWORKS (OPERATIONS)
130,,,Street Lighting Replacement Pr          ,CE068FA,New Construction Conversion and Renovation,0,B6,Other Costs - Site works                ,"2,079.00",28/07/2016,C,UK POWER NETWORKS (OPERATIONS)
131,,,Street Lighting Replacement Pr          ,CE068FA,New Construction Conversion and Renovation,0,B6,Other Costs - Site works                ,"1,556.00",21/07/2016,C,UK POWER NETWORKS (OPERATIONS)
132,,,Street Lighting Replacement Pr          ,CE068FA,New Construction Conversion and Renovation,0,B6,Other Costs - Site works                ,"1,386.00",22/07/2016,C,UK POWER NETWORKS (OPERATIONS)
133,,,Street Lighting Replacement Pr          ,CE068FA,New Construction Conversion and Renovation,0,B6,Other Costs - Site works                ,"1,240.00",08/08/2016,C,UK POWER NETWORKS (OPERATIONS)
134,,,Street Lighting Replacement Pr          ,CE068FA,New Construction Conversion and Renovation,0,B6,Other Costs - Site works                ,927.00,08/08/2016,C,UK POWER NETWORKS (OPERATIONS)
135,,,Street Lighting Replacement Pr          ,CE068FA,New Construction Conversion and Renovation,0,B6,Other Costs - Site works                ,748.00,21/07/2016,C,UK POWER NETWORKS (OPERATIONS)
136,,,Street Lighting Replacement Pr          ,CE068FA,New Construction Conversion and Renovation,0,B6,Other Costs - Site works                ,748.00,09/08/2016,C,UK POWER NETWORKS (OPERATIONS)
137,,,Street Lighting Replacement Pr          ,CE068FA,New Construction Conversion and Renovation,0,B6,Other Costs - Site works                ,693.00,28/07/2016,C,UK POWER NETWORKS (OPERATIONS)
138,,,Street Lighting Replacement Pr          ,CE068FA,New Construction Conversion and Renovation,0,B6,Other Costs - Site works                ,650.00,09/08/2016,C,UK POWER NETWORKS (OPERATIONS)
139,,,Street Lighting Replacement Pr          ,CE068FA,New Construction Conversion and Renovation,0,B6,Other Costs - Site works                ,520.00,08/08/2016,C,UK POWER NETWORKS (OPERATIONS)
140,,,Replacement of Fleet Vehicles           ,CE082EA,New Construction Conversion and Renovation,0,B5,Suppliers - Site works                  ,"21,822.87",26/07/2016,C,LITTLEWOOD FENCING            
141,,,Replacement of Fleet Vehicles           ,CE082EA,New Construction Conversion and Renovation,0,B5,Suppliers - Site works                  ,832.11,26/07/2016,C,LITTLEWOOD FENCING            
142,,,Replacement of Fleet Vehicles           ,CE082EA,Vehicles Plant Equipment and Machinery,0,D1,Vehicles                                ,"23,427.05",22/07/2016,C,COMMERCIAL SERV'S TRADING LTD 
143,,,Alley Gating Scheme - Fly Tip           ,CE087FA,Other Capital Expenditure,0,E1,Grants                                  ,"1,213.38",31/08/2016,C,GRILLESAFE SECURITY LTD       
144,,,Alley Gating Scheme - Fly Tip           ,CE087FA,Other Capital Expenditure,0,E1,Grants                                  ,"1,012.50",03/08/2016,C,W C EVANS & SONS LTD          
145,,,Alley Gating Scheme - Fly Tip           ,CE087FA,Other Capital Expenditure,0,E1,Grants                                  ,697.00,10/08/2016,C,RHINO STEEL CONSTRUCTION LTD  
146,,,Accesibility Programme                  ,CE104FD,Vehicles Plant Equipment and Machinery,0,D4,Specialist furniture                    ,500.00,29/07/2016,C,ZEBRITE LTD                   
147,,,Cycle access/parking                    ,CE104FG,New Construction Conversion and Renovation,0,B4,Contractor - Site works                 ,567.96,28/07/2016,C,KIER INTEGRATED SERVICES LTD  
148,,,Casualty Reduction & Schools            ,CE104RA,New Construction Conversion and Renovation,0,B6,Other Costs - Site works                ,"15,235.74",02/08/2016,C,TRANSPORT FOR LONDON          
149,,,Traffic Schemes                         ,CE142FA,New Construction Conversion and Renovation,0,B6,Other Costs - Site works                ,650.00,08/08/2016,C,UK POWER NETWORKS (OPERATIONS)
150,,,Traffic Schemes                         ,CE142FA,New Construction Conversion and Renovation,0,C3,Public Notices - Structure              ,528.00,30/04/2016,C,NEWSQUEST MEDIA GROUP LTD     
151,,,Tackling Traffic Congestion             ,CE150AA,New Construction Conversion and Renovation,0,B4,Contractor - Site works                 ,"1,064.69",09/08/2016,C,FM CONWAY LTD                 
152,,,Tackling Traffic Congestion             ,CE150AA,New Construction Conversion and Renovation,0,B6,Other Costs - Site works                ,"2,202.00",08/08/2016,C,UK POWER NETWORKS (OPERATIONS)
153,,,Tackling Traffic Congestion             ,CE150AA,Vehicles Plant Equipment and Machinery,0,D5,Software                                ,"1,335.00",29/07/2016,C,IMPERIAL CIVIL ENFORC.SOLUT.  
154,,,Anti Theft Pay&Display Machine,CE150AB,New Construction Conversion and Renovation,0,B6,Other Costs - Site works                ,"26,150.00",12/08/2016,C,R.J.H.WELDING                 
155,,,Civic Centre- Upgrading lifts           ,CF001AL,New Construction Conversion and Renovation,0,B4,Contractor - Site works                 ,"18,663.45",12/07/2016,C,AXIS ELEVATORS LTD            
156,,,Civic Centre- Upgrading lifts           ,CF001AL,New Construction Conversion and Renovation,0,B4,Contractor - Site works                 ,"2,236.55",12/07/2016,C,AXIS ELEVATORS LTD            
157,,,Repair and Maintenance                  ,CF004SA,New Construction Conversion and Renovation,0,B4,Contractor - Site works                 ,"34,866.34",08/06/2016,C,ERGRO BUILDING SERVICES LTD   
158,,,Repair and Maintenance                  ,CF004SA,New Construction Conversion and Renovation,0,B4,Contractor - Site works                 ,"27,721.40",29/07/2016,C,ERGRO BUILDING SERVICES LTD   
159,,,Repair and Maintenance                  ,CF004SA,New Construction Conversion and Renovation,0,B4,Contractor - Site works                 ,"2,224.10",08/06/2016,C,ERGRO BUILDING SERVICES LTD   
160,,,Repair and Maintenance                  ,CF004SA,New Construction Conversion and Renovation,0,B4,Contractor - Site works                 ,640.00,29/07/2016,C,ERGRO BUILDING SERVICES LTD   
161,,,Repair and Maintenance                  ,CF004SA,New Construction Conversion and Renovation,0,B4,Contractor - Site works                 ,(640.00),16/08/2016,C,ERGRO BUILDING SERVICES LTD   
162,,,Joseph Hood Permanent Expansn,CS012AA,New Construction Conversion and Renovation,0,B4,Contractor - Site works                 ,"1,000.00",21/06/2016,C,MOY CONSTRUCTION CO LTD       
163,,,Dundonald expansion                     ,CS031AC,New Construction Conversion and Renovation,0,B1,Consultants Fees D&S Structure          ,"12,767.00",29/07/2016,C,HAVERSTOCK ASSOCIATES LLP     
164,,,Dundonald expansion                     ,CS031AC,New Construction Conversion and Renovation,0,B1,Consultants Fees D&S Structure          ,"1,500.00",29/07/2016,C,SYNERGY CPC LLP               
165,,,Dundonald expansion                     ,CS031AC,New Construction Conversion and Renovation,0,B1,Consultants Fees D&S Structure          ,812.50,17/08/2016,C,AREA LANDSCAPE ARCHITECTS     
166,,,Dundonald expansion                     ,CS031AC,New Construction Conversion and Renovation,0,B4,Contractor - Site works                 ,"285,000.00",23/08/2016,C,KIND & COMPANY (BUILDERS) LTD 
167,,,Singlegate expansion                    ,CS049AA,New Construction Conversion and Renovation,0,B4,Contractor - Site works                 ,"113,325.03",01/08/2016,C,KIND & COMPANY (BUILDERS) LTD 
168,,,Singlegate expansion                    ,CS049AA,New Construction Conversion and Renovation,0,B4,Contractor - Site works                 ,"80,948.31",16/08/2016,C,KIND & COMPANY (BUILDERS) LTD 
169,,,Schs Cap Maint & Accessibility          ,CS080SD,New Construction Conversion and Renovation,0,B4,Contractor - Site works                 ,"36,750.00",01/08/2016,C,PRO DIRECT SURFACING LTD      
170,,,Schs Cap Maint & Accessibility          ,CS080SD,New Construction Conversion and Renovation,0,B4,Contractor - Site works                 ,"26,500.00",25/08/2016,C,A & E ELKINS LTD              
171,,,Schs Cap Maint & Accessibility          ,CS080SD,New Construction Conversion and Renovation,0,B4,Contractor - Site works                 ,"23,700.64",23/08/2016,C,BREYER GROUP PLC              
172,,,Schs Cap Maint & Accessibility          ,CS080SD,New Construction Conversion and Renovation,0,B4,Contractor - Site works                 ,"16,531.50",12/08/2016,C,BARWIN PROPERTY SERVICES LTD  
173,,,Schs Cap Maint & Accessibility          ,CS080SD,New Construction Conversion and Renovation,0,B4,Contractor - Site works                 ,"15,681.00",23/08/2016,C,BREYER GROUP PLC              
174,,,Schs Cap Maint & Accessibility          ,CS080SD,New Construction Conversion and Renovation,0,B4,Contractor - Site works                 ,"12,327.00",25/07/2016,C,UK SURFACINGS LTD             
175,,,Schs Cap Maint & Accessibility          ,CS080SD,New Construction Conversion and Renovation,0,B4,Contractor - Site works                 ,"6,803.23",23/08/2016,C,BREYER GROUP PLC              
176,,,Schs Cap Maint & Accessibility          ,CS080SD,New Construction Conversion and Renovation,0,B4,Contractor - Site works                 ,"3,034.40",25/07/2016,C,UK SURFACINGS LTD             
177,,,Schs Cap Maint & Accessibility          ,CS080SD,New Construction Conversion and Renovation,0,B4,Contractor - Site works                 ,"2,161.78",23/08/2016,C,BREYER GROUP PLC              
178,,,Schs Cap Maint & Accessibility          ,CS080SD,New Construction Conversion and Renovation,0,B6,Other Costs - Site works                ,"15,306.57",28/07/2016,C,EB ELECTRICAL SOLUTIONS LTD   
179,,,Schs Cap Maint & Accessibility          ,CS080SD,New Construction Conversion and Renovation,0,B6,Other Costs - Site works                ,"13,151.26",28/07/2016,C,EB ELECTRICAL SOLUTIONS LTD   
180,,,Schs Cap Maint & Accessibility          ,CS080SD,New Construction Conversion and Renovation,0,B6,Other Costs - Site works                ,"13,000.00",01/08/2016,C,P G MARSHALL & SONS LTD       
181,,,Schs Cap Maint & Accessibility          ,CS080SD,New Construction Conversion and Renovation,0,B6,Other Costs - Site works                ,"12,475.00",01/08/2016,C,T MCKEOWN & SON FENCING       
182,,,Schs Cap Maint & Accessibility          ,CS080SD,New Construction Conversion and Renovation,0,B6,Other Costs - Site works                ,"1,950.00",27/07/2016,C,WESTFIELD GROUP UK LTD        
183,,,Schs Cap Maint & Accessibility          ,CS080SD,New Construction Conversion and Renovation,0,B6,Other Costs - Site works                ,600.00,27/07/2016,C,WESTFIELD GROUP UK LTD        
184,,,Hatfield                                ,CS081SA,New Construction Conversion and Renovation,0,B4,Contractor - Site works                 ,"1,475.00",21/08/2016,C,PRO DIRECT SURFACING LTD      
185,,,Hatfield                                ,CS081SA,New Construction Conversion and Renovation,0,B4,Contractor - Site works                 ,"1,420.00",21/08/2016,C,PRO DIRECT SURFACING LTD      
186,,,Hatfield                                ,CS081SA,New Construction Conversion and Renovation,0,B4,Contractor - Site works                 ,975.00,21/08/2016,C,PRO DIRECT SURFACING LTD      
187,,,Hatfield                                ,CS081SA,New Construction Conversion and Renovation,0,B4,Contractor - Site works                 ,975.00,21/08/2016,C,PRO DIRECT SURFACING LTD      
188,,,Hatfield                                ,CS081SA,New Construction Conversion and Renovation,0,B4,Contractor - Site works                 ,850.00,21/08/2016,C,PRO DIRECT SURFACING LTD      
189,,,Hatfield                                ,CS081SA,New Construction Conversion and Renovation,0,B4,Contractor - Site works                 ,595.00,21/08/2016,C,PRO DIRECT SURFACING LTD      
190,,,Harris Merton 2fe                       ,CS085SG,New Construction Conversion and Renovation,0,B1,Consultants Fees D&S Structure          ,"2,584.00",29/07/2016,C,SUMMERS INMAN                 
191,,,Perseid                                 ,CS092AA,New Construction Conversion and Renovation,0,B5,Suppliers - Site works                  ,"3,900.00",26/08/2016,C,KEVIN GOLESWORTHY             
192,,,Primary Expansion Contingency,CS094AA,New Construction Conversion and Renovation,0,B4,Contractor - Site works                 ,"105,734.78",29/06/2016,C,BALFOUR BEATTY REGIONAL CONST.
193,,,IT Equipment                            ,CT006EA,Vehicles Plant Equipment and Machinery,0,D3,Equipment                               ,"53,946.16",20/07/2016,C,SPECIALIST COMPUTER CENT. PLC 
194,,,IT Equipment                            ,CT006EA,Vehicles Plant Equipment and Machinery,0,D3,Equipment                               ,"27,805.05",27/07/2016,C,XMA LIMITED                   
195,,,IT Equipment                            ,CT006EA,Vehicles Plant Equipment and Machinery,0,D3,Equipment                               ,"7,815.00",12/08/2016,C,XMA LIMITED                   
196,,,IT Equipment                            ,CT006EA,Vehicles Plant Equipment and Machinery,0,D3,Equipment                               ,"3,580.10",12/08/2016,C,XMA LIMITED                   
197,,,IT Equipment                            ,CT006EA,Vehicles Plant Equipment and Machinery,0,D3,Equipment                               ,"3,173.36",18/07/2016,C,SPECIALIST COMPUTER CENT. PLC 
198,,,IT Equipment                            ,CT006EA,Vehicles Plant Equipment and Machinery,0,D3,Equipment                               ,"2,139.12",15/07/2016,C,SPECIALIST COMPUTER CENT. PLC 
199,,,IT Equipment                            ,CT006EA,Vehicles Plant Equipment and Machinery,0,D3,Equipment                               ,"2,068.16",19/07/2016,C,SPECIALIST COMPUTER CENT. PLC 
200,,,IT Equipment                            ,CT006EA,Vehicles Plant Equipment and Machinery,0,D3,Equipment                               ,"1,066.52",12/08/2016,C,XMA LIMITED                   
201,,,IT Equipment                            ,CT006EA,Other Capital Expenditure,0,E3,Miscellaneous Capital Expendit          ,"6,250.00",30/08/2016,C,NU NETWORK PRODUCTS LTD       
202,,,IT Equipment                            ,CT006EA,Other Capital Expenditure,0,E3,Miscellaneous Capital Expendit          ,"4,000.00",11/08/2016,C,ASSURED NETWORK SERVICES LTD  
203,,,Stability Networks                      ,CT012ED,Vehicles Plant Equipment and Machinery,0,D5,Software                                ,"27,820.91",11/08/2016,C,CAPITA IT SERVICES (BSF) LTD  
204,,,Stability Networks                      ,CT012ED,Vehicles Plant Equipment and Machinery,0,D5,Software                                ,"2,782.09",11/08/2016,C,CAPITA IT SERVICES (BSF) LTD  
205,,,Stability Networks                      ,CT012ED,Other Capital Expenditure,0,E3,Miscellaneous Capital Expendit          ,"1,000.00",09/08/2016,C,AXIAL SYSTEMS                 
206,,,Improving Information Systems           ,CT020NB,Vehicles Plant Equipment and Machinery,0,D5,Software                                ,"46,610.00",10/06/2016,C,ADVANCED BUSINESS SOLUTIONS   
207,,,Improving Information Systems           ,CT020NB,Vehicles Plant Equipment and Machinery,0,D5,Software                                ,"22,867.00",10/06/2016,C,ADVANCED BUSINESS SOLUTIONS   
208,,,Improving Information Systems           ,CT020NB,Vehicles Plant Equipment and Machinery,0,D5,Software                                ,"14,427.00",29/07/2016,C,ADVANCED BUSINESS SOLUTIONS   
209,,,Improving Information Systems           ,CT020NB,Vehicles Plant Equipment and Machinery,0,D5,Software                                ,"4,975.00",29/07/2016,C,ADVANCED BUSINESS SOLUTIONS   
210,,,Improving Information Systems           ,CT020NB,Vehicles Plant Equipment and Machinery,0,D5,Software                                ,"4,477.00",26/07/2016,C,ADVANCED BUSINESS SOLUTIONS   
211,,,Improving Information Systems           ,CT020NB,Vehicles Plant Equipment and Machinery,0,D5,Software                                ,"1,990.00",28/07/2016,C,ADVANCED BUSINESS SOLUTIONS   
212,,,Improving Information Systems           ,CT020NB,Vehicles Plant Equipment and Machinery,0,D5,Software                                ,995.00,29/07/2016,C,ADVANCED BUSINESS SOLUTIONS   
213,Central Services,Council tax collection,Local Taxation Services,E02100,Supplies & Services           ,Services                      ,DF11,Counsel's Fees                          ,"1,813.80",12/08/2016,R,WELBECK LAW LLP               
214,Central Services,Council tax collection,Local Taxation Services,E02100,Supplies & Services           ,Services                      ,DF11,Counsel's Fees                          ,"1,810.94",02/08/2016,R,HMCTS                         
215,Central Services,Council tax collection,Local Taxation Services,E02100,Supplies & Services           ,Comms and Computing           ,DG09,Computer Purchases - Misc               ,"3,099.26",16/08/2016,R,CIVICA UK LIMITED             
216,Central Services,Council tax collection,Local Taxation Services,E02100,Supplies & Services           ,Comms and Computing           ,DG09,Computer Purchases - Misc               ,"3,000.00",15/08/2016,R,CIVICA UK LIMITED             
217,Central Services,Council tax collection,Local Taxation Services,E02100,Supplies & Services           ,Comms and Computing           ,DG09,Computer Purchases - Misc               ,833.98,22/07/2016,R,CIVICA UK LIMITED             
218,Central Services,Council tax collection,Local Taxation Services,E02100,Supplies & Services           ,Comms and Computing           ,DG09,Computer Purchases - Misc               ,781.05,22/07/2016,R,CIVICA UK LIMITED             
219,Central Services,Council tax collection,Local Taxation Services,E02100,Supplies & Services           ,Comms and Computing           ,DG09,Computer Purchases - Misc               ,730.00,04/08/2016,R,INFORM CPI LTD                
220,Central Services,Council tax collection,Local Taxation Services,E02100,Supplies & Services           ,Comms and Computing           ,DG09,Computer Purchases - Misc               ,579.00,17/08/2016,R,CIVICA UK LIMITED             
221,Central Services,Council tax collection,Local Taxation Services,E02100,Supplies & Services           ,Comms and Computing           ,DG09,Computer Purchases - Misc               ,528.21,22/07/2016,R,CIVICA UK LIMITED             
222,Central Services,Council tax collection,Local Taxation Bailiffs,E02101,Supplies & Services           ,Services                      ,DF18,Bailiffs' fees                          ,932.00,26/08/2016,R,MISS AGNIESZKA MAJOR          
223,Central Services,Council tax collection,Local Taxation Bailiffs,E02101,Supplies & Services           ,Services                      ,DF18,Bailiffs' fees                          ,519.68,31/07/2016,R,HPI LIMITED                   
224,Housing Services,HB Administration,Benefits Administration,E02120,Supplies & Services           ,Services                      ,DF04,Miscellaneous Expenses                  ,"2,100.00",08/08/2016,R,REDACTED
225,Central Services,SupS Payroll,Payroll,E02140,Supplies & Services           ,Expenses                      ,DH14,Prizes and Awards                       ,"1,250.00",01/08/2016,R,THE GIFT VOUCHER SHOP LTD     
226,Central Services,SupS Pensions,Pensions,E02160,Third Party Payments          ,Other Local Authorities       ,EB01,Payments to OLAs                        ,"38,123.00",26/07/2016,R,WANDSWORTH CORPORATION        
227,Central Services,SupS Facilities,Post Room,E02220,Supplies & Services           ,Comms and Computing           ,DG04,Postage - General                       ,740.00,26/07/2016,R,CHESSINGTON CARS AND COURIERS 
228,Central Services,SupS Facilities,Post Room,E02220,Supplies & Services           ,Comms and Computing           ,DG04,Postage - General                       ,550.42,08/08/2016,R,STREETWISE COURIERS           
229,Central Services,SupS Facilities,Post Room,E02220,Supplies & Services           ,Comms and Computing           ,DG04,Postage - General                       ,501.91,31/07/2016,R,STREETWISE COURIERS           
230,Central Services,SupS Facilities,Security Services,E02221,Third Party Payments          ,Private Contractors           ,EH10,Contract Payments                       ,"9,063.15",01/08/2016,R,SIGHT & SOUND                 
231,Central Services,SupS Facilities,Facilities,E02231,Premises Related Expenditure  ,RepairsAlterations&MtceOfBldgs,BA02,ENERGY CONSERVATION                     ,"4,270.00",27/07/2016,R,BRIAR ASSOCIATES              
232,Central Services,SupS Facilities,Facilities,E02231,Premises Related Expenditure  ,RepairsAlterations&MtceOfBldgs,BA02,ENERGY CONSERVATION                     ,"4,025.00",31/12/2015,R,ALLEN CONSTRUCTION CONSULTANCY
233,Central Services,SupS Facilities,Facilities,E02231,Premises Related Expenditure  ,RepairsAlterations&MtceOfBldgs,BA02,ENERGY CONSERVATION                     ,"3,490.00",27/07/2016,R,BRIAR ASSOCIATES              
234,Central Services,SupS Facilities,Facilities,E02231,Premises Related Expenditure  ,RepairsAlterations&MtceOfBldgs,BA02,ENERGY CONSERVATION                     ,"2,587.50",31/07/2016,R,ALLEN CONSTRUCTION CONSULTANCY
235,Central Services,SupS Facilities,Facilities,E02231,Premises Related Expenditure  ,RepairsAlterations&MtceOfBldgs,BA02,ENERGY CONSERVATION                     ,575.00,30/06/2016,R,ALLEN CONSTRUCTION CONSULTANCY
236,Central Services,SupS Facilities,Facilities,E02231,Premises Related Expenditure  ,RepairsAlterations&MtceOfBldgs,BA02,ENERGY CONSERVATION                     ,535.68,15/08/2016,R,ENERGY ASSETS LIMITED         
237,Central Services,SupS Facilities,Facilities,E02231,Premises Related Expenditure  ,RepairsAlterations&MtceOfBldgs,BA02,ENERGY CONSERVATION                     ,507.60,27/07/2016,R,ENERGY ASSETS LIMITED         
238,Central Services,SupS Facilities,Facilities,E02231,Premises Related Expenditure  ,RepairsAlterations&MtceOfBldgs,BA02,ENERGY CONSERVATION                     ,500.00,11/08/2016,R,JOJU SOLA                     
239,Central Services,SupS Facilities,Facilities,E02231,Premises Related Expenditure  ,RepairsAlterations&MtceOfBldgs,BA89,Fire Safety Risk Assessment             ,"12,500.56",03/08/2016,R,SOUTHERN FIRE DOORS LTD       
240,Central Services,SupS Facilities,FM External Fees,E02239,Premises Related Expenditure  ,RepairsAlterations&MtceOfBldgs,BA29,Build Maint Mgt Fees                    ,735.00,07/03/2016,R,PRIORITY RISK LTD             
241,Central Services,SupS Facilities,Corporate Services Buildings,E02240,Premises Related Expenditure  ,RepairsAlterations&MtceOfBldgs,BA01,DDM - General Building                  ,"6,184.50",17/08/2016,R,SALTASH ENTERPRISES LTD       
242,Central Services,SupS Facilities,Corporate Services Buildings,E02240,Premises Related Expenditure  ,RepairsAlterations&MtceOfBldgs,BA01,DDM - General Building                  ,"2,064.10",08/08/2016,R,SALTASH ENTERPRISES LTD       
243,Central Services,SupS Facilities,Corporate Services Buildings,E02240,Premises Related Expenditure  ,RepairsAlterations&MtceOfBldgs,BA01,DDM - General Building                  ,"1,605.60",31/07/2016,R,FUTURE TECH                   
244,Central Services,SupS Facilities,Corporate Services Buildings,E02240,Premises Related Expenditure  ,RepairsAlterations&MtceOfBldgs,BA01,DDM - General Building                  ,862.25,31/07/2016,R,FUTURE TECH                   
245,Central Services,SupS Facilities,Corporate Services Buildings,E02240,Premises Related Expenditure  ,RepairsAlterations&MtceOfBldgs,BA01,DDM - General Building                  ,743.12,31/07/2016,R,FUTURE TECH                   
246,Central Services,SupS Facilities,Corporate Services Buildings,E02240,Premises Related Expenditure  ,RepairsAlterations&MtceOfBldgs,BA01,DDM - General Building                  ,520.00,20/07/2016,R,SAFEGUARD PEST CONTROL LTD    
247,Central Services,SupS Facilities,Corporate Services Buildings,E02240,Premises Related Expenditure  ,RepairsAlterations&MtceOfBldgs,BA03,DDM - Mechanical                        ,"3,787.99",11/08/2016,R,BILFINGER EUROPA FACILITY     
248,Central Services,SupS Facilities,Corporate Services Buildings,E02240,Premises Related Expenditure  ,RepairsAlterations&MtceOfBldgs,BA03,DDM - Mechanical                        ,554.49,11/08/2016,R,BILFINGER EUROPA FACILITY     
249,Central Services,SupS Facilities,Corporate Services Buildings,E02240,Premises Related Expenditure  ,RepairsAlterations&MtceOfBldgs,BA05,DDM - ELECTRICAL                        ,693.83,28/11/2014,R,BILFINGER EUROPA FACILITY     
250,Central Services,SupS Facilities,Corporate Services Buildings,E02240,Premises Related Expenditure  ,RepairsAlterations&MtceOfBldgs,BA29,Build Maint Mgt Fees                    ,"2,567.25",11/08/2016,R,BILFINGER EUROPA FACILITY     
251,Childrens & Education Services,Strategic Management,PDC,E02254,Premises Related Expenditure  ,Cleaning and Domestic Supplies,BH03,Cleaning Services                       ,"2,397.50",30/07/2016,R,JULIUS RUTHERFOORD & CO LTD   
252,Adult Social Care,OP 65 & Over Day Care,Pollards Hill Day Centre,E02270,Premises Related Expenditure  ,RepairsAlterations&MtceOfBldgs,BA06,REPAIRS & MAINTENANCE GENERAL           ,757.00,01/08/2016,R,S.P.P.C.                      
253,Adult Social Care,OP 65 & Over Day Care,Pollards Hill Day Centre,E02270,Premises Related Expenditure  ,Cleaning and Domestic Supplies,BH01,Cleaning Materials                      ,703.68,09/08/2016,R,NERCON LTD                    
254,Adult Social Care,OP 65 & Over Day Care,Pollards Hill Day Centre,E02270,Premises Related Expenditure  ,Cleaning and Domestic Supplies,BH01,Cleaning Materials                      ,504.00,28/07/2016,R,GREENHAM TRADING LTD          
255,Adult Social Care,OP 65 & Over Day Care,Pollards Hill Day Centre,E02270,Premises Related Expenditure  ,Cleaning and Domestic Supplies,BH03,Cleaning Services                       ,"7,302.68",02/08/2016,R,BIRKIN CLEANING SERVICES LTD  
256,Adult Social Care,OP 65 & Over Day Care,Pollards Hill Day Centre,E02270,Premises Related Expenditure  ,Cleaning and Domestic Supplies,BH03,Cleaning Services                       ,"5,216.05",01/08/2016,R,BIRKIN CLEANING SERVICES LTD  
257,Adult Social Care,OP 65 & Over Day Care,Pollards Hill Day Centre,E02270,Premises Related Expenditure  ,Cleaning and Domestic Supplies,BH03,Cleaning Services                       ,"1,764.19",02/08/2016,R,BIRKIN CLEANING SERVICES LTD  
258,Adult Social Care,OP 65 & Over Day Care,Pollards Hill Day Centre,E02270,Premises Related Expenditure  ,Cleaning and Domestic Supplies,BH03,Cleaning Services                       ,"1,623.45",02/08/2016,R,BIRKIN CLEANING SERVICES LTD  
259,Adult Social Care,OP 65 & Over Day Care,Pollards Hill Day Centre,E02270,Premises Related Expenditure  ,Cleaning and Domestic Supplies,BH03,Cleaning Services                       ,"1,591.80",01/08/2016,R,BIRKIN CLEANING SERVICES LTD  
260,Adult Social Care,OP 65 & Over Day Care,Pollards Hill Day Centre,E02270,Premises Related Expenditure  ,Cleaning and Domestic Supplies,BH03,Cleaning Services                       ,"1,497.38",02/08/2016,R,BIRKIN CLEANING SERVICES LTD  
261,Adult Social Care,OP 65 & Over Day Care,Pollards Hill Day Centre,E02270,Premises Related Expenditure  ,Cleaning and Domestic Supplies,BH03,Cleaning Services                       ,"1,304.95",02/08/2016,R,BIRKIN CLEANING SERVICES LTD  
262,Adult Social Care,OP 65 & Over Day Care,Pollards Hill Day Centre,E02270,Premises Related Expenditure  ,Cleaning and Domestic Supplies,BH03,Cleaning Services                       ,892.70,01/08/2016,R,BIRKIN CLEANING SERVICES LTD  
263,Adult Social Care,OP 65 & Over Day Care,Pollards Hill Day Centre,E02270,Premises Related Expenditure  ,Cleaning and Domestic Supplies,BH03,Cleaning Services                       ,885.31,02/08/2016,R,BIRKIN CLEANING SERVICES LTD  
264,Adult Social Care,OP 65 & Over Day Care,Pollards Hill Day Centre,E02270,Premises Related Expenditure  ,Cleaning and Domestic Supplies,BH03,Cleaning Services                       ,865.12,02/08/2016,R,BIRKIN CLEANING SERVICES LTD  
265,Central Services,SupS Facilities,CORPORATE ELECTRICITY RECHARGE,E02275,Premises Related Expenditure  ,Energy Costs                  ,BB02,Electricity                             ,"28,831.22",18/07/2016,R,SCOTTISH POWER                
266,Central Services,SupS Facilities,CORPORATE ELECTRICITY RECHARGE,E02275,Premises Related Expenditure  ,Energy Costs                  ,BB02,Electricity                             ,"25,067.38",17/08/2016,R,SCOTTISH POWER                
267,Central Services,SupS Facilities,CORPORATE ELECTRICITY RECHARGE,E02275,Premises Related Expenditure  ,Energy Costs                  ,BB02,Electricity                             ,"2,717.18",17/08/2016,R,SCOTTISH POWER                
268,Central Services,SupS Facilities,CORPORATE ELECTRICITY RECHARGE,E02275,Premises Related Expenditure  ,Energy Costs                  ,BB02,Electricity                             ,"2,571.03",18/07/2016,R,SCOTTISH POWER                
269,Cultural Env Reg&Plan Services,Parks & Open Spaces,E & R Buildings,E02344,Premises Related Expenditure  ,RepairsAlterations&MtceOfBldgs,BA03,DDM - Mechanical                        ,542.52,11/08/2016,R,BILFINGER EUROPA FACILITY     
270,Adult Social Care,PS u65 Day Care,C & H Buildings,E02345,Premises Related Expenditure  ,RepairsAlterations&MtceOfBldgs,BA03,DDM - Mechanical                        ,515.32,11/08/2016,R,BILFINGER EUROPA FACILITY     
271,Adult Social Care,PS u65 Day Care,C & H Buildings,E02345,Premises Related Expenditure  ,RepairsAlterations&MtceOfBldgs,BA29,Build Maint Mgt Fees                    ,"2,430.00",17/08/2016,R,EUROPEAN ASBESTOS SERVICES    
272,Cultural Env Reg&Plan Services,Parks & Open Spaces,Leisure Buildings,E02350,Premises Related Expenditure  ,RepairsAlterations&MtceOfBldgs,BA01,DDM - General Building                  ,"1,285.00",09/08/2016,R,SALTASH ENTERPRISES LTD       
273,Cultural Env Reg&Plan Services,Parks & Open Spaces,Leisure Buildings,E02350,Premises Related Expenditure  ,RepairsAlterations&MtceOfBldgs,BA01,DDM - General Building                  ,748.00,12/08/2016,R,SALTASH ENTERPRISES LTD       
274,Cultural Env Reg&Plan Services,Parks & Open Spaces,Leisure Buildings,E02350,Premises Related Expenditure  ,RepairsAlterations&MtceOfBldgs,BA01,DDM - General Building                  ,747.00,09/08/2016,R,SALTASH ENTERPRISES LTD       
275,Cultural Env Reg&Plan Services,Parks & Open Spaces,Leisure Buildings,E02350,Premises Related Expenditure  ,RepairsAlterations&MtceOfBldgs,BA03,DDM - Mechanical                        ,557.76,11/08/2016,R,BILFINGER EUROPA FACILITY     
276,Central Services,SupS DOF,AD RESOURCES,E04061,Supplies & Services           ,Services                      ,DF03,Consultants                             ,"8,970.00",04/08/2016,R,PUBLIC SECTOR CONSULTANTS     
277,Central Services,SupS DOF,AD RESOURCES,E04061,Supplies & Services           ,Services                      ,DF03,Consultants                             ,"2,700.00",10/08/2016,R,CIVICA UK LIMITED             
278,Central Services,SupS DOF,AD RESOURCES,E04061,Supplies & Services           ,Comms and Computing           ,DG07,Computer Software                       ,800.00,08/08/2016,R,AXIELL                        
279,Central Services,SupS  Risk and Insurance,Insurance Premiums & Funding,E05161,Supplies & Services           ,Services                      ,DF84,Claims Management,"4,000.00",28/07/2016,R,JLT SPECIALTY LIMITED         
280,Central Services,SupS Corporate Finance,Corporate Accountancy,E06209,Supplies & Services           ,Services                      ,DF58,Audit Fee                               ,"42,955.00",28/07/2016,R,ERNST & YOUNG LLP             
281,Central Services,SupS Strategic Finance,Business Planning,E06221,Supplies & Services           ,Comms and Computing           ,DG50,Other IT Expenditure                    ,"14,924.00",30/06/2016,R,ADVANCED BUSINESS SOLUTIONS   
282,Central Services,SupS Strategic Finance,Treasury & Insurance,E06222,Employees                     ,Direct Employee Expenses      ,AA17,Agency Staff & Casual Paymts            ,"2,260.00",20/07/2016,R,HAYS SPECIALIST RECRUITM'T LTD
283,Central Services,SupS Strategic Finance,Treasury & Insurance,E06222,Employees                     ,Direct Employee Expenses      ,AA17,Agency Staff & Casual Paymts            ,"2,260.00",27/07/2016,R,HAYS SPECIALIST RECRUITM'T LTD
284,Central Services,SupS Strategic Finance,Treasury & Insurance,E06222,Employees                     ,Direct Employee Expenses      ,AA17,Agency Staff & Casual Paymts            ,"2,260.00",03/08/2016,R,HAYS SPECIALIST RECRUITM'T LTD
285,Central Services,SupS Strategic Finance,Treasury & Insurance,E06222,Employees                     ,Direct Employee Expenses      ,AA17,Agency Staff & Casual Paymts            ,"2,260.00",10/08/2016,R,HAYS SPECIALIST RECRUITM'T LTD
286,Central Services,SupS Strategic Finance,Treasury & Insurance,E06222,Employees                     ,Direct Employee Expenses      ,AA17,Agency Staff & Casual Paymts            ,"2,260.00",17/08/2016,R,HAYS SPECIALIST RECRUITM'T LTD
287,Central Services,Land Charges,Land Charges,E10283,Supplies & Services           ,Prntng Stnry Gen Off Exp      ,DE30,General Office Expense                  ,813.70,31/05/2016,R,LIGHTSPEED BUSINESS SOLUTIONS 
288,Central Services,Conducting elections,Election Expenses,E10284,Premises Related Expenditure  ,Rents                         ,BC03,Room/venue rental hire                  ,"1,000.00",09/08/2016,R,WESTMINSTER CITY COUNCIL      
289,Central Services,Conducting elections,Election Expenses,E10284,Supplies & Services           ,Equip Furniture/Materials     ,DA03,Hire of Equipment                       ,"1,644.50",30/06/2016,R,ASHTEAD PLANT HIRE CO LTD     
290,Central Services,Conducting elections,Election Expenses,E10284,Supplies & Services           ,Prntng Stnry Gen Off Exp      ,DE50,Ballot Papers/Poll Cards Print          ,564.50,03/07/2016,R,FINANCIAL DATA MANAGEMENT PLC 
291,Central Services,Conducting elections,Election Expenses,E10284,Supplies & Services           ,Comms and Computing           ,DG04,Postage - General                       ,"1,612.20",18/07/2016,R,ROYAL MAIL GROUP LTD          
292,Central Services,Conducting elections,Election Expenses,E10284,Supplies & Services           ,Comms and Computing           ,DG04,Postage - General                       ,"1,551.68",03/07/2016,R,FINANCIAL DATA MANAGEMENT PLC 
293,Central Services,SupS Legal,Shared Legal Service,E10288,Employees                     ,Indirect Employee Expenses    ,AB57,EXTERNAL TRAINING COSTS                 ,"1,500.00",06/08/2016,R,KINGSTON COLLEGE              
294,Central Services,SupS Legal,Shared Legal Service,E10288,Supplies & Services           ,Prntng Stnry Gen Off Exp      ,DE30,General Office Expense                  ,"1,044.08",31/07/2016,R,RESTORE PLC                   
295,Central Services,SupS Legal,Shared Legal Service,E10288,Supplies & Services           ,Services                      ,DF95,Services from Provider                  ,"6,500.00",30/06/2016,R,LEWIS SILKIN LLP              
296,Central Services,SupS Legal,Shared Legal Service,E10288,Supplies & Services           ,Services                      ,DF95,Services from Provider                  ,"3,970.07",20/06/2016,R,LEWIS SILKIN LLP              
297,Central Services,SupS Legal,Shared Legal Service,E10288,Supplies & Services           ,Services                      ,DF95,Services from Provider                  ,"2,000.00",20/06/2016,R,LEWIS SILKIN LLP              
298,Central Services,SupS Legal,Shared Legal Service,E10288,Supplies & Services           ,Services                      ,DF95,Services from Provider                  ,915.00,30/06/2016,R,LEWIS SILKIN LLP              
299,Central Services,SupS Legal,Shared Legal Service,E10288,Supplies & Services           ,Comms and Computing           ,DG02,Software Licences                       ,"29,357.53",10/08/2016,R,LEXIS NEXIS                   
300,Central Services,SupS Legal,Shared Legal Service,E10288,Supplies & Services           ,Comms and Computing           ,DG04,Postage - General                       ,700.00,28/07/2016,R,NEOPOST FINANCE LIMITED       
301,Central Services,SupS Legal,Richmond Legal,E10289,Supplies & Services           ,Services                      ,DF11,Counsel's Fees                          ,"10,000.00",09/08/2016,R,DANIEL KOLINSKY QC            
302,Central Services,SupS Legal,Richmond Legal,E10289,Supplies & Services           ,Services                      ,DF11,Counsel's Fees                          ,"4,250.00",09/08/2016,R,JOSEPH BARRETT                
303,Central Services,SupS Legal,Richmond Legal,E10289,Supplies & Services           ,Services                      ,DF11,Counsel's Fees                          ,"1,750.00",11/08/2016,R,STEPHEN MORGAN                
304,Central Services,SupS Legal,Richmond Legal,E10289,Supplies & Services           ,Services                      ,DF11,Counsel's Fees                          ,"1,425.00",06/07/2016,R,REDACTED
305,Central Services,SupS Legal,Richmond Legal,E10289,Supplies & Services           ,Services                      ,DF11,Counsel's Fees                          ,"1,250.00",20/07/2016,R,REDACTED
306,Central Services,SupS Legal,Richmond Legal,E10289,Supplies & Services           ,Services                      ,DF95,Services from Provider                  ,"8,635.00",29/06/2016,R,WARD HADAWAY                  
307,Central Services,SupS Legal,Richmond Legal,E10289,Supplies & Services           ,Services                      ,DF95,Services from Provider                  ,"6,529.00",10/06/2016,R,WARD HADAWAY                  
308,Central Services,SupS Legal,Richmond Legal,E10289,Supplies & Services           ,Services                      ,DF95,Services from Provider                  ,"2,247.50",31/08/2016,R,SHARPE PRITCHARD SOLICITORS   
309,Central Services,SupS Legal,Richmond Legal,E10289,Supplies & Services           ,Services                      ,DF95,Services from Provider                  ,"1,250.00",22/06/2016,R,WINCKWORTH SHERWOOD           
310,Central Services,SupS Legal,LBR INCOME,E10290,Third Party Payments          ,Other Local Authorities       ,EB01,Payments to OLAs                        ,"7,364.79",10/08/2016,R,L.B OF RICHMOND UPON THAMES   
311,Central Services,SupS Legal,K&S Shared Legal,E10291,Third Party Payments          ,Other Local Authorities       ,EB01,Payments to OLAs                        ,"8,830.00",10/08/2016,R,LONDON BOROUGH OF SUTTON      
312,Central Services,SupS Legal,K&S Shared Legal,E10291,Third Party Payments          ,Other Local Authorities       ,EB01,Payments to OLAs                        ,"4,875.00",10/08/2016,R,KINGSTON CORPORATION          
313,Central Services,SupS Legal,K&S Shared Legal,E10291,Third Party Payments          ,Other Local Authorities       ,EB01,Payments to OLAs                        ,"2,000.00",10/08/2016,R,SUTTON HOUSING PARTNERSHIP LTD
314,Central Services,SupS Legal,Kingston Legal                          ,E10292,Supplies & Services           ,Services                      ,DF11,Counsel's Fees                          ,"2,270.00",05/08/2016,R,REDACTED
315,Central Services,SupS Legal,Kingston Legal                          ,E10292,Supplies & Services           ,Services                      ,DF11,Counsel's Fees                          ,"1,250.00",10/08/2016,R,REDACTED
316,Central Services,SupS Legal,Kingston Legal                          ,E10292,Supplies & Services           ,Services                      ,DF11,Counsel's Fees                          ,"1,250.00",03/06/2016,R,REDACTED
317,Central Services,SupS Legal,Kingston Legal                          ,E10292,Supplies & Services           ,Services                      ,DF11,Counsel's Fees                          ,600.00,27/07/2016,R,ELIZABETH DWOMOH              
318,Central Services,SupS Legal,Sutton Legal                            ,E10293,Supplies & Services           ,Services                      ,DF11,Counsel's Fees                          ,"22,000.00",04/06/2016,R,ALEX VERDAN QC                
319,Central Services,SupS Legal,Sutton Legal                            ,E10293,Supplies & Services           ,Services                      ,DF11,Counsel's Fees                          ,"5,515.00",15/07/2016,R,REDACTED
320,Central Services,SupS Legal,Sutton Legal                            ,E10293,Supplies & Services           ,Services                      ,DF11,Counsel's Fees                          ,"3,500.00",14/07/2016,R,MISS SUZANNE SHENTON          
321,Central Services,SupS Legal,Sutton Legal                            ,E10293,Supplies & Services           ,Services                      ,DF11,Counsel's Fees                          ,"3,210.00",29/07/2016,R,MISS CAROLYN PEARSON          
322,Central Services,SupS Legal,Sutton Legal                            ,E10293,Supplies & Services           ,Services                      ,DF11,Counsel's Fees                          ,"2,580.00",08/07/2016,R,REDACTED
323,Central Services,SupS Legal,Sutton Legal                            ,E10293,Supplies & Services           ,Services                      ,DF11,Counsel's Fees                          ,"2,500.00",27/07/2016,R,REDACTED
324,Central Services,SupS Legal,Sutton Legal                            ,E10293,Supplies & Services           ,Services                      ,DF11,Counsel's Fees                          ,"2,000.00",10/08/2016,R,CHARLES CURTIS                
325,Central Services,SupS Legal,Sutton Legal                            ,E10293,Supplies & Services           ,Services                      ,DF11,Counsel's Fees                          ,"1,930.00",27/05/2016,R,REDACTED
326,Central Services,SupS Legal,Sutton Legal                            ,E10293,Supplies & Services           ,Services                      ,DF11,Counsel's Fees                          ,"1,350.00",02/08/2016,R,REDACTED
327,Central Services,SupS Legal,Sutton Legal                            ,E10293,Supplies & Services           ,Services                      ,DF11,Counsel's Fees                          ,"1,250.00",06/07/2016,R,REDACTED
328,Central Services,SupS Legal,Sutton Legal                            ,E10293,Supplies & Services           ,Services                      ,DF11,Counsel's Fees                          ,"1,065.00",30/06/2016,R,REDACTED
329,Central Services,SupS Legal,Sutton Legal                            ,E10293,Supplies & Services           ,Services                      ,DF11,Counsel's Fees                          ,"1,000.00",27/06/2016,R,REDACTED
330,Central Services,SupS Legal,Sutton Legal                            ,E10293,Supplies & Services           ,Services                      ,DF11,Counsel's Fees                          ,975.00,10/08/2016,R,JAMES SHAW                    
331,Central Services,SupS Legal,Sutton Legal                            ,E10293,Supplies & Services           ,Services                      ,DF11,Counsel's Fees                          ,930.00,12/05/2016,R,MAI LING SAVAGE               
332,Central Services,SupS Legal,Sutton Legal                            ,E10293,Supplies & Services           ,Services                      ,DF11,Counsel's Fees                          ,810.00,11/08/2016,R,SAMI RAHMAN                   
333,Central Services,SupS Legal,Sutton Legal                            ,E10293,Supplies & Services           ,Services                      ,DF11,Counsel's Fees                          ,610.00,30/06/2016,R,GERALDINE MORE O'FERRALL      
334,Central Services,SupS Legal,Sutton Legal                            ,E10293,Supplies & Services           ,Services                      ,DF11,Counsel's Fees                          ,555.00,01/08/2016,R,REDACTED
335,Central Services,SupS Legal,Sutton Legal                            ,E10293,Supplies & Services           ,Services                      ,DF11,Counsel's Fees                          ,550.00,18/07/2016,R,ANNA WALSH                    
336,Central Services,SupS Legal,Sutton Legal                            ,E10293,Supplies & Services           ,Services                      ,DF11,Counsel's Fees                          ,530.00,28/07/2016,R,REDACTED
337,Central Services,SupS Legal,Sutton Legal                            ,E10293,Supplies & Services           ,Services                      ,DF11,Counsel's Fees                          ,520.00,14/06/2016,R,GERALDINE MORE O'FERRALL      
338,Central Services,SupS Legal,Sutton Legal                            ,E10293,Supplies & Services           ,Services                      ,DF11,Counsel's Fees                          ,510.00,14/07/2016,R,DAVID SHARP                   
339,Central Services,SupS Legal,Sutton Legal                            ,E10293,Supplies & Services           ,Services                      ,DF11,Counsel's Fees                          ,510.00,16/06/2016,R,ROBIN POWELL                  
340,Central Services,SupS Legal,Sutton Legal                            ,E10293,Supplies & Services           ,Services                      ,DF11,Counsel's Fees                          ,510.00,27/07/2016,R,DAVID SHARP                   
341,Central Services,SupS Legal,Sutton Legal                            ,E10293,Supplies & Services           ,Services                      ,DF11,Counsel's Fees                          ,500.00,19/05/2016,R,ANNE-MARIE LUCEY              
342,Central Services,SupS Legal,Sutton Legal                            ,E10293,Supplies & Services           ,Services                      ,DF14,Doctors and Other Fees                  ,"4,256.40",28/06/2016,R,PSYCHOLOGY DIRECT LTD         
343,Central Services,SupS Legal,Sutton Legal                            ,E10293,Supplies & Services           ,Services                      ,DF14,Doctors and Other Fees                  ,"2,085.00",14/06/2016,R,CARTER BROWN THE EXPERT SERV  
344,Central Services,SupS Legal,Sutton Legal                            ,E10293,Supplies & Services           ,Services                      ,DF14,Doctors and Other Fees                  ,"1,650.00",11/07/2016,R,EXPERT IN MIND                
345,Central Services,SupS Legal,Sutton Legal                            ,E10293,Supplies & Services           ,Services                      ,DF14,Doctors and Other Fees                  ,657.20,01/06/2016,R,IRENE MARTIN ALAM             
346,Central Services,SupS Legal,Sutton Legal                            ,E10293,Supplies & Services           ,Services                      ,DF14,Doctors and Other Fees                  ,616.90,27/06/2016,R,ANN COLE                      
347,Central Services,SupS Legal,Sutton Legal                            ,E10293,Supplies & Services           ,Services                      ,DF14,Doctors and Other Fees                  ,594.80,27/07/2016,R,DR REBECCA O'DONOVAN          
348,Central Services,SupS Legal,Sutton Legal                            ,E10293,Supplies & Services           ,Services                      ,DF95,Services from Provider                  ,"7,258.00",11/07/2016,R,BEVAN BRITTAN                 
349,Central Services,SupS Legal,Achieving for Children (AFC),E10295,Supplies & Services           ,Services                      ,DF11,Counsel's Fees                          ,"6,795.00",02/08/2016,R,RHYS JONES                    
350,Central Services,SupS Legal,Achieving for Children (AFC),E10295,Supplies & Services           ,Services                      ,DF11,Counsel's Fees                          ,"4,750.00",29/06/2016,R,RACHEL GILLMAN                
351,Central Services,SupS Legal,Achieving for Children (AFC),E10295,Supplies & Services           ,Services                      ,DF11,Counsel's Fees                          ,"1,750.00",17/06/2016,R,JENNIFER THELEN               
352,Central Services,SupS Legal,Achieving for Children (AFC),E10295,Supplies & Services           ,Services                      ,DF11,Counsel's Fees                          ,"1,750.00",25/07/2016,R,JACK ANDERSON                 
353,Central Services,SupS Legal,Achieving for Children (AFC),E10295,Supplies & Services           ,Services                      ,DF11,Counsel's Fees                          ,"1,250.00",11/07/2016,R,RACHEL GILLMAN                
354,Central Services,SupS Legal,Achieving for Children (AFC),E10295,Supplies & Services           ,Services                      ,DF11,Counsel's Fees                          ,"1,020.00",06/07/2016,R,RHYS JONES                    
355,Central Services,SupS Legal,Achieving for Children (AFC),E10295,Supplies & Services           ,Services                      ,DF11,Counsel's Fees                          ,950.00,15/08/2016,R,MATTHEW FLETCHER              
356,Central Services,SupS Legal,Achieving for Children (AFC),E10295,Supplies & Services           ,Services                      ,DF11,Counsel's Fees                          ,813.70,09/08/2016,R,REDACTED
357,Central Services,SupS Legal,Achieving for Children (AFC),E10295,Supplies & Services           ,Services                      ,DF11,Counsel's Fees                          ,787.50,12/07/2016,R,MATTHEW FLETCHER              
358,Central Services,SupS Legal,Achieving for Children (AFC),E10295,Supplies & Services           ,Services                      ,DF11,Counsel's Fees                          ,695.00,11/07/2016,R,REDACTED
359,Central Services,SupS Legal,Achieving for Children (AFC),E10295,Supplies & Services           ,Services                      ,DF11,Counsel's Fees                          ,610.00,28/06/2016,R,MISS PATRICIA ROBERTS         
360,Central Services,SupS Legal,Achieving for Children (AFC),E10295,Supplies & Services           ,Services                      ,DF11,Counsel's Fees                          ,600.00,08/08/2016,R,REDACTED
361,Central Services,SupS Legal,Achieving for Children (AFC),E10295,Supplies & Services           ,Services                      ,DF11,Counsel's Fees                          ,600.00,04/08/2016,R,RHYS JONES                    
362,Central Services,SupS Legal,Achieving for Children (AFC),E10295,Supplies & Services           ,Services                      ,DF11,Counsel's Fees                          ,570.00,15/07/2016,R,RACHAEL JAMES                 
363,Central Services,SupS Legal,Achieving for Children (AFC),E10295,Supplies & Services           ,Services                      ,DF11,Counsel's Fees                          ,570.00,13/07/2016,R,REDACTED
364,Central Services,SupS Legal,Achieving for Children (AFC),E10295,Supplies & Services           ,Services                      ,DF11,Counsel's Fees                          ,520.00,08/08/2016,R,RACHAEL JAMES                 
365,Central Services,SupS Legal,Achieving for Children (AFC),E10295,Supplies & Services           ,Services                      ,DF11,Counsel's Fees                          ,520.00,11/08/2016,R,RHYS JONES                    
366,Central Services,SupS Legal,Achieving for Children (AFC),E10295,Supplies & Services           ,Services                      ,DF11,Counsel's Fees                          ,510.00,08/07/2016,R,MISS CAROLYN PEARSON          
367,Central Services,SupS Legal,Achieving for Children (AFC),E10295,Supplies & Services           ,Services                      ,DF11,Counsel's Fees                          ,500.00,25/07/2016,R,REDACTED
368,Central Services,SupS Legal,Achieving for Children (AFC),E10295,Supplies & Services           ,Services                      ,DF11,Counsel's Fees                          ,500.00,25/07/2016,R,REDACTED
369,Central Services,SupS Legal,Achieving for Children (AFC),E10295,Supplies & Services           ,Services                      ,DF11,Counsel's Fees                          ,500.00,12/08/2016,R,REDACTED
370,Central Services,SupS Legal,Achieving for Children (AFC),E10295,Supplies & Services           ,Services                      ,DF14,Doctors and Other Fees                  ,"3,330.00",26/07/2016,R,DOMESTIC VIOLENCE INTERVENTION
371,Central Services,SupS Legal,Achieving for Children (AFC),E10295,Supplies & Services           ,Services                      ,DF14,Doctors and Other Fees                  ,"2,790.00",23/03/2016,R,DOMESTIC VIOLENCE INTERVENTION
372,Central Services,SupS Legal,Achieving for Children (AFC),E10295,Supplies & Services           ,Services                      ,DF14,Doctors and Other Fees                  ,"2,672.80",27/06/2016,R,THE LUCY FAITHFULL FOUNDATION 
373,Central Services,SupS Legal,Achieving for Children (AFC),E10295,Supplies & Services           ,Services                      ,DF14,Doctors and Other Fees                  ,"1,914.00",17/06/2016,R,NATIO RESOURCING LTD          
374,Central Services,SupS Legal,Achieving for Children (AFC),E10295,Supplies & Services           ,Services                      ,DF14,Doctors and Other Fees                  ,"1,540.50",27/07/2016,R,EXPERT IN MIND                
375,Central Services,SupS Legal,Achieving for Children (AFC),E10295,Supplies & Services           ,Services                      ,DF14,Doctors and Other Fees                  ,"1,216.80",02/08/2016,R,PARENTING PROFILES ASSOCIATES 
376,Central Services,SupS Legal,Achieving for Children (AFC),E10295,Supplies & Services           ,Services                      ,DF14,Doctors and Other Fees                  ,900.00,26/07/2016,R,DOMESTIC VIOLENCE INTERVENTION
377,Central Services,SupS Legal,Achieving for Children (AFC),E10295,Supplies & Services           ,Services                      ,DF14,Doctors and Other Fees                  ,748.80,09/08/2016,R,PARENTING PROFILES ASSOCIATES 
378,Central Services,SupS Legal,Achieving for Children (AFC),E10295,Supplies & Services           ,Services                      ,DF14,Doctors and Other Fees                  ,720.00,22/07/2016,R,EXPERT IN MIND                
379,Central Services,SupS Legal,Achieving for Children (AFC),E10295,Supplies & Services           ,Services                      ,DF14,Doctors and Other Fees                  ,681.45,22/07/2016,R,JOHN DOWSETT                  
380,Central Services,SupS Legal,Achieving for Children (AFC),E10295,Supplies & Services           ,Services                      ,DF14,Doctors and Other Fees                  ,675.00,11/07/2016,R,DR ROGER KENNEDY              
381,Central Services,SupS Legal,Achieving for Children (AFC),E10295,Supplies & Services           ,Services                      ,DF14,Doctors and Other Fees                  ,672.00,13/07/2016,R,EXPERT IN MIND                
382,Central Services,SupS Legal,Achieving for Children (AFC),E10295,Supplies & Services           ,Services                      ,DF14,Doctors and Other Fees                  ,648.00,18/07/2016,R,DR MARTIN LOCK                
383,Central Services,SupS Legal,Achieving for Children (AFC),E10295,Supplies & Services           ,Services                      ,DF95,Services from Provider                  ,815.36,21/07/2016,R,UBIQUS UK LTD                 
384,Central Services,SupS Legal,Achieving for Children (AFC),E10295,Supplies & Services           ,Services                      ,DF95,Services from Provider                  ,600.00,26/07/2016,R,RUSSELL -  COOKE LLP          
385,Central Services,SupS Legal,Wandsworth Project(SLLP),E10296,Supplies & Services           ,Comms and Computing           ,DG02,Software Licences                       ,"2,550.00",25/07/2016,R,LEXIS NEXIS                   
386,Central Services,SupS Payroll,Coroners Courts,E11300,Third Party Payments          ,Joint Authorities             ,EC11,SW Inner London Coroners Crt C          ,"117,521.78",15/07/2016,R,CITY OF WESTMINSTER           
387,Central Services,SupS IT,Social Care Info System (SCI)           ,E14357,Employees                     ,Direct Employee Expenses      ,AA17,Agency Staff & Casual Paymts            ,"4,600.00",21/07/2016,R,REDACTED
388,Central Services,SupS IT,Social Care Info System (SCI)           ,E14357,Employees                     ,Direct Employee Expenses      ,AA17,Agency Staff & Casual Paymts            ,"3,500.00",29/07/2016,R,NUMBER 10 INTERIM LTD         
389,Central Services,SupS IT,Social Care Info System (SCI)           ,E14357,Employees                     ,Direct Employee Expenses      ,AA17,Agency Staff & Casual Paymts            ,"3,450.00",12/08/2016,R,NUMBER 10 INTERIM LTD         
390,Central Services,SupS IT,Social Care Info System (SCI)           ,E14357,Employees                     ,Direct Employee Expenses      ,AA17,Agency Staff & Casual Paymts            ,"3,232.08",02/08/2016,R,REDACTED
391,Central Services,SupS IT,Social Care Info System (SCI)           ,E14357,Employees                     ,Direct Employee Expenses      ,AA17,Agency Staff & Casual Paymts            ,"3,150.00",15/07/2016,R,NUMBER 10 INTERIM LTD         
392,Central Services,SupS IT,Social Care Info System (SCI)           ,E14357,Employees                     ,Direct Employee Expenses      ,AA17,Agency Staff & Casual Paymts            ,"2,520.00",24/07/2016,R,HAMPTON'S RESOURCING          
393,Central Services,SupS IT,Social Care Info System (SCI)           ,E14357,Employees                     ,Direct Employee Expenses      ,AA17,Agency Staff & Casual Paymts            ,"2,500.00",18/07/2016,R,NUMBER 10 INTERIM LTD         
394,Central Services,SupS IT,Social Care Info System (SCI)           ,E14357,Employees                     ,Direct Employee Expenses      ,AA17,Agency Staff & Casual Paymts            ,"2,500.00",25/07/2016,R,NUMBER 10 INTERIM LTD         
395,Central Services,SupS IT,Social Care Info System (SCI)           ,E14357,Employees                     ,Direct Employee Expenses      ,AA17,Agency Staff & Casual Paymts            ,"2,500.00",02/08/2016,R,NUMBER 10 INTERIM LTD         
396,Central Services,SupS IT,Social Care Info System (SCI)           ,E14357,Employees                     ,Direct Employee Expenses      ,AA17,Agency Staff & Casual Paymts            ,"2,500.00",05/08/2016,R,NUMBER 10 INTERIM LTD         
397,Central Services,SupS IT,Social Care Info System (SCI)           ,E14357,Employees                     ,Direct Employee Expenses      ,AA17,Agency Staff & Casual Paymts            ,"2,500.00",15/08/2016,R,NUMBER 10 INTERIM LTD         
398,Central Services,SupS IT,Social Care Info System (SCI)           ,E14357,Employees                     ,Direct Employee Expenses      ,AA17,Agency Staff & Casual Paymts            ,"1,650.00",13/07/2016,R,NUMBER 10 INTERIM LTD         
399,Central Services,SupS IT,Social Care Info System (SCI)           ,E14357,Employees                     ,Direct Employee Expenses      ,AA17,Agency Staff & Casual Paymts            ,"1,610.00",22/07/2016,R,REDACTED
400,Central Services,SupS IT,Social Care Info System (SCI)           ,E14357,Employees                     ,Direct Employee Expenses      ,AA17,Agency Staff & Casual Paymts            ,"1,575.00",03/07/2016,R,HAMPTON'S RESOURCING          
401,Central Services,SupS IT,Social Care Info System (SCI)           ,E14357,Employees                     ,Direct Employee Expenses      ,AA17,Agency Staff & Casual Paymts            ,"1,575.00",31/07/2016,R,HAMPTON'S RESOURCING          
402,Central Services,SupS IT,Social Care Info System (SCI)           ,E14357,Employees                     ,Direct Employee Expenses      ,AA17,Agency Staff & Casual Paymts            ,"1,575.00",07/08/2016,R,HAMPTON'S RESOURCING          
403,Central Services,SupS IT,BI IT Projects,E14360,Employees                     ,Direct Employee Expenses      ,AA17,Agency Staff & Casual Paymts            ,"7,560.00",03/08/2016,R,REDACTED
404,Central Services,SupS IT,BI IT Projects,E14360,Employees                     ,Direct Employee Expenses      ,AA17,Agency Staff & Casual Paymts            ,"2,800.00",06/07/2016,R,REDACTED
405,Central Services,SupS IT,BI IT Projects,E14360,Employees                     ,Direct Employee Expenses      ,AA17,Agency Staff & Casual Paymts            ,"2,800.00",09/08/2016,R,REDACTED
406,Central Services,SupS IT,BI IT Projects,E14360,Employees                     ,Direct Employee Expenses      ,AA17,Agency Staff & Casual Paymts            ,"2,800.00",17/08/2016,R,REDACTED
407,Central Services,SupS IT,BI IT Projects,E14360,Employees                     ,Direct Employee Expenses      ,AA17,Agency Staff & Casual Paymts            ,"2,240.00",12/07/2016,R,REDACTED
408,Central Services,SupS IT,AD I&T,E14363,Employees                     ,Direct Employee Expenses      ,AA17,Agency Staff & Casual Paymts            ,"5,850.00",26/07/2016,R,REDACTED
409,Central Services,SupS IT,Systems & Projects,E14366,Employees                     ,Indirect Employee Expenses    ,AB02,Recruitment Adverts                     ,780.00,31/07/2016,R,TECHNOJOBS                    
410,Central Services,SupS IT,Systems & Projects,E14366,Supplies & Services           ,Services                      ,DF03,Consultants                             ,"5,600.00",01/08/2016,R,MARCUS DONALD PEOPLE LTD      
411,Central Services,SupS IT,Systems & Projects,E14366,Supplies & Services           ,Services                      ,DF03,Consultants                             ,"4,200.00",01/07/2016,R,MARCUS DONALD PEOPLE LTD      
412,Central Services,SupS IT,Systems & Projects,E14366,Supplies & Services           ,Comms and Computing           ,DG02,Software Licences                       ,"20,149.50",29/07/2016,R,FIRMSTEP                      
413,Central Services,SupS IT,Systems & Projects,E14366,Supplies & Services           ,Comms and Computing           ,DG02,Software Licences                       ,"5,283.09",12/08/2016,R,SITEIMPROVE LTD               
414,Central Services,SupS IT,Systems & Projects,E14366,Supplies & Services           ,Comms and Computing           ,DG02,Software Licences                       ,"3,000.00",17/08/2016,R,CIVICA UK LIMITED             
415,Central Services,SupS IT,Systems & Projects,E14366,Supplies & Services           ,Comms and Computing           ,DG07,Computer Software                       ,528.21,22/07/2016,R,CIVICA UK LIMITED             
416,Central Services,SupS IT,Systems & Projects,E14366,Supplies & Services           ,Comms and Computing           ,DG50,Other IT Expenditure                    ,"3,786.46",15/08/2016,R,TEAMKNOWLEDGE LIMITED         
417,Central Services,SupS IT,Systems & Projects,E14366,Supplies & Services           ,Comms and Computing           ,DG61,Computer Servs Special                  ,"9,021.00",29/06/2016,R,PITNEY BOWES SOFTWARE EUROPE  
418,Central Services,SupS IT,Systems & Projects,E14366,Supplies & Services           ,Comms and Computing           ,DG61,Computer Servs Special                  ,"7,600.00",28/06/2016,R,PITNEY BOWES SOFTWARE EUROPE  
419,Central Services,SupS IT,Operations & Telecomms,E14367,Supplies & Services           ,Services                      ,DF04,Miscellaneous Expenses                  ,"1,944.00",10/08/2016,R,COOLSPIRIT LIMITED            
420,Central Services,SupS IT,Operations & Telecomms,E14367,Supplies & Services           ,Comms and Computing           ,DG15,Network Maintenance                     ,"97,933.00",26/07/2016,R,CAPITA IT SERVICES (BSF) LTD  
421,Central Services,SupS IT,Operations & Telecomms,E14367,Supplies & Services           ,Comms and Computing           ,DG15,Network Maintenance                     ,"20,674.11",03/08/2016,R,VIRGIN MEDIA BUSINESS         
422,Central Services,SupS IT,Operations & Telecomms,E14367,Supplies & Services           ,Comms and Computing           ,DG15,Network Maintenance                     ,"4,865.66",11/08/2016,R,XGIS LTD                      
423,Central Services,SupS IT,Operations & Telecomms,E14367,Supplies & Services           ,Comms and Computing           ,DG54,Corporate Telephones                    ,"11,476.03",17/08/2016,R,ORANGE P'MENT PRO'SING AIRTIME
424,Central Services,SupS IT,Operations & Telecomms,E14367,Supplies & Services           ,Comms and Computing           ,DG54,Corporate Telephones                    ,"11,407.89",17/07/2016,R,ORANGE P'MENT PRO'SING AIRTIME
425,Central Services,SupS IT,Operations & Telecomms,E14367,Supplies & Services           ,Comms and Computing           ,DG54,Corporate Telephones                    ,"6,651.94",21/07/2016,R,BRITISH TELECOMMUNICATIONS PLC
426,Central Services,SupS IT,Operations & Telecomms,E14367,Supplies & Services           ,Comms and Computing           ,DG54,Corporate Telephones                    ,"5,019.86",02/08/2016,R,COLT TELECOMMUNICATIONS       
427,Central Services,SupS IT,Operations & Telecomms,E14367,Supplies & Services           ,Comms and Computing           ,DG54,Corporate Telephones                    ,751.18,26/07/2016,R,VIRGIN MEDIA PAYMENTS LTD     
428,Central Services,SupS IT,Operations & Telecomms,E14367,Supplies & Services           ,Comms and Computing           ,DG54,Corporate Telephones                    ,750.84,24/08/2016,R,VIRGIN MEDIA PAYMENTS LTD     
429,Central Services,SupS IT,Operations & Telecomms,E14367,Supplies & Services           ,Comms and Computing           ,DG54,Corporate Telephones                    ,726.56,02/08/2016,R,COLT TELECOMMUNICATIONS       
430,Central Services,SupS IT,Distributed Services,E14368,Supplies & Services           ,Comms and Computing           ,DG63,Software Licences - Data                ,"4,777.57",30/06/2016,R,CIVICA UK LIMITED             
431,Central Services,SupS IT,Distributed Services,E14368,Supplies & Services           ,Comms and Computing           ,DG63,Software Licences - Data                ,"2,354.74",30/06/2016,R,CIVICA UK LIMITED             
432,Central Services,SupS IT,Distributed Services,E14368,Supplies & Services           ,Comms and Computing           ,DG65,Application Licences                    ,"31,537.00",17/08/2016,R,NETCALL TELECOM LIMITED       
433,Central Services,SupS IT,Corp Saving-IT Consolidation,E14370,Premises Related Expenditure  ,RepairsAlterations&MtceOfBldgs,BA01,DDM - General Building                  ,"9,850.00",05/07/2016,R,LA BELLE ROOFING CO LTD       
434,Central Services,SupS IT,Corp Saving-IT Consolidation,E14370,Premises Related Expenditure  ,RepairsAlterations&MtceOfBldgs,BA01,DDM - General Building                  ,"5,910.00",09/08/2016,R,LA BELLE ROOFING CO LTD       
435,Central Services,SupS IT,Corp Saving-IT Consolidation,E14370,Premises Related Expenditure  ,RepairsAlterations&MtceOfBldgs,BA01,DDM - General Building                  ,"5,162.69",10/06/2016,R,ERGRO BUILDING SERVICES LTD   
436,Central Services,SupS IT,Corp Saving-IT Consolidation,E14370,Premises Related Expenditure  ,RepairsAlterations&MtceOfBldgs,BA01,DDM - General Building                  ,660.00,12/07/2016,R,D N H PROPERTY MAINTENANCE    
437,Central Services,SupS IT,Corp Saving-IT Consolidation,E14370,Premises Related Expenditure  ,RepairsAlterations&MtceOfBldgs,BA03,DDM - Mechanical                        ,"2,217.45",16/08/2016,R,BILFINGER EUROPA FACILITY     
438,Central Services,SupS IT,Corp Saving-IT Consolidation,E14370,Premises Related Expenditure  ,RepairsAlterations&MtceOfBldgs,BA89,Fire Safety Risk Assessment             ,"19,884.91",12/08/2016,R,SOUTHERN FIRE DOORS LTD       
439,Central Services,SupS IT,No longer used,E14371,Employees                     ,Direct Employee Expenses      ,AA17,Agency Staff & Casual Paymts            ,"12,600.00",01/08/2016,R,MILESTONES COMMUNICATIONS LTD 
440,Central Services,SupS IT,No longer used,E14371,Employees                     ,Direct Employee Expenses      ,AA17,Agency Staff & Casual Paymts            ,"3,300.00",27/07/2016,R,HAYS SPECIALIST RECRUITM'T LTD
441,Central Services,SupS IT,No longer used,E14371,Employees                     ,Direct Employee Expenses      ,AA17,Agency Staff & Casual Paymts            ,"3,300.00",27/07/2016,R,HAYS SPECIALIST RECRUITM'T LTD
442,Central Services,SupS IT,No longer used,E14371,Employees                     ,Direct Employee Expenses      ,AA17,Agency Staff & Casual Paymts            ,"3,300.00",27/07/2016,R,HAYS SPECIALIST RECRUITM'T LTD
443,Central Services,SupS IT,No longer used,E14371,Employees                     ,Direct Employee Expenses      ,AA17,Agency Staff & Casual Paymts            ,"3,300.00",12/08/2016,R,HAYS SPECIALIST RECRUITM'T LTD
444,Central Services,SupS IT,No longer used,E14371,Supplies & Services           ,Comms and Computing           ,DG50,Other IT Expenditure                    ,"15,000.00",10/08/2016,R,CIVICA UK LIMITED             
445,Central Services,SupS IT,CS Procurement,E14372,Employees                     ,Direct Employee Expenses      ,AA17,Agency Staff & Casual Paymts            ,"2,475.00",04/08/2016,R,HAYS SPECIALIST RECRUITM'T LTD
446,Central Services,SupS IT,CS Procurement,E14372,Employees                     ,Direct Employee Expenses      ,AA17,Agency Staff & Casual Paymts            ,"1,980.00",04/08/2016,R,HAYS SPECIALIST RECRUITM'T LTD
447,Central Services,SupS IT,CS Procurement,E14372,Employees                     ,Direct Employee Expenses      ,AA17,Agency Staff & Casual Paymts            ,"1,980.00",11/08/2016,R,HAYS SPECIALIST RECRUITM'T LTD
448,Cultural Env Reg&Plan Services,Mgt & Support (Env),Senior Mgt. - E.S.C.,G00100,Employees                     ,Direct Employee Expenses      ,AA17,Agency Staff & Casual Paymts            ,"1,411.76",21/06/2016,R,REDACTED
449,Cultural Env Reg&Plan Services,BC Regs & Other not split,HoS - PP&D                              ,G00111,Supplies & Services           ,Services                      ,DF11,Counsel's Fees                          ,650.00,11/08/2016,R,DICKON EDWARDS                
450,Highways & Transport Services,Hwys/Rds (struct) not split,C'way & F'way Mtce,G00121,Supplies & Services           ,Services                      ,DF57,Consulting Engineers Fees               ,"2,960.00",23/05/2016,R,METIS CONSULTANTS LIMITED     
451,Highways & Transport Services,Hwys/Rds (struct) not split,C'way & F'way Mtce,G00121,Supplies & Services           ,Services                      ,DF57,Consulting Engineers Fees               ,"1,500.00",29/04/2016,R,METIS CONSULTANTS LIMITED     
452,Highways & Transport Services,Hwys/Rds (struct) not split,Surf Water Drainage,G00123,Third Party Payments          ,Private Contractors           ,EH56,Carriageway/Fway Maint                  ,730.90,17/08/2016,R,FM CONWAY LTD                 
453,Highways & Transport Services,Repair prin/oth rds not split,Walk Sheets,G00127,Third Party Payments          ,Private Contractors           ,EH56,Carriageway/Fway Maint                  ,"35,796.49",05/08/2016,R,FM CONWAY LTD                 
454,Highways & Transport Services,Repair prin/oth rds not split,Walk Sheets,G00127,Third Party Payments          ,Private Contractors           ,EH56,Carriageway/Fway Maint                  ,"13,050.96",05/08/2016,R,FM CONWAY LTD                 
455,Highways & Transport Services,Repair prin/oth rds not split,Walk Sheets,G00127,Third Party Payments          ,Private Contractors           ,EH56,Carriageway/Fway Maint                  ,"4,816.88",09/08/2016,R,FM CONWAY LTD                 
456,Highways & Transport Services,Repair prin/oth rds not split,Walk Sheets,G00127,Third Party Payments          ,Private Contractors           ,EH56,Carriageway/Fway Maint                  ,"2,368.47",17/08/2016,R,FM CONWAY LTD                 
457,Highways & Transport Services,Repair prin/oth rds not split,Walk Sheets,G00127,Third Party Payments          ,Private Contractors           ,EH56,Carriageway/Fway Maint                  ,"1,849.21",17/08/2016,R,FM CONWAY LTD                 
458,Highways & Transport Services,Saf mtc prin/oth rds not split,Traffic Signs.,G00160,Third Party Payments          ,Private Contractors           ,EH01,Miscellaneous Agency Services           ,"3,000.00",05/08/2016,R,FM CONWAY LTD                 
459,Highways & Transport Services,Saf mtc prin/oth rds not split,Traffic Signs.,G00160,Third Party Payments          ,Private Contractors           ,EH01,Miscellaneous Agency Services           ,"2,223.86",05/08/2016,R,FM CONWAY LTD                 
460,Highways & Transport Services,Saf mtc prin/oth rds not split,Traffic Signs.,G00160,Third Party Payments          ,Private Contractors           ,EH01,Miscellaneous Agency Services           ,682.95,29/06/2016,R,SIGNWAY SUPPLIES              
461,Highways & Transport Services,Saf mtc prin/oth rds not split,Traffic Signs.,G00160,Third Party Payments          ,Private Contractors           ,EH02,Miscellaneous Hired Services            ,518.30,17/08/2016,R,FM CONWAY LTD                 
462,Highways & Transport Services,Saf mtc prin/oth rds not split,Traffic Signals .,G00170,Third Party Payments          ,Other Agencies                ,EJ57,Traffic Signals Control Unit            ,"72,476.07",28/07/2016,R,TRANSPORT FOR LONDON          
463,Highways & Transport Services,Transport Plg/Policy/Strategy,CPZ implementation & Consultat,G00211,Supplies & Services           ,Services                      ,DF02,Misc Advertising/Publicity              ,660.00,08/07/2016,R,NEWSQUEST MEDIA GROUP LTD     
464,Highways & Transport Services,Transport Plg/Policy/Strategy,CPZ implementation & Consultat,G00211,Supplies & Services           ,Services                      ,DF02,Misc Advertising/Publicity              ,516.00,24/06/2016,R,NEWSQUEST MEDIA GROUP LTD     
465,Highways & Transport Services,Transport Plg/Policy/Strategy,CPZ implementation & Consultat,G00211,Third Party Payments          ,Private Contractors           ,EH56,Carriageway/Fway Maint                  ,"21,137.31",05/08/2016,R,FM CONWAY LTD                 
466,Highways & Transport Services,Transport Plg/Policy/Strategy,CPZ implementation & Consultat,G00211,Third Party Payments          ,Private Contractors           ,EH56,Carriageway/Fway Maint                  ,"5,000.00",05/08/2016,R,FM CONWAY LTD                 
467,Highways & Transport Services,Transport Plg/Policy/Strategy,CPZ implementation & Consultat,G00211,Third Party Payments          ,Private Contractors           ,EH56,Carriageway/Fway Maint                  ,"2,688.61",05/08/2016,R,FM CONWAY LTD                 
468,Highways & Transport Services,Transport Plg/Policy/Strategy,CPZ implementation & Consultat,G00211,Third Party Payments          ,Private Contractors           ,EH56,Carriageway/Fway Maint                  ,"2,280.04",05/08/2016,R,FM CONWAY LTD                 
469,Highways & Transport Services,Transport Plg/Policy/Strategy,CPZ implementation & Consultat,G00211,Third Party Payments          ,Private Contractors           ,EH56,Carriageway/Fway Maint                  ,835.63,17/08/2016,R,FM CONWAY LTD                 
470,Highways & Transport Services,Transport Plg/Policy/Strategy,CPZ implementation & Consultat,G00211,Third Party Payments          ,Private Contractors           ,EH56,Carriageway/Fway Maint                  ,768.56,05/08/2016,R,FM CONWAY LTD                 
471,Highways & Transport Services,Transport Plg/Policy/Strategy,CPZ implementation & Consultat,G00211,Third Party Payments          ,Private Contractors           ,EH56,Carriageway/Fway Maint                  ,600.00,05/08/2016,R,FM CONWAY LTD                 
472,Highways & Transport Services,Structural Maintenance,Bushy/Waite/Goat Bridges TFL            ,G00215,Third Party Payments          ,Private Contractors           ,EH56,Carriageway/Fway Maint                  ,"29,000.00",24/03/2016,R,FM CONWAY LTD                 
473,Highways & Transport Services,Street Lighting.,Street Lighting .,G00260,Premises Related Expenditure  ,Energy Costs                  ,BB02,Electricity                             ,"34,364.39",15/08/2016,R,SCOTTISH POWER                
474,Highways & Transport Services,Street Lighting.,Street Lighting .,G00260,Third Party Payments          ,Private Contractors           ,EH01,Miscellaneous Agency Services           ,"13,182.00",29/06/2016,R,KIER INTEGRATED SERVICES LTD  
475,Highways & Transport Services,Street Lighting.,Street Lighting .,G00260,Third Party Payments          ,Private Contractors           ,EH01,Miscellaneous Agency Services           ,"2,930.98",28/07/2016,R,KIER INTEGRATED SERVICES LTD  
476,Highways & Transport Services,Street Lighting.,Street Lighting .,G00260,Third Party Payments          ,Private Contractors           ,EH01,Miscellaneous Agency Services           ,"1,648.00",23/03/2016,R,UK POWER NETWORKS (OPERATIONS)
477,Highways & Transport Services,Street Lighting.,Street Lighting .,G00260,Third Party Payments          ,Private Contractors           ,EH01,Miscellaneous Agency Services           ,627.40,28/07/2016,R,KIER INTEGRATED SERVICES LTD  
478,Highways & Transport Services,Off-street parking,Car Parks (Unloc),G00291,Premises Related Expenditure  ,RepairsAlterations&MtceOfBldgs,BA06,REPAIRS & MAINTENANCE GENERAL           ,"1,727.64",28/07/2016,R,KIER INTEGRATED SERVICES LTD  
479,Highways & Transport Services,Off-street parking,Car Parks (Unloc),G00291,Third Party Payments          ,Private Contractors           ,EH02,Miscellaneous Hired Services            ,"3,666.00",31/07/2016,R,COBALT TELEPHONE TECHNOLOGIES 
480,Highways & Transport Services,On-street parking,On Street Parking.,G00311,Premises Related Expenditure  ,RepairsAlterations&MtceOfBldgs,BA06,REPAIRS & MAINTENANCE GENERAL           ,"3,023.43",09/08/2016,R,FM CONWAY LTD                 
481,Highways & Transport Services,CYCLIST TRAINER,CYCLIST TRAINER,G00328,Third Party Payments          ,Private Contractors           ,EH10,Contract Payments                       ,"7,128.67",01/08/2016,R,CYCLE CONFIDENT               
482,Highways & Transport Services,Parking Enforcement not split,Operational Running Costs,G00331,Supplies & Services           ,Equip Furniture/Materials     ,DA09,Equip-Purchases                         ,"3,940.00",24/08/2016,R,PARKEON LTD                   
483,Highways & Transport Services,Parking Enforcement not split,Operational Running Costs,G00331,Supplies & Services           ,Equip Furniture/Materials     ,DA09,Equip-Purchases                         ,"1,420.00",18/07/2016,R,PARKEON LTD                   
484,Highways & Transport Services,Parking Enforcement not split,Operational Running Costs,G00331,Supplies & Services           ,Equip Furniture/Materials     ,DA09,Equip-Purchases                         ,587.00,21/06/2016,R,PARKEON LTD                   
485,Highways & Transport Services,Parking Enforcement not split,Operational Running Costs,G00331,Supplies & Services           ,Prntng Stnry Gen Off Exp      ,DE01,External Printing                       ,"2,784.60",03/08/2016,R,NAGELS UK LTD                 
486,Highways & Transport Services,Parking Enforcement not split,Operational Running Costs,G00331,Supplies & Services           ,Services                      ,DF95,Services from Provider                  ,577.50,28/07/2016,R,BEVAN BRITTAN                 
487,Highways & Transport Services,Parking Enforcement not split,Operational Running Costs,G00331,Supplies & Services           ,Comms and Computing           ,DG56,SRF Work                                ,"9,840.00",18/08/2016,R,TOTAL COMPUTER NETWORKS       
488,Highways & Transport Services,Parking Enforcement not split,Operational Running Costs,G00331,Supplies & Services           ,Comms and Computing           ,DG61,Computer Servs Special                  ,"3,500.00",30/06/2016,R,PITNEY BOWES SOFTWARE EUROPE  
489,Highways & Transport Services,Parking Enforcement not split,Operational Running Costs,G00331,Third Party Payments          ,Other Agencies                ,EJ58,Parking Cttee for London                ,"1,500.00",20/07/2016,R,LONDON COUNCILS               
490,Highways & Transport Services,Hwys/Rds (struct) not split,Footpath Crossings.,G00390,Third Party Payments          ,Private Contractors           ,EH56,Carriageway/Fway Maint                  ,"26,801.37",05/08/2016,R,FM CONWAY LTD                 
491,Highways & Transport Services,Hwys/Rds (struct) not split,Footpath Crossings.,G00390,Third Party Payments          ,Private Contractors           ,EH56,Carriageway/Fway Maint                  ,"10,765.81",17/08/2016,R,FM CONWAY LTD                 
492,Highways & Transport Services,Hwys/Rds (struct) not split,Footpath Crossings.,G00390,Third Party Payments          ,Private Contractors           ,EH56,Carriageway/Fway Maint                  ,"9,465.32",17/08/2016,R,FM CONWAY LTD                 
493,Highways & Transport Services,Hwys/Rds (struct) not split,Footpath Crossings.,G00390,Third Party Payments          ,Private Contractors           ,EH56,Carriageway/Fway Maint                  ,"5,914.32",05/08/2016,R,FM CONWAY LTD                 
494,Highways & Transport Services,Hwys/Rds (struct) not split,Footpath Crossings.,G00390,Third Party Payments          ,Private Contractors           ,EH56,Carriageway/Fway Maint                  ,"2,501.15",09/08/2016,R,FM CONWAY LTD                 
495,Highways & Transport Services,Hwys/Rds (struct) not split,Footpath Crossings.,G00390,Third Party Payments          ,Private Contractors           ,EH56,Carriageway/Fway Maint                  ,894.23,09/08/2016,R,FM CONWAY LTD                 
496,Highways & Transport Services,Hwys/Rds (struct) not split,Footpath Crossings.,G00390,Third Party Payments          ,Private Contractors           ,EH56,Carriageway/Fway Maint                  ,693.00,29/07/2016,R,UK POWER NETWORKS (OPERATIONS)
497,Highways & Transport Services,Hwys/Rds (struct) not split,Footpath Crossings.,G00390,Third Party Payments          ,Private Contractors           ,EH56,Carriageway/Fway Maint                  ,693.00,10/08/2016,R,UK POWER NETWORKS (OPERATIONS)
498,Highways & Transport Services,Hwys/Rds (struct) not split,Footpath Crossings.,G00390,Third Party Payments          ,Private Contractors           ,EH56,Carriageway/Fway Maint                  ,596.28,28/07/2016,R,KIER INTEGRATED SERVICES LTD  
499,Cultural Env Reg&Plan Services,Street Clean - Not highways,Street Cleansing (Inc. Gully),G00492,Supplies & Services           ,Equip Furniture/Materials     ,DA03,Hire of Equipment                       ,"1,380.00",26/07/2016,R,COMCIR RADIO COMMUNICATIONS LT
500,Cultural Env Reg&Plan Services,Street Clean - Not highways,Street Cleansing (Inc. Gully),G00492,Supplies & Services           ,Equip Furniture/Materials     ,DA03,Hire of Equipment                       ,700.00,26/07/2016,R,COMCIR RADIO COMMUNICATIONS LT
501,Cultural Env Reg&Plan Services,Street Clean - Not highways,Street Cleansing (Inc. Gully),G00492,Supplies & Services           ,Equip Furniture/Materials     ,DA31,Waste Sacks & Bags                      ,"1,263.40",04/07/2016,R,R.J.H.WELDING                 
502,Cultural Env Reg&Plan Services,Street Clean - Not highways,Street Cleansing (Inc. Gully),G00492,Supplies & Services           ,Clothing Unfrms Laundry       ,DC02,Clothing & Uniforms                     ,"2,995.00",29/07/2016,R,GREENHAM TRADING LTD          
503,Cultural Env Reg&Plan Services,Street Clean - Not highways,Street Cleansing (Inc. Gully),G00492,Supplies & Services           ,Services                      ,DF04,Miscellaneous Expenses                  ,950.00,01/06/2016,R,FREIGHT TRANSPORT ASSOCIATION 
504,Cultural Env Reg&Plan Services,Waste Disposal (not separated),Waste Disposal .,G00550,Third Party Payments          ,Private Contractors           ,EH04,C1 Viridor SLWP Landfill Contract       ,"367,130.60",28/07/2016,R,KINGSTON CORPORATION          
505,Cultural Env Reg&Plan Services,Waste Disposal (not separated),Waste Disposal .,G00550,Third Party Payments          ,Private Contractors           ,EH04,C1 Viridor SLWP Landfill Contract       ,"9,172.40",28/07/2016,R,KINGSTON CORPORATION          
506,Cultural Env Reg&Plan Services,Waste Disposal (not separated),Waste Disposal .,G00550,Third Party Payments          ,Private Contractors           ,EH97,Waste Disposal - Tyres                  ,"2,500.00",24/08/2016,R,FM CONWAY LTD                 
507,Cultural Env Reg&Plan Services,Waste Disposal (not separated),Waste Disposal .,G00550,Third Party Payments          ,Private Contractors           ,EH97,Waste Disposal - Tyres                  ,"1,734.74",29/07/2016,R,FM CONWAY LTD                 
508,Cultural Env Reg&Plan Services,Waste Disposal (not separated),Waste Disposal .,G00550,Third Party Payments          ,Private Contractors           ,EH97,Waste Disposal - Tyres                  ,"1,182.38",24/08/2016,R,FM CONWAY LTD                 
509,Cultural Env Reg&Plan Services,Waste Disposal (not separated),Waste Disposal .,G00550,Third Party Payments          ,Other Agencies                ,EJ50,LWRA Hazardous Waste Disposal           ,"4,898.41",21/07/2016,R,CITY OF LONDON CORPORATION    
510,Cultural Env Reg&Plan Services,Civic Amenity Sites,Garth Road Site,G00580,Premises Related Expenditure  ,RepairsAlterations&MtceOfBldgs,BA01,DDM - General Building                  ,"1,236.25",29/07/2016,R,ERGRO BUILDING SERVICES LTD   
511,Cultural Env Reg&Plan Services,Civic Amenity Sites,Garth Road Site,G00580,Premises Related Expenditure  ,Water Services                ,BE01,Use of Water (Metered)                  ,(626.59),29/07/2016,R,SUTTON AND EAST SURREY WATER  
512,Cultural Env Reg&Plan Services,Civic Amenity Sites,Garth Road Site,G00580,Third Party Payments          ,Private Contractors           ,EH04,C1 Viridor SLWP Landfill Contract       ,"20,209.64",28/07/2016,R,KINGSTON CORPORATION          
513,Cultural Env Reg&Plan Services,Civic Amenity Sites,Garth Road Site,G00580,Third Party Payments          ,Private Contractors           ,EH18,SLWP C3 Food Waste Gate Fees            ,"7,513.29",28/07/2016,R,KINGSTON CORPORATION          
514,Cultural Env Reg&Plan Services,Civic Amenity Sites,Garth Road Site,G00580,Third Party Payments          ,Private Contractors           ,EH61,Green Waste Disposal                    ,"7,817.21",28/07/2016,R,KINGSTON CORPORATION          
515,Cultural Env Reg&Plan Services,Civic Amenity Sites,Garth Road Site,G00580,Third Party Payments          ,Private Contractors           ,EH94,Waste Disposal - Alt. Site              ,533.57,28/07/2016,R,KINGSTON CORPORATION          
516,Cultural Env Reg&Plan Services,Public Health,Dog Control.,G00620,Third Party Payments          ,Private Contractors           ,EH02,Miscellaneous Hired Services            ,"1,918.00",03/08/2016,R,NOAH'S ARK ENVIRONMENTAL SERV.
517,Cultural Env Reg&Plan Services,Recycling (Collection),Recycling Activities,G00640,Supplies & Services           ,Equip Furniture/Materials     ,DA32,Wheeled Bins                            ,"2,298.50",26/07/2016,R,BIBBY FACTORS MANCHESTER LTD  
518,Cultural Env Reg&Plan Services,Recycling (Collection),Recycling Activities,G00640,Supplies & Services           ,Equip Furniture/Materials     ,DA32,Wheeled Bins                            ,940.50,01/08/2016,R,UK CONTAINER MAINTENANCE LTD  
519,Cultural Env Reg&Plan Services,Recycling (Collection),Recycling Activities,G00640,Supplies & Services           ,Equip Furniture/Materials     ,DA32,Wheeled Bins                            ,919.40,19/05/2016,R,BIBBY FACTORS MANCHESTER LTD  
520,Cultural Env Reg&Plan Services,Recycling (Collection),Recycling Activities,G00640,Supplies & Services           ,Equip Furniture/Materials     ,DA32,Wheeled Bins                            ,895.50,01/08/2016,R,UK CONTAINER MAINTENANCE LTD  
521,Cultural Env Reg&Plan Services,Recycling (Collection),Recycling Activities,G00640,Third Party Payments          ,Private Contractors           ,EH08,SLWP C1 Haulage Dry Recyclable          ,"29,938.11",28/07/2016,R,KINGSTON CORPORATION          
522,Cultural Env Reg&Plan Services,Recycling (Collection),Recycling Activities,G00640,Third Party Payments          ,Private Contractors           ,EH08,SLWP C1 Haulage Dry Recyclable          ,880.00,28/07/2016,R,KINGSTON CORPORATION          
523,Cultural Env Reg&Plan Services,Recycling (Collection),Recycling Activities,G00640,Third Party Payments          ,Private Contractors           ,EH94,Waste Disposal - Alt. Site              ,"6,513.89",28/07/2016,R,KINGSTON CORPORATION          
524,Cultural Env Reg&Plan Services,Recycling (Collection),BARROW AND BINS REPLACEMENT,G00641,Supplies & Services           ,Equip Furniture/Materials     ,DA53,Specialist Equipment                    ,"11,980.00",16/06/2016,R,GLASDON UK LTD                
525,Cultural Env Reg&Plan Services,Recycling (Collection),BARROW AND BINS REPLACEMENT,G00641,Supplies & Services           ,Equip Furniture/Materials     ,DA54,GREEN KERBSIDE RECYCLING BOXES          ,"6,426.00",08/08/2016,R,STRAIGHT MANUFACTURING LTD    
526,Cultural Env Reg&Plan Services,Recycling (Collection),BARROW AND BINS REPLACEMENT,G00641,Supplies & Services           ,Equip Furniture/Materials     ,DA54,GREEN KERBSIDE RECYCLING BOXES          ,"3,213.00",29/07/2016,R,STRAIGHT MANUFACTURING LTD    
527,Cultural Env Reg&Plan Services,Recycling (Collection),Recycling Collection,G00645,Supplies & Services           ,Clothing Unfrms Laundry       ,DC02,Clothing & Uniforms                     ,"1,353.99",09/08/2016,R,GREENHAM                      
528,Cultural Env Reg&Plan Services,Recycling (Collection),Recycling Collection,G00645,Supplies & Services           ,Clothing Unfrms Laundry       ,DC02,Clothing & Uniforms                     ,832.60,29/07/2016,R,GREENHAM TRADING LTD          
529,Cultural Env Reg&Plan Services,Recycling (Collection),Recycling Collection,G00645,Supplies & Services           ,Clothing Unfrms Laundry       ,DC02,Clothing & Uniforms                     ,726.60,28/07/2016,R,GREENHAM TRADING LTD          
530,Cultural Env Reg&Plan Services,Recycling (Collection),Recycling Collection,G00645,Supplies & Services           ,Clothing Unfrms Laundry       ,DC02,Clothing & Uniforms                     ,719.10,12/08/2016,R,GREENHAM                      
531,Cultural Env Reg&Plan Services,Recycling (Collection),Garden Waste Service,G00647,Third Party Payments          ,Private Contractors           ,EH61,Green Waste Disposal                    ,"14,179.18",28/07/2016,R,KINGSTON CORPORATION          
532,Cultural Env Reg&Plan Services,Recycling (Collection),Food Waste Service,G00648,Third Party Payments          ,Private Contractors           ,EH19,SLWP C3 FOOD WASTE HAULAGE              ,"2,911.00",28/07/2016,R,KINGSTON CORPORATION          
533,Cultural Env Reg&Plan Services,Recycling (Collection),Food Waste Service,G00648,Third Party Payments          ,Private Contractors           ,EH19,SLWP C3 FOOD WASTE HAULAGE              ,"2,724.70",28/07/2016,R,KINGSTON CORPORATION          
534,Cultural Env Reg&Plan Services,Recycling (Collection),Food Waste Serv(LWARB funding),G00649,Supplies & Services           ,Equip Furniture/Materials     ,DA31,Waste Sacks & Bags                      ,"6,861.00",25/07/2016,R,SPHERE PROFFESSIONAL          
535,Cultural Env Reg&Plan Services,Recycling (Collection),Food Waste Serv(LWARB funding),G00649,Supplies & Services           ,Equip Furniture/Materials     ,DA31,Waste Sacks & Bags                      ,"2,265.00",25/07/2016,R,SPHERE PROFFESSIONAL          
536,Cultural Env Reg&Plan Services,Household Waste Collection,Refuse Collection (Operations),G00661,Transport Related Expenditure ,Direct Transport Costs        ,CA52,Reps Vehicles Ins Claims                ,"1,500.00",26/07/2016,R,S.E.T.S SERVICES              
537,Cultural Env Reg&Plan Services,Household Waste Collection,Refuse Collection (Operations),G00661,Supplies & Services           ,Equip Furniture/Materials     ,DA31,Waste Sacks & Bags                      ,632.50,10/08/2016,R,IMPERIAL POLYTHENE PRODUCTS LT
538,Cultural Env Reg&Plan Services,Household Waste Collection,Refuse Collection (Operations),G00661,Supplies & Services           ,Clothing Unfrms Laundry       ,DC02,Clothing & Uniforms                     ,688.00,02/08/2016,R,GREENHAM TRADING LTD          
539,Cultural Env Reg&Plan Services,Trade Waste Collection,Commercial Waste,G00663,Supplies & Services           ,Equip Furniture/Materials     ,DA31,Waste Sacks & Bags                      ,"4,597.00",22/06/2016,R,BIBBY FACTORS MANCHESTER LTD  
540,Cultural Env Reg&Plan Services,Trade Waste Collection,Commercial Waste,G00663,Supplies & Services           ,Equip Furniture/Materials     ,DA31,Waste Sacks & Bags                      ,"2,298.50",26/07/2016,R,BIBBY FACTORS MANCHESTER LTD  
541,Cultural Env Reg&Plan Services,Trade Waste Collection,Commercial Waste,G00663,Supplies & Services           ,Equip Furniture/Materials     ,DA32,Wheeled Bins                            ,"2,298.50",22/07/2016,R,BIBBY FACTORS MANCHESTER LTD  
542,Cultural Env Reg&Plan Services,Trade Waste Collection,Commercial Waste,G00663,Third Party Payments          ,Private Contractors           ,EH04,C1 Viridor SLWP Landfill Contract       ,"35,397.92",28/07/2016,R,KINGSTON CORPORATION          
543,Cultural Env Reg&Plan Services,Trade Waste Collection,Commercial Waste,G00663,Third Party Payments          ,Private Contractors           ,EH08,SLWP C1 Haulage Dry Recyclable          ,"1,215.28",28/07/2016,R,KINGSTON CORPORATION          
544,Cultural Env Reg&Plan Services,Household Waste Collection,Phase C Procurement                     ,G00667,Supplies & Services           ,Services                      ,DF05,Surveys (General)                       ,"2,580.00",01/08/2016,R,GREEN BOX SURVEYS LTD         
545,Cultural Env Reg&Plan Services,Street Clean - Not highways,Waste Enforcement,G00680,Third Party Payments          ,Private Contractors           ,EH02,Miscellaneous Hired Services            ,"26,946.61",30/06/2016,R,KINGDOM SECURITY              
546,Cultural Env Reg&Plan Services,Street Clean - Not highways,Waste Enforcement,G00680,Third Party Payments          ,Private Contractors           ,EH02,Miscellaneous Hired Services            ,"22,846.91",31/07/2016,R,KINGDOM SECURITY              
547,Cultural Env Reg&Plan Services,Street Clean - Not highways,Waste Enforcement,G00680,Third Party Payments          ,Private Contractors           ,EH02,Miscellaneous Hired Services            ,"8,305.14",31/05/2016,R,KINGDOM SECURITY              
548,Cultural Env Reg&Plan Services,Street Clean - Not highways,Waste Enforcement,G00680,Third Party Payments          ,Private Contractors           ,EH02,Miscellaneous Hired Services            ,"4,805.34",31/05/2016,R,KINGDOM SECURITY              
549,Cultural Env Reg&Plan Services,Food Safety,Health & Safety,G00697,Third Party Payments          ,Private Contractors           ,EH10,Contract Payments                       ,"2,112.00",25/07/2016,R,PUBLIC ANALYST SCIENTIFIC SER.
550,Cultural Env Reg&Plan Services,Mortuaries,Mortuary,G00700,Third Party Payments          ,Private Contractors           ,EH01,Miscellaneous Agency Services           ,"14,532.00",29/07/2016,R,ST GEORGES UNI HOSP NHS F'DN T
551,Cultural Env Reg&Plan Services,Mortuaries,Mortuary,G00700,Third Party Payments          ,Private Contractors           ,EH01,Miscellaneous Agency Services           ,"4,731.00",29/07/2016,R,ST GEORGES UNI HOSP NHS F'DN T
552,Cultural Env Reg&Plan Services,Housing Standards,Housing/Env,G00730,Supplies & Services           ,Equip Furniture/Materials     ,DA09,Equip-Purchases                         ,755.00,03/08/2016,R,CAMPBELL ASSOCIATES           
553,Cultural Env Reg&Plan Services,Mgt & Support (Env),Waste Management,G00900,Supplies & Services           ,Grants and Subscriptions      ,DJ54,Contributions                           ,555.00,14/07/2016,R,RICS BUSINESS SERVICE LTD     
554,Cultural Env Reg&Plan Services,Mgt & Support (Env),SLWP (rechargeable)                     ,G00905,Supplies & Services           ,Services                      ,DF03,Consultants                             ,"3,273.75",29/07/2016,R,BRAND NARRATIVE LIMITED       
555,Central Services,SupS Env and Regen,LBR - Pollution                         ,G01004,Supplies & Services           ,Equip Furniture/Materials     ,DA02,Op. Leasing Equipment                   ,"1,790.58",29/06/2016,R,MARTIN CRANFIELD ASSOCIATES LT
556,Central Services,SupS Env and Regen,LBR - Pollution                         ,G01004,Supplies & Services           ,Services                      ,DF03,Consultants                             ,"12,000.00",08/07/2016,R,STM ENVIRONMENTAL CONSULTANTS 
557,Central Services,Grants - Voluntary Groups,Vestry Hall,G19290,Premises Related Expenditure  ,RepairsAlterations&MtceOfBldgs,BA79,Security of Premises                    ,"5,565.40",10/08/2016,R,KINGDOM SECURITY              
558,Central Services,Grants - Voluntary Groups,Vestry Hall,G19290,Premises Related Expenditure  ,RepairsAlterations&MtceOfBldgs,BA79,Security of Premises                    ,"5,565.40",10/07/2016,R,KINGDOM SECURITY              
559,Central Services,Grants - Voluntary Groups,Vestry Hall,G19290,Premises Related Expenditure  ,RepairsAlterations&MtceOfBldgs,BA79,Security of Premises                    ,"1,099.00",30/04/2016,R,KINGDOM SECURITY LTD          
560,Central Services,Grants - Voluntary Groups,Vestry Hall,G19290,Premises Related Expenditure  ,RepairsAlterations&MtceOfBldgs,BA79,Security of Premises                    ,991.10,31/07/2016,R,KINGDOM SECURITY LTD          
561,Central Services,Grants - Voluntary Groups,Vestry Hall,G19290,Premises Related Expenditure  ,Water Services                ,BE01,Use of Water (Metered)                  ,795.37,01/08/2016,R,THAMES WATER UTILITIES LTD    
562,Central Services,Grants - Voluntary Groups,Vestry Hall,G19290,Premises Related Expenditure  ,Cleaning and Domestic Supplies,BH03,Cleaning Services                       ,"1,934.45",01/08/2016,R,BIRKIN CLEANING SERVICES LTD  
563,Highways & Transport Services,Transport Plg/Policy/Strategy,Transport Planning,H01070,Supplies & Services           ,Prntng Stnry Gen Off Exp      ,DE30,General Office Expense                  ,539.00,29/07/2016,R,UNIQUE OFFICE SOLUTIONS LTD   
564,Highways & Transport Services,Transport Plg/Policy/Strategy,Morden Town Centre TFL                  ,H01078,Third Party Payments          ,Private Contractors           ,EH10,Contract Payments                       ,"9,964.00",17/05/2016,R,TRANSP'T & TRAVEL RESEARCH LTD
565,Cultural Env Reg&Plan Services,Transport Plg/Policy/Strategy,Developing the Tram TFL,H01081,Third Party Payments          ,Private Contractors           ,EH10,Contract Payments                       ,"2,400.00",17/05/2016,R,TRANSP'T & TRAVEL RESEARCH LTD
566,Highways & Transport Services,Safe routes inc schl x patrol,School & Road Safety TFL                ,H01083,Supplies & Services           ,Equip Furniture/Materials     ,DA04,Materials                               ,"2,413.50",25/08/2016,R,TRAFFIC TECHNOLOGY LTD        
567,Highways & Transport Services,Safe routes inc schl x patrol,School & Road Safety TFL                ,H01083,Supplies & Services           ,Equip Furniture/Materials     ,DA04,Materials                               ,510.00,03/08/2016,R,BIKEWIZE MOTORCYCLE TRAINING  
568,Cultural Env Reg&Plan Services,BC Regs & Other not split,Building Control,H01100,Supplies & Services           ,Prntng Stnry Gen Off Exp      ,DE03,Stationery                              ,"1,083.33",19/07/2016,R,ROTADEX SYSTEMS LTD           
569,Cultural Env Reg&Plan Services,DC Advice Apps & Reg not split,Development Control,H01130,Supplies & Services           ,Services                      ,DF02,Misc Advertising/Publicity              ,648.00,30/06/2016,R,NEWSQUEST MEDIA GROUP LTD     
570,Cultural Env Reg&Plan Services,DC Advice Apps & Reg not split,Development Control,H01130,Supplies & Services           ,Services                      ,DF02,Misc Advertising/Publicity              ,576.00,29/07/2016,R,NEWSQUEST MEDIA GROUP LTD     
571,Cultural Env Reg&Plan Services,DC Advice Apps & Reg not split,Development Control,H01130,Supplies & Services           ,Services                      ,DF03,Consultants                             ,"4,200.00",16/08/2016,R,SARAH TANBURN ASSOCIATES LTD  
572,Cultural Env Reg&Plan Services,DC Advice Apps & Reg not split,Development Control,H01130,Supplies & Services           ,Comms and Computing           ,DG09,Computer Purchases - Misc               ,750.00,10/08/2016,R,NORTHGATE PUBLIC SERV (UK) LTD
573,Cultural Env Reg&Plan Services,Planning Policy not split,REGENERATION & INVESTMENT,H01174,Supplies & Services           ,Services                      ,DF02,Misc Advertising/Publicity              ,"1,096.00",23/08/2016,R,BAY MEDIA (OUTDOOR)LTD        
574,Cultural Env Reg&Plan Services,Economic Dev (Not separated),NHB-Morden Shopping Parades             ,H01190,Supplies & Services           ,Services                      ,DF03,Consultants                             ,975.00,02/08/2016,R,URBAN ENTERPRISE NETWORK      
575,Cultural Env Reg&Plan Services,Economic Dev (Not separated),NHB-Morden Shopping Parades             ,H01190,Supplies & Services           ,Services                      ,DF03,Consultants                             ,650.00,15/07/2016,R,URBAN ENTERPRISE NETWORK      
576,Cultural Env Reg&Plan Services,Economic Dev (Not separated),NHB-Morden Shopping Parades             ,H01190,Third Party Payments          ,Private Contractors           ,EH10,Contract Payments                       ,"17,151.00",21/06/2016,R,JAN KATTEIN ARCHITECTS        
577,Cultural Env Reg&Plan Services,Economic Dev (Not separated),LABGI-BUSINESS SUPPORT SERVICE,H01219,Third Party Payments          ,Private Contractors           ,EH02,Miscellaneous Hired Services            ,"50,000.00",07/04/2016,R,MERTON CHAMBER OF COMMERCE    
578,Cultural Env Reg&Plan Services,Economic Dev (Not separated),Capt Ambition-Suburban Opprt Z,H01231,Supplies & Services           ,Prntng Stnry Gen Off Exp      ,DE22,Marketing                               ,550.00,21/07/2016,R,TA2                           
579,Cultural Env Reg&Plan Services,Economic Dev (Not separated),Capt Ambition-Suburban Opprt Z,H01231,Supplies & Services           ,Services                      ,DF35,Graphic Design                          ,950.00,21/07/2016,R,TA2                           
580,Cultural Env Reg&Plan Services,Economic Dev (Not separated),Capt Ambition-Suburban Opprt Z,H01231,Supplies & Services           ,Grants and Subscriptions      ,DJ04,Subscriptions                           ,"3,600.00",02/08/2016,R,COSTAR UK LTD                 
581,Cultural Env Reg&Plan Services,Economic Dev (Not separated),Capt Ambition-Suburban Opprt Z,H01231,Supplies & Services           ,Grants and Subscriptions      ,DJ54,Contributions                           ,"5,870.00",25/07/2016,R,RADIANT BLINDS                
582,Cultural Env Reg&Plan Services,Economic Dev (Not separated),Employability & Skills (S106),H01235,Supplies & Services           ,Grants and Subscriptions      ,DJ01,Grants                                  ,"10,000.00",18/08/2016,R,IT�S WIMBLEDON VILLAGE BUS.ASS
583,CS -Oth Operating Inc & Expend,T/A Vehicle Maintenance etc,Transport-Contract Hire,J01374,Employees                     ,Direct Employee Expenses      ,AA17,Agency Staff & Casual Paymts            ,"10,440.00",03/08/2016,R,PENNA PLC                     
584,CS -Oth Operating Inc & Expend,T/A Vehicle Maintenance etc,Transport-Contract Hire,J01374,Transport Related Expenditure ,Direct Transport Costs        ,CA01,Petrol Derv & Oil                       ,"30,327.50",29/07/2016,R,EMO OILS LTD                  
585,CS -Oth Operating Inc & Expend,T/A Vehicle Maintenance etc,Transport-Contract Hire,J01374,Transport Related Expenditure ,Direct Transport Costs        ,CA01,Petrol Derv & Oil                       ,649.12,09/08/2016,R,B P OIL UK LIMITED            
586,CS -Oth Operating Inc & Expend,T/A Vehicle Maintenance etc,Transport-Contract Hire,J01374,Transport Related Expenditure ,Contract Hire and Op Leasing  ,CC53,Plant Hire for MRCS                     ,"3,192.00",03/08/2016,R,RIVERSIDE TRUCK RENTAL LTD    
587,CS -Oth Operating Inc & Expend,T/A Vehicle Maintenance etc,Transport-Contract Hire,J01374,Transport Related Expenditure ,Contract Hire and Op Leasing  ,CC53,Plant Hire for MRCS                     ,"3,024.00",29/07/2016,R,RIVERSIDE TRUCK RENTAL LTD    
588,CS -Oth Operating Inc & Expend,T/A Vehicle Maintenance etc,Transport-Contract Hire,J01374,Transport Related Expenditure ,Contract Hire and Op Leasing  ,CC53,Plant Hire for MRCS                     ,929.82,09/06/2016,R,GULLIVER'S TRUCK HIRE LTD.    
589,CS -Oth Operating Inc & Expend,T/A Vehicle Maintenance etc,Transport-Contract Hire,J01374,Transport Related Expenditure ,Contract Hire and Op Leasing  ,CC53,Plant Hire for MRCS                     ,693.00,31/07/2016,R,E H ROBERTS                   
590,CS -Oth Operating Inc & Expend,T/A Vehicle Maintenance etc,Transport-Contract Hire,J01374,Transport Related Expenditure ,Contract Hire and Op Leasing  ,CC56,Plant Hire for Leisure                  ,585.00,31/07/2016,R,E H ROBERTS                   
591,CS -Oth Operating Inc & Expend,T/A Vehicle Maintenance etc,Transport-Contract Hire,J01374,Transport Related Expenditure ,Contract Hire and Op Leasing  ,CC59,HIRING TRANSPORT OPERATIONS             ,"1,452.00",30/06/2016,R,ENTERPRISE RENT-A-CAR UK LTD  
592,CS -Oth Operating Inc & Expend,T/A Vehicle Maintenance etc,Transport-Contract Hire,J01374,Transport Related Expenditure ,Contract Hire and Op Leasing  ,CC59,HIRING TRANSPORT OPERATIONS             ,"1,386.00",29/07/2016,R,ENTERPRISE RENT-A-CAR UK LTD  
593,CS -Oth Operating Inc & Expend,T/A Vehicle Maintenance etc,Transport-Contract Hire,J01374,Transport Related Expenditure ,Contract Hire and Op Leasing  ,CC59,HIRING TRANSPORT OPERATIONS             ,"1,386.00",29/07/2016,R,ENTERPRISE RENT-A-CAR UK LTD  
594,CS -Oth Operating Inc & Expend,T/A Vehicle Maintenance etc,Transport-Contract Hire,J01374,Transport Related Expenditure ,Contract Hire and Op Leasing  ,CC59,HIRING TRANSPORT OPERATIONS             ,"1,386.00",29/07/2016,R,ENTERPRISE RENT-A-CAR UK LTD  
595,CS -Oth Operating Inc & Expend,T/A Vehicle Maintenance etc,Transport-Contract Hire,J01374,Transport Related Expenditure ,Contract Hire and Op Leasing  ,CC59,HIRING TRANSPORT OPERATIONS             ,559.58,31/07/2016,R,E H ROBERTS                   
596,CS -Oth Operating Inc & Expend,T/A Vehicle Maintenance etc,Transport-Contract Hire,J01374,Transport Related Expenditure ,Contract Hire and Op Leasing  ,CC59,HIRING TRANSPORT OPERATIONS             ,559.58,31/07/2016,R,E H ROBERTS                   
597,CS -Oth Operating Inc & Expend,T/A Vehicle Maintenance etc,Transport-Contract Hire,J01374,Transport Related Expenditure ,Contract Hire and Op Leasing  ,CC59,HIRING TRANSPORT OPERATIONS             ,559.58,31/07/2016,R,E H ROBERTS                   
598,CS -Oth Operating Inc & Expend,T/A Vehicle Maintenance etc,Transport-Contract Hire,J01374,Transport Related Expenditure ,Contract Hire and Op Leasing  ,CC59,HIRING TRANSPORT OPERATIONS             ,559.58,31/07/2016,R,E H ROBERTS                   
599,CS -Oth Operating Inc & Expend,T/A Vehicle Maintenance etc,Transport-Contract Hire,J01374,Transport Related Expenditure ,Contract Hire and Op Leasing  ,CC64,CSF - SEN CABS (RK02)                   ,"2,752.00",29/07/2016,R,BRUNSWICK CARS LTD            
600,CS -Oth Operating Inc & Expend,T/A Vehicle Maintenance etc,Transport-Contract Hire,J01374,Transport Related Expenditure ,Contract Hire and Op Leasing  ,CC64,CSF - SEN CABS (RK02)                   ,"2,719.68",31/07/2016,R,KAT TRANSPORT LTD             
601,CS -Oth Operating Inc & Expend,T/A Vehicle Maintenance etc,Transport-Contract Hire,J01374,Transport Related Expenditure ,Contract Hire and Op Leasing  ,CC64,CSF - SEN CABS (RK02)                   ,"2,687.70",31/07/2016,R,KAT TRANSPORT LTD             
602,CS -Oth Operating Inc & Expend,T/A Vehicle Maintenance etc,Transport-Contract Hire,J01374,Transport Related Expenditure ,Contract Hire and Op Leasing  ,CC64,CSF - SEN CABS (RK02)                   ,"2,660.00",31/07/2016,R,SNA TRANSPORT LTD             
603,CS -Oth Operating Inc & Expend,T/A Vehicle Maintenance etc,Transport-Contract Hire,J01374,Transport Related Expenditure ,Contract Hire and Op Leasing  ,CC64,CSF - SEN CABS (RK02)                   ,"2,585.28",31/07/2016,R,KAT TRANSPORT LTD             
604,CS -Oth Operating Inc & Expend,T/A Vehicle Maintenance etc,Transport-Contract Hire,J01374,Transport Related Expenditure ,Contract Hire and Op Leasing  ,CC64,CSF - SEN CABS (RK02)                   ,"2,394.00",29/07/2016,R,BRUNSWICK CARS LTD            
605,CS -Oth Operating Inc & Expend,T/A Vehicle Maintenance etc,Transport-Contract Hire,J01374,Transport Related Expenditure ,Contract Hire and Op Leasing  ,CC64,CSF - SEN CABS (RK02)                   ,"2,384.00",29/07/2016,R,BRUNSWICK CARS LTD            
606,CS -Oth Operating Inc & Expend,T/A Vehicle Maintenance etc,Transport-Contract Hire,J01374,Transport Related Expenditure ,Contract Hire and Op Leasing  ,CC64,CSF - SEN CABS (RK02)                   ,"2,368.00",31/07/2016,R,KAT TRANSPORT LTD             
607,CS -Oth Operating Inc & Expend,T/A Vehicle Maintenance etc,Transport-Contract Hire,J01374,Transport Related Expenditure ,Contract Hire and Op Leasing  ,CC64,CSF - SEN CABS (RK02)                   ,"2,248.50",31/07/2016,R,KAT TRANSPORT LTD             
608,CS -Oth Operating Inc & Expend,T/A Vehicle Maintenance etc,Transport-Contract Hire,J01374,Transport Related Expenditure ,Contract Hire and Op Leasing  ,CC64,CSF - SEN CABS (RK02)                   ,"2,239.36",31/07/2016,R,KAT TRANSPORT LTD             
609,CS -Oth Operating Inc & Expend,T/A Vehicle Maintenance etc,Transport-Contract Hire,J01374,Transport Related Expenditure ,Contract Hire and Op Leasing  ,CC64,CSF - SEN CABS (RK02)                   ,"2,224.00",29/07/2016,R,BRUNSWICK CARS LTD            
610,CS -Oth Operating Inc & Expend,T/A Vehicle Maintenance etc,Transport-Contract Hire,J01374,Transport Related Expenditure ,Contract Hire and Op Leasing  ,CC64,CSF - SEN CABS (RK02)                   ,"2,219.40",31/07/2016,R,KAT TRANSPORT LTD             
611,CS -Oth Operating Inc & Expend,T/A Vehicle Maintenance etc,Transport-Contract Hire,J01374,Transport Related Expenditure ,Contract Hire and Op Leasing  ,CC64,CSF - SEN CABS (RK02)                   ,"2,210.00",31/07/2016,R,BARCLAYS ASSET & SALES FINANCE
612,CS -Oth Operating Inc & Expend,T/A Vehicle Maintenance etc,Transport-Contract Hire,J01374,Transport Related Expenditure ,Contract Hire and Op Leasing  ,CC64,CSF - SEN CABS (RK02)                   ,"2,208.00",30/07/2016,R,WALLINGTON CARS & COURIERS LTD
613,CS -Oth Operating Inc & Expend,T/A Vehicle Maintenance etc,Transport-Contract Hire,J01374,Transport Related Expenditure ,Contract Hire and Op Leasing  ,CC64,CSF - SEN CABS (RK02)                   ,"2,155.72",31/07/2016,R,KAT TRANSPORT LTD             
614,CS -Oth Operating Inc & Expend,T/A Vehicle Maintenance etc,Transport-Contract Hire,J01374,Transport Related Expenditure ,Contract Hire and Op Leasing  ,CC64,CSF - SEN CABS (RK02)                   ,"2,128.00",31/07/2016,R,BARCLAYS ASSET & SALES FINANCE
615,CS -Oth Operating Inc & Expend,T/A Vehicle Maintenance etc,Transport-Contract Hire,J01374,Transport Related Expenditure ,Contract Hire and Op Leasing  ,CC64,CSF - SEN CABS (RK02)                   ,"2,111.36",31/07/2016,R,KAT TRANSPORT LTD             
616,CS -Oth Operating Inc & Expend,T/A Vehicle Maintenance etc,Transport-Contract Hire,J01374,Transport Related Expenditure ,Contract Hire and Op Leasing  ,CC64,CSF - SEN CABS (RK02)                   ,"2,100.00",31/07/2016,R,SNA TRANSPORT LTD             
617,CS -Oth Operating Inc & Expend,T/A Vehicle Maintenance etc,Transport-Contract Hire,J01374,Transport Related Expenditure ,Contract Hire and Op Leasing  ,CC64,CSF - SEN CABS (RK02)                   ,"2,012.60",31/07/2016,R,SNA TRANSPORT LTD             
618,CS -Oth Operating Inc & Expend,T/A Vehicle Maintenance etc,Transport-Contract Hire,J01374,Transport Related Expenditure ,Contract Hire and Op Leasing  ,CC64,CSF - SEN CABS (RK02)                   ,"2,000.00",31/07/2016,R,SILVERBURN FINANCE (UK) LTD   
619,CS -Oth Operating Inc & Expend,T/A Vehicle Maintenance etc,Transport-Contract Hire,J01374,Transport Related Expenditure ,Contract Hire and Op Leasing  ,CC64,CSF - SEN CABS (RK02)                   ,"1,950.00",31/07/2016,R,BARCLAYS ASSET & SALES FINANCE
620,CS -Oth Operating Inc & Expend,T/A Vehicle Maintenance etc,Transport-Contract Hire,J01374,Transport Related Expenditure ,Contract Hire and Op Leasing  ,CC64,CSF - SEN CABS (RK02)                   ,"1,919.68",31/07/2016,R,KAT TRANSPORT LTD             
621,CS -Oth Operating Inc & Expend,T/A Vehicle Maintenance etc,Transport-Contract Hire,J01374,Transport Related Expenditure ,Contract Hire and Op Leasing  ,CC64,CSF - SEN CABS (RK02)                   ,"1,916.48",31/07/2016,R,KAT TRANSPORT LTD             
622,CS -Oth Operating Inc & Expend,T/A Vehicle Maintenance etc,Transport-Contract Hire,J01374,Transport Related Expenditure ,Contract Hire and Op Leasing  ,CC64,CSF - SEN CABS (RK02)                   ,"1,911.00",29/07/2016,R,BRUNSWICK CARS LTD            
623,CS -Oth Operating Inc & Expend,T/A Vehicle Maintenance etc,Transport-Contract Hire,J01374,Transport Related Expenditure ,Contract Hire and Op Leasing  ,CC64,CSF - SEN CABS (RK02)                   ,"1,900.92",31/07/2016,R,KAT TRANSPORT LTD             
624,CS -Oth Operating Inc & Expend,T/A Vehicle Maintenance etc,Transport-Contract Hire,J01374,Transport Related Expenditure ,Contract Hire and Op Leasing  ,CC64,CSF - SEN CABS (RK02)                   ,"1,889.40",31/07/2016,R,KAT TRANSPORT LTD             
625,CS -Oth Operating Inc & Expend,T/A Vehicle Maintenance etc,Transport-Contract Hire,J01374,Transport Related Expenditure ,Contract Hire and Op Leasing  ,CC64,CSF - SEN CABS (RK02)                   ,"1,888.00",31/07/2016,R,KAT TRANSPORT LTD             
626,CS -Oth Operating Inc & Expend,T/A Vehicle Maintenance etc,Transport-Contract Hire,J01374,Transport Related Expenditure ,Contract Hire and Op Leasing  ,CC64,CSF - SEN CABS (RK02)                   ,"1,881.28",31/07/2016,R,KAT TRANSPORT LTD             
627,CS -Oth Operating Inc & Expend,T/A Vehicle Maintenance etc,Transport-Contract Hire,J01374,Transport Related Expenditure ,Contract Hire and Op Leasing  ,CC64,CSF - SEN CABS (RK02)                   ,"1,856.00",29/07/2016,R,BRUNSWICK CARS LTD            
628,CS -Oth Operating Inc & Expend,T/A Vehicle Maintenance etc,Transport-Contract Hire,J01374,Transport Related Expenditure ,Contract Hire and Op Leasing  ,CC64,CSF - SEN CABS (RK02)                   ,"1,820.00",31/07/2016,R,SILVERBURN FINANCE (UK) LTD   
629,CS -Oth Operating Inc & Expend,T/A Vehicle Maintenance etc,Transport-Contract Hire,J01374,Transport Related Expenditure ,Contract Hire and Op Leasing  ,CC64,CSF - SEN CABS (RK02)                   ,"1,800.00",29/07/2016,R,BRUNSWICK CARS LTD            
630,CS -Oth Operating Inc & Expend,T/A Vehicle Maintenance etc,Transport-Contract Hire,J01374,Transport Related Expenditure ,Contract Hire and Op Leasing  ,CC64,CSF - SEN CABS (RK02)                   ,"1,787.00",29/07/2016,R,BRUNSWICK CARS LTD            
631,CS -Oth Operating Inc & Expend,T/A Vehicle Maintenance etc,Transport-Contract Hire,J01374,Transport Related Expenditure ,Contract Hire and Op Leasing  ,CC64,CSF - SEN CABS (RK02)                   ,"1,755.00",31/07/2016,R,BARCLAYS ASSET & SALES FINANCE
632,CS -Oth Operating Inc & Expend,T/A Vehicle Maintenance etc,Transport-Contract Hire,J01374,Transport Related Expenditure ,Contract Hire and Op Leasing  ,CC64,CSF - SEN CABS (RK02)                   ,"1,750.00",31/07/2016,R,BARCLAYS ASSET & SALES FINANCE
633,CS -Oth Operating Inc & Expend,T/A Vehicle Maintenance etc,Transport-Contract Hire,J01374,Transport Related Expenditure ,Contract Hire and Op Leasing  ,CC64,CSF - SEN CABS (RK02)                   ,"1,750.00",31/07/2016,R,SNA TRANSPORT LTD             
634,CS -Oth Operating Inc & Expend,T/A Vehicle Maintenance etc,Transport-Contract Hire,J01374,Transport Related Expenditure ,Contract Hire and Op Leasing  ,CC64,CSF - SEN CABS (RK02)                   ,"1,722.00",31/07/2016,R,PREMIER MINICAB SER.(SURBITON)
635,CS -Oth Operating Inc & Expend,T/A Vehicle Maintenance etc,Transport-Contract Hire,J01374,Transport Related Expenditure ,Contract Hire and Op Leasing  ,CC64,CSF - SEN CABS (RK02)                   ,"1,706.60",31/07/2016,R,KAT TRANSPORT LTD             
636,CS -Oth Operating Inc & Expend,T/A Vehicle Maintenance etc,Transport-Contract Hire,J01374,Transport Related Expenditure ,Contract Hire and Op Leasing  ,CC64,CSF - SEN CABS (RK02)                   ,"1,702.50",31/07/2016,R,KAT TRANSPORT LTD             
637,CS -Oth Operating Inc & Expend,T/A Vehicle Maintenance etc,Transport-Contract Hire,J01374,Transport Related Expenditure ,Contract Hire and Op Leasing  ,CC64,CSF - SEN CABS (RK02)                   ,"1,679.72",31/07/2016,R,SNA TRANSPORT LTD             
638,CS -Oth Operating Inc & Expend,T/A Vehicle Maintenance etc,Transport-Contract Hire,J01374,Transport Related Expenditure ,Contract Hire and Op Leasing  ,CC64,CSF - SEN CABS (RK02)                   ,"1,678.50",31/07/2016,R,KAT TRANSPORT LTD             
639,CS -Oth Operating Inc & Expend,T/A Vehicle Maintenance etc,Transport-Contract Hire,J01374,Transport Related Expenditure ,Contract Hire and Op Leasing  ,CC64,CSF - SEN CABS (RK02)                   ,"1,649.34",31/07/2016,R,KAT TRANSPORT LTD             
640,CS -Oth Operating Inc & Expend,T/A Vehicle Maintenance etc,Transport-Contract Hire,J01374,Transport Related Expenditure ,Contract Hire and Op Leasing  ,CC64,CSF - SEN CABS (RK02)                   ,"1,620.00",31/07/2016,R,SILVERBURN FINANCE (UK) LTD   
641,CS -Oth Operating Inc & Expend,T/A Vehicle Maintenance etc,Transport-Contract Hire,J01374,Transport Related Expenditure ,Contract Hire and Op Leasing  ,CC64,CSF - SEN CABS (RK02)                   ,"1,620.00",31/07/2016,R,SNA TRANSPORT LTD             
642,CS -Oth Operating Inc & Expend,T/A Vehicle Maintenance etc,Transport-Contract Hire,J01374,Transport Related Expenditure ,Contract Hire and Op Leasing  ,CC64,CSF - SEN CABS (RK02)                   ,"1,598.40",31/07/2016,R,KAT TRANSPORT LTD             
643,CS -Oth Operating Inc & Expend,T/A Vehicle Maintenance etc,Transport-Contract Hire,J01374,Transport Related Expenditure ,Contract Hire and Op Leasing  ,CC64,CSF - SEN CABS (RK02)                   ,"1,568.00",31/07/2016,R,PREMIER MINICAB SER.(SURBITON)
644,CS -Oth Operating Inc & Expend,T/A Vehicle Maintenance etc,Transport-Contract Hire,J01374,Transport Related Expenditure ,Contract Hire and Op Leasing  ,CC64,CSF - SEN CABS (RK02)                   ,"1,558.40",31/07/2016,R,SNA TRANSPORT LTD             
645,CS -Oth Operating Inc & Expend,T/A Vehicle Maintenance etc,Transport-Contract Hire,J01374,Transport Related Expenditure ,Contract Hire and Op Leasing  ,CC64,CSF - SEN CABS (RK02)                   ,"1,552.50",31/07/2016,R,SILVERBURN FINANCE (UK) LTD   
646,CS -Oth Operating Inc & Expend,T/A Vehicle Maintenance etc,Transport-Contract Hire,J01374,Transport Related Expenditure ,Contract Hire and Op Leasing  ,CC64,CSF - SEN CABS (RK02)                   ,"1,540.00",31/07/2016,R,PREMIER MINICAB SER.(SURBITON)
647,CS -Oth Operating Inc & Expend,T/A Vehicle Maintenance etc,Transport-Contract Hire,J01374,Transport Related Expenditure ,Contract Hire and Op Leasing  ,CC64,CSF - SEN CABS (RK02)                   ,"1,539.44",31/07/2016,R,KAT TRANSPORT LTD             
648,CS -Oth Operating Inc & Expend,T/A Vehicle Maintenance etc,Transport-Contract Hire,J01374,Transport Related Expenditure ,Contract Hire and Op Leasing  ,CC64,CSF - SEN CABS (RK02)                   ,"1,536.00",25/07/2016,R,KENDALL CARS                  
649,CS -Oth Operating Inc & Expend,T/A Vehicle Maintenance etc,Transport-Contract Hire,J01374,Transport Related Expenditure ,Contract Hire and Op Leasing  ,CC64,CSF - SEN CABS (RK02)                   ,"1,523.20",31/07/2016,R,SNA TRANSPORT LTD             
650,CS -Oth Operating Inc & Expend,T/A Vehicle Maintenance etc,Transport-Contract Hire,J01374,Transport Related Expenditure ,Contract Hire and Op Leasing  ,CC64,CSF - SEN CABS (RK02)                   ,"1,522.50",29/07/2016,R,BRUNSWICK CARS LTD            
651,CS -Oth Operating Inc & Expend,T/A Vehicle Maintenance etc,Transport-Contract Hire,J01374,Transport Related Expenditure ,Contract Hire and Op Leasing  ,CC64,CSF - SEN CABS (RK02)                   ,"1,512.00",29/07/2016,R,BRUNSWICK CARS LTD            
652,CS -Oth Operating Inc & Expend,T/A Vehicle Maintenance etc,Transport-Contract Hire,J01374,Transport Related Expenditure ,Contract Hire and Op Leasing  ,CC64,CSF - SEN CABS (RK02)                   ,"1,508.00",29/07/2016,R,BRUNSWICK CARS LTD            
653,CS -Oth Operating Inc & Expend,T/A Vehicle Maintenance etc,Transport-Contract Hire,J01374,Transport Related Expenditure ,Contract Hire and Op Leasing  ,CC64,CSF - SEN CABS (RK02)                   ,"1,500.00",29/07/2016,R,BRUNSWICK CARS LTD            
654,CS -Oth Operating Inc & Expend,T/A Vehicle Maintenance etc,Transport-Contract Hire,J01374,Transport Related Expenditure ,Contract Hire and Op Leasing  ,CC64,CSF - SEN CABS (RK02)                   ,"1,488.00",29/07/2016,R,BRUNSWICK CARS LTD            
655,CS -Oth Operating Inc & Expend,T/A Vehicle Maintenance etc,Transport-Contract Hire,J01374,Transport Related Expenditure ,Contract Hire and Op Leasing  ,CC64,CSF - SEN CABS (RK02)                   ,"1,488.00",29/07/2016,R,BRUNSWICK CARS LTD            
656,CS -Oth Operating Inc & Expend,T/A Vehicle Maintenance etc,Transport-Contract Hire,J01374,Transport Related Expenditure ,Contract Hire and Op Leasing  ,CC64,CSF - SEN CABS (RK02)                   ,"1,470.00",31/07/2016,R,SILVERBURN FINANCE (UK) LTD   
657,CS -Oth Operating Inc & Expend,T/A Vehicle Maintenance etc,Transport-Contract Hire,J01374,Transport Related Expenditure ,Contract Hire and Op Leasing  ,CC64,CSF - SEN CABS (RK02)                   ,"1,470.00",31/07/2016,R,SNA TRANSPORT LTD             
658,CS -Oth Operating Inc & Expend,T/A Vehicle Maintenance etc,Transport-Contract Hire,J01374,Transport Related Expenditure ,Contract Hire and Op Leasing  ,CC64,CSF - SEN CABS (RK02)                   ,"1,469.00",31/07/2016,R,SILVERBURN FINANCE (UK) LTD   
659,CS -Oth Operating Inc & Expend,T/A Vehicle Maintenance etc,Transport-Contract Hire,J01374,Transport Related Expenditure ,Contract Hire and Op Leasing  ,CC64,CSF - SEN CABS (RK02)                   ,"1,464.12",31/07/2016,R,KAT TRANSPORT LTD             
660,CS -Oth Operating Inc & Expend,T/A Vehicle Maintenance etc,Transport-Contract Hire,J01374,Transport Related Expenditure ,Contract Hire and Op Leasing  ,CC64,CSF - SEN CABS (RK02)                   ,"1,456.00",31/07/2016,R,A STAR TRANSPORT LIMITED      
661,CS -Oth Operating Inc & Expend,T/A Vehicle Maintenance etc,Transport-Contract Hire,J01374,Transport Related Expenditure ,Contract Hire and Op Leasing  ,CC64,CSF - SEN CABS (RK02)                   ,"1,455.00",31/07/2016,R,SILVERBURN FINANCE (UK) LTD   
662,CS -Oth Operating Inc & Expend,T/A Vehicle Maintenance etc,Transport-Contract Hire,J01374,Transport Related Expenditure ,Contract Hire and Op Leasing  ,CC64,CSF - SEN CABS (RK02)                   ,"1,440.00",31/07/2016,R,BARCLAYS ASSET & SALES FINANCE
663,CS -Oth Operating Inc & Expend,T/A Vehicle Maintenance etc,Transport-Contract Hire,J01374,Transport Related Expenditure ,Contract Hire and Op Leasing  ,CC64,CSF - SEN CABS (RK02)                   ,"1,440.00",31/07/2016,R,BARCLAYS ASSET & SALES FINANCE
664,CS -Oth Operating Inc & Expend,T/A Vehicle Maintenance etc,Transport-Contract Hire,J01374,Transport Related Expenditure ,Contract Hire and Op Leasing  ,CC64,CSF - SEN CABS (RK02)                   ,"1,440.00",31/07/2016,R,SNA TRANSPORT LTD             
665,CS -Oth Operating Inc & Expend,T/A Vehicle Maintenance etc,Transport-Contract Hire,J01374,Transport Related Expenditure ,Contract Hire and Op Leasing  ,CC64,CSF - SEN CABS (RK02)                   ,"1,435.00",31/07/2016,R,SILVERBURN FINANCE (UK) LTD   
666,CS -Oth Operating Inc & Expend,T/A Vehicle Maintenance etc,Transport-Contract Hire,J01374,Transport Related Expenditure ,Contract Hire and Op Leasing  ,CC64,CSF - SEN CABS (RK02)                   ,"1,430.00",31/07/2016,R,SNA TRANSPORT LTD             
667,CS -Oth Operating Inc & Expend,T/A Vehicle Maintenance etc,Transport-Contract Hire,J01374,Transport Related Expenditure ,Contract Hire and Op Leasing  ,CC64,CSF - SEN CABS (RK02)                   ,"1,428.00",31/07/2016,R,PREMIER MINICAB SER.(SURBITON)
668,CS -Oth Operating Inc & Expend,T/A Vehicle Maintenance etc,Transport-Contract Hire,J01374,Transport Related Expenditure ,Contract Hire and Op Leasing  ,CC64,CSF - SEN CABS (RK02)                   ,"1,403.70",31/07/2016,R,KAT TRANSPORT LTD             
669,CS -Oth Operating Inc & Expend,T/A Vehicle Maintenance etc,Transport-Contract Hire,J01374,Transport Related Expenditure ,Contract Hire and Op Leasing  ,CC64,CSF - SEN CABS (RK02)                   ,"1,400.00",31/07/2016,R,KAT TRANSPORT LTD             
670,CS -Oth Operating Inc & Expend,T/A Vehicle Maintenance etc,Transport-Contract Hire,J01374,Transport Related Expenditure ,Contract Hire and Op Leasing  ,CC64,CSF - SEN CABS (RK02)                   ,"1,395.00",29/07/2016,R,BRUNSWICK CARS LTD            
671,CS -Oth Operating Inc & Expend,T/A Vehicle Maintenance etc,Transport-Contract Hire,J01374,Transport Related Expenditure ,Contract Hire and Op Leasing  ,CC64,CSF - SEN CABS (RK02)                   ,"1,395.00",31/07/2016,R,SNA TRANSPORT LTD             
672,CS -Oth Operating Inc & Expend,T/A Vehicle Maintenance etc,Transport-Contract Hire,J01374,Transport Related Expenditure ,Contract Hire and Op Leasing  ,CC64,CSF - SEN CABS (RK02)                   ,"1,372.00",31/07/2016,R,KAT TRANSPORT LTD             
673,CS -Oth Operating Inc & Expend,T/A Vehicle Maintenance etc,Transport-Contract Hire,J01374,Transport Related Expenditure ,Contract Hire and Op Leasing  ,CC64,CSF - SEN CABS (RK02)                   ,"1,365.00",31/07/2016,R,SNA TRANSPORT LTD             
674,CS -Oth Operating Inc & Expend,T/A Vehicle Maintenance etc,Transport-Contract Hire,J01374,Transport Related Expenditure ,Contract Hire and Op Leasing  ,CC64,CSF - SEN CABS (RK02)                   ,"1,357.72",31/07/2016,R,KAT TRANSPORT LTD             
675,CS -Oth Operating Inc & Expend,T/A Vehicle Maintenance etc,Transport-Contract Hire,J01374,Transport Related Expenditure ,Contract Hire and Op Leasing  ,CC64,CSF - SEN CABS (RK02)                   ,"1,357.00",31/07/2016,R,SILVERBURN FINANCE (UK) LTD   
676,CS -Oth Operating Inc & Expend,T/A Vehicle Maintenance etc,Transport-Contract Hire,J01374,Transport Related Expenditure ,Contract Hire and Op Leasing  ,CC64,CSF - SEN CABS (RK02)                   ,"1,352.00",31/07/2016,R,CHEAM STATION CARS            
677,CS -Oth Operating Inc & Expend,T/A Vehicle Maintenance etc,Transport-Contract Hire,J01374,Transport Related Expenditure ,Contract Hire and Op Leasing  ,CC64,CSF - SEN CABS (RK02)                   ,"1,350.00",31/07/2016,R,KAT TRANSPORT LTD             
678,CS -Oth Operating Inc & Expend,T/A Vehicle Maintenance etc,Transport-Contract Hire,J01374,Transport Related Expenditure ,Contract Hire and Op Leasing  ,CC64,CSF - SEN CABS (RK02)                   ,"1,350.00",31/07/2016,R,PREMIER MINICAB SER.(SURBITON)
679,CS -Oth Operating Inc & Expend,T/A Vehicle Maintenance etc,Transport-Contract Hire,J01374,Transport Related Expenditure ,Contract Hire and Op Leasing  ,CC64,CSF - SEN CABS (RK02)                   ,"1,348.50",31/07/2016,R,KAT TRANSPORT LTD             
680,CS -Oth Operating Inc & Expend,T/A Vehicle Maintenance etc,Transport-Contract Hire,J01374,Transport Related Expenditure ,Contract Hire and Op Leasing  ,CC64,CSF - SEN CABS (RK02)                   ,"1,344.00",29/07/2016,R,BRUNSWICK CARS LTD            
681,CS -Oth Operating Inc & Expend,T/A Vehicle Maintenance etc,Transport-Contract Hire,J01374,Transport Related Expenditure ,Contract Hire and Op Leasing  ,CC64,CSF - SEN CABS (RK02)                   ,"1,342.50",31/07/2016,R,SNA TRANSPORT LTD             
682,CS -Oth Operating Inc & Expend,T/A Vehicle Maintenance etc,Transport-Contract Hire,J01374,Transport Related Expenditure ,Contract Hire and Op Leasing  ,CC64,CSF - SEN CABS (RK02)                   ,"1,320.00",31/07/2016,R,SNA TRANSPORT LTD             
683,CS -Oth Operating Inc & Expend,T/A Vehicle Maintenance etc,Transport-Contract Hire,J01374,Transport Related Expenditure ,Contract Hire and Op Leasing  ,CC64,CSF - SEN CABS (RK02)                   ,"1,283.70",31/07/2016,R,KAT TRANSPORT LTD             
684,CS -Oth Operating Inc & Expend,T/A Vehicle Maintenance etc,Transport-Contract Hire,J01374,Transport Related Expenditure ,Contract Hire and Op Leasing  ,CC64,CSF - SEN CABS (RK02)                   ,"1,248.00",31/07/2016,R,BARCLAYS ASSET & SALES FINANCE
685,CS -Oth Operating Inc & Expend,T/A Vehicle Maintenance etc,Transport-Contract Hire,J01374,Transport Related Expenditure ,Contract Hire and Op Leasing  ,CC64,CSF - SEN CABS (RK02)                   ,"1,235.00",31/07/2016,R,SNA TRANSPORT LTD             
686,CS -Oth Operating Inc & Expend,T/A Vehicle Maintenance etc,Transport-Contract Hire,J01374,Transport Related Expenditure ,Contract Hire and Op Leasing  ,CC64,CSF - SEN CABS (RK02)                   ,"1,208.25",31/07/2016,R,SNA TRANSPORT LTD             
687,CS -Oth Operating Inc & Expend,T/A Vehicle Maintenance etc,Transport-Contract Hire,J01374,Transport Related Expenditure ,Contract Hire and Op Leasing  ,CC64,CSF - SEN CABS (RK02)                   ,"1,200.00",31/07/2016,R,SILVERBURN FINANCE (UK) LTD   
688,CS -Oth Operating Inc & Expend,T/A Vehicle Maintenance etc,Transport-Contract Hire,J01374,Transport Related Expenditure ,Contract Hire and Op Leasing  ,CC64,CSF - SEN CABS (RK02)                   ,"1,199.52",31/07/2016,R,KAT TRANSPORT LTD             
689,CS -Oth Operating Inc & Expend,T/A Vehicle Maintenance etc,Transport-Contract Hire,J01374,Transport Related Expenditure ,Contract Hire and Op Leasing  ,CC64,CSF - SEN CABS (RK02)                   ,"1,198.80",31/07/2016,R,SNA TRANSPORT LTD             
690,CS -Oth Operating Inc & Expend,T/A Vehicle Maintenance etc,Transport-Contract Hire,J01374,Transport Related Expenditure ,Contract Hire and Op Leasing  ,CC64,CSF - SEN CABS (RK02)                   ,"1,176.00",31/07/2016,R,SILVERBURN FINANCE (UK) LTD   
691,CS -Oth Operating Inc & Expend,T/A Vehicle Maintenance etc,Transport-Contract Hire,J01374,Transport Related Expenditure ,Contract Hire and Op Leasing  ,CC64,CSF - SEN CABS (RK02)                   ,"1,170.00",29/07/2016,R,BRUNSWICK CARS LTD            
692,CS -Oth Operating Inc & Expend,T/A Vehicle Maintenance etc,Transport-Contract Hire,J01374,Transport Related Expenditure ,Contract Hire and Op Leasing  ,CC64,CSF - SEN CABS (RK02)                   ,"1,155.00",29/07/2016,R,BRUNSWICK CARS LTD            
693,CS -Oth Operating Inc & Expend,T/A Vehicle Maintenance etc,Transport-Contract Hire,J01374,Transport Related Expenditure ,Contract Hire and Op Leasing  ,CC64,CSF - SEN CABS (RK02)                   ,"1,152.00",29/07/2016,R,BRUNSWICK CARS LTD            
694,CS -Oth Operating Inc & Expend,T/A Vehicle Maintenance etc,Transport-Contract Hire,J01374,Transport Related Expenditure ,Contract Hire and Op Leasing  ,CC64,CSF - SEN CABS (RK02)                   ,"1,140.00",31/07/2016,R,A STAR TRANSPORT LIMITED      
695,CS -Oth Operating Inc & Expend,T/A Vehicle Maintenance etc,Transport-Contract Hire,J01374,Transport Related Expenditure ,Contract Hire and Op Leasing  ,CC64,CSF - SEN CABS (RK02)                   ,"1,125.00",29/07/2016,R,BRUNSWICK CARS LTD            
696,CS -Oth Operating Inc & Expend,T/A Vehicle Maintenance etc,Transport-Contract Hire,J01374,Transport Related Expenditure ,Contract Hire and Op Leasing  ,CC64,CSF - SEN CABS (RK02)                   ,"1,106.00",31/07/2016,R,SNA TRANSPORT LTD             
697,CS -Oth Operating Inc & Expend,T/A Vehicle Maintenance etc,Transport-Contract Hire,J01374,Transport Related Expenditure ,Contract Hire and Op Leasing  ,CC64,CSF - SEN CABS (RK02)                   ,"1,106.00",31/07/2016,R,SNA TRANSPORT LTD             
698,CS -Oth Operating Inc & Expend,T/A Vehicle Maintenance etc,Transport-Contract Hire,J01374,Transport Related Expenditure ,Contract Hire and Op Leasing  ,CC64,CSF - SEN CABS (RK02)                   ,"1,075.00",31/07/2016,R,SILVERBURN FINANCE (UK) LTD   
699,CS -Oth Operating Inc & Expend,T/A Vehicle Maintenance etc,Transport-Contract Hire,J01374,Transport Related Expenditure ,Contract Hire and Op Leasing  ,CC64,CSF - SEN CABS (RK02)                   ,"1,050.00",31/07/2016,R,SNA TRANSPORT LTD             
700,CS -Oth Operating Inc & Expend,T/A Vehicle Maintenance etc,Transport-Contract Hire,J01374,Transport Related Expenditure ,Contract Hire and Op Leasing  ,CC64,CSF - SEN CABS (RK02)                   ,"1,036.00",29/07/2016,R,BRUNSWICK CARS LTD            
701,CS -Oth Operating Inc & Expend,T/A Vehicle Maintenance etc,Transport-Contract Hire,J01374,Transport Related Expenditure ,Contract Hire and Op Leasing  ,CC64,CSF - SEN CABS (RK02)                   ,"1,028.30",31/07/2016,R,SILVERBURN FINANCE (UK) LTD   
702,CS -Oth Operating Inc & Expend,T/A Vehicle Maintenance etc,Transport-Contract Hire,J01374,Transport Related Expenditure ,Contract Hire and Op Leasing  ,CC64,CSF - SEN CABS (RK02)                   ,"1,011.40",31/07/2016,R,PREMIER MINICAB SER.(SURBITON)
703,CS -Oth Operating Inc & Expend,T/A Vehicle Maintenance etc,Transport-Contract Hire,J01374,Transport Related Expenditure ,Contract Hire and Op Leasing  ,CC64,CSF - SEN CABS (RK02)                   ,980.00,31/07/2016,R,CHEAM STATION CARS            
704,CS -Oth Operating Inc & Expend,T/A Vehicle Maintenance etc,Transport-Contract Hire,J01374,Transport Related Expenditure ,Contract Hire and Op Leasing  ,CC64,CSF - SEN CABS (RK02)                   ,907.20,31/07/2016,R,KAT TRANSPORT LTD             
705,CS -Oth Operating Inc & Expend,T/A Vehicle Maintenance etc,Transport-Contract Hire,J01374,Transport Related Expenditure ,Contract Hire and Op Leasing  ,CC64,CSF - SEN CABS (RK02)                   ,888.00,31/07/2016,R,SNA TRANSPORT LTD             
706,CS -Oth Operating Inc & Expend,T/A Vehicle Maintenance etc,Transport-Contract Hire,J01374,Transport Related Expenditure ,Contract Hire and Op Leasing  ,CC64,CSF - SEN CABS (RK02)                   ,884.00,29/07/2016,R,BRUNSWICK CARS LTD            
707,CS -Oth Operating Inc & Expend,T/A Vehicle Maintenance etc,Transport-Contract Hire,J01374,Transport Related Expenditure ,Contract Hire and Op Leasing  ,CC64,CSF - SEN CABS (RK02)                   ,843.60,31/07/2016,R,SNA TRANSPORT LTD             
708,CS -Oth Operating Inc & Expend,T/A Vehicle Maintenance etc,Transport-Contract Hire,J01374,Transport Related Expenditure ,Contract Hire and Op Leasing  ,CC64,CSF - SEN CABS (RK02)                   ,818.00,29/07/2016,R,BRUNSWICK CARS LTD            
709,CS -Oth Operating Inc & Expend,T/A Vehicle Maintenance etc,Transport-Contract Hire,J01374,Transport Related Expenditure ,Contract Hire and Op Leasing  ,CC64,CSF - SEN CABS (RK02)                   ,812.00,31/07/2016,R,SILVERBURN FINANCE (UK) LTD   
710,CS -Oth Operating Inc & Expend,T/A Vehicle Maintenance etc,Transport-Contract Hire,J01374,Transport Related Expenditure ,Contract Hire and Op Leasing  ,CC64,CSF - SEN CABS (RK02)                   ,720.00,31/07/2016,R,CHEAM STATION CARS            
711,CS -Oth Operating Inc & Expend,T/A Vehicle Maintenance etc,Transport-Contract Hire,J01374,Transport Related Expenditure ,Contract Hire and Op Leasing  ,CC64,CSF - SEN CABS (RK02)                   ,675.00,31/07/2016,R,CHEAM STATION CARS            
712,CS -Oth Operating Inc & Expend,T/A Vehicle Maintenance etc,Transport-Contract Hire,J01374,Transport Related Expenditure ,Contract Hire and Op Leasing  ,CC64,CSF - SEN CABS (RK02)                   ,660.00,31/07/2016,R,CHEAM STATION CARS            
713,CS -Oth Operating Inc & Expend,T/A Vehicle Maintenance etc,Transport-Contract Hire,J01374,Transport Related Expenditure ,Contract Hire and Op Leasing  ,CC64,CSF - SEN CABS (RK02)                   ,657.91,31/07/2016,R,KAT TRANSPORT LTD             
714,CS -Oth Operating Inc & Expend,T/A Vehicle Maintenance etc,Transport-Contract Hire,J01374,Transport Related Expenditure ,Contract Hire and Op Leasing  ,CC64,CSF - SEN CABS (RK02)                   ,630.00,31/07/2016,R,SNA TRANSPORT LTD             
715,CS -Oth Operating Inc & Expend,T/A Vehicle Maintenance etc,Transport-Contract Hire,J01374,Transport Related Expenditure ,Contract Hire and Op Leasing  ,CC64,CSF - SEN CABS (RK02)                   ,538.20,31/07/2016,R,PREMIER MINICAB SER.(SURBITON)
716,CS -Oth Operating Inc & Expend,T/A Vehicle Maintenance etc,Transport-Contract Hire,J01374,Transport Related Expenditure ,Contract Hire and Op Leasing  ,CC64,CSF - SEN CABS (RK02)                   ,522.13,31/07/2016,R,KAT TRANSPORT LTD             
717,CS -Oth Operating Inc & Expend,T/A Vehicle Maintenance etc,Transport-Contract Hire,J01374,Transport Related Expenditure ,Contract Hire and Op Leasing  ,CC66,CSF - CHILDREN CABS (RK09)              ,"1,666.00",31/07/2016,R,SILVERBURN FINANCE (UK) LTD   
718,CS -Oth Operating Inc & Expend,T/A Vehicle Maintenance etc,Transport-Contract Hire,J01374,Transport Related Expenditure ,Contract Hire and Op Leasing  ,CC66,CSF - CHILDREN CABS (RK09)              ,"1,085.00",31/07/2016,R,OAKMARKET GROUP LTD           
719,CS -Oth Operating Inc & Expend,T/A Vehicle Maintenance etc,Transport-Contract Hire,J01374,Transport Related Expenditure ,Contract Hire and Op Leasing  ,CC67,C&H - ADULTS CABS (RK08)                ,"2,179.36",31/07/2016,R,KAT TRANSPORT LTD             
720,CS -Oth Operating Inc & Expend,T/A Vehicle Maintenance etc,Transport-Contract Hire,J01374,Transport Related Expenditure ,Contract Hire and Op Leasing  ,CC67,C&H - ADULTS CABS (RK08)                ,"2,120.66",31/07/2016,R,PREMIER MINICAB SER.(SURBITON)
721,CS -Oth Operating Inc & Expend,T/A Vehicle Maintenance etc,Transport-Contract Hire,J01374,Transport Related Expenditure ,Contract Hire and Op Leasing  ,CC67,C&H - ADULTS CABS (RK08)                ,"1,936.30",31/07/2016,R,KAT TRANSPORT LTD             
722,CS -Oth Operating Inc & Expend,T/A Vehicle Maintenance etc,Transport-Contract Hire,J01374,Transport Related Expenditure ,Contract Hire and Op Leasing  ,CC67,C&H - ADULTS CABS (RK08)                ,"1,925.00",31/07/2016,R,SNA TRANSPORT LTD             
723,CS -Oth Operating Inc & Expend,T/A Vehicle Maintenance etc,Transport-Contract Hire,J01374,Transport Related Expenditure ,Contract Hire and Op Leasing  ,CC67,C&H - ADULTS CABS (RK08)                ,"1,429.78",31/07/2016,R,KAT TRANSPORT LTD             
724,CS -Oth Operating Inc & Expend,T/A Vehicle Maintenance etc,Transport-Contract Hire,J01374,Transport Related Expenditure ,Contract Hire and Op Leasing  ,CC67,C&H - ADULTS CABS (RK08)                ,"1,384.00",31/07/2016,R,KAT TRANSPORT LTD             
725,CS -Oth Operating Inc & Expend,T/A Vehicle Maintenance etc,Transport-Contract Hire,J01374,Transport Related Expenditure ,Contract Hire and Op Leasing  ,CC67,C&H - ADULTS CABS (RK08)                ,"1,280.00",31/07/2016,R,PREMIER MINICAB SER.(SURBITON)
726,CS -Oth Operating Inc & Expend,T/A Vehicle Maintenance etc,Transport-Contract Hire,J01374,Transport Related Expenditure ,Contract Hire and Op Leasing  ,CC67,C&H - ADULTS CABS (RK08)                ,"1,280.00",31/07/2016,R,CHEAM STATION CARS            
727,CS -Oth Operating Inc & Expend,T/A Vehicle Maintenance etc,Transport-Contract Hire,J01374,Transport Related Expenditure ,Contract Hire and Op Leasing  ,CC67,C&H - ADULTS CABS (RK08)                ,"1,088.00",31/07/2016,R,A STAR TRANSPORT LIMITED      
728,CS -Oth Operating Inc & Expend,T/A Vehicle Maintenance etc,Transport-Contract Hire,J01374,Transport Related Expenditure ,Contract Hire and Op Leasing  ,CC67,C&H - ADULTS CABS (RK08)                ,852.00,31/07/2016,R,A STAR TRANSPORT LIMITED      
729,CS -Oth Operating Inc & Expend,T/A Vehicle Maintenance etc,Transport-Contract Hire,J01374,Transport Related Expenditure ,Contract Hire and Op Leasing  ,CC68,CSF - COLLEGES CABS (RK03)              ,"1,452.00",31/07/2016,R,SNA TRANSPORT LTD             
730,CS -Oth Operating Inc & Expend,T/A Vehicle Maintenance etc,Transport-Contract Hire,J01374,Transport Related Expenditure ,Contract Hire and Op Leasing  ,CC69,Vehicles - Spot Hire,"5,451.00",12/08/2016,R,STENNETTS LTD                 
731,CS -Oth Operating Inc & Expend,T/A Vehicle Maintenance etc,Transport-Contract Hire,J01374,Transport Related Expenditure ,Contract Hire and Op Leasing  ,CC69,Vehicles - Spot Hire,"3,451.00",31/07/2016,R,M6 VEHICLE HIRE               
732,CS -Oth Operating Inc & Expend,T/A Vehicle Maintenance etc,Transport-Contract Hire,J01374,Transport Related Expenditure ,Contract Hire and Op Leasing  ,CC69,Vehicles - Spot Hire,"2,625.00",31/07/2016,R,C P DAVIDSON & SONS LTD       
733,CS -Oth Operating Inc & Expend,T/A Vehicle Maintenance etc,Transport-Contract Hire,J01374,Transport Related Expenditure ,Contract Hire and Op Leasing  ,CC69,Vehicles - Spot Hire,"2,100.00",01/07/2016,R,DAWSON RENTALS BUS AND COACH  
734,CS -Oth Operating Inc & Expend,T/A Vehicle Maintenance etc,Transport-Contract Hire,J01374,Transport Related Expenditure ,Contract Hire and Op Leasing  ,CC69,Vehicles - Spot Hire,"2,080.00",01/08/2016,R,GVS HIRE LTD                  
735,CS -Oth Operating Inc & Expend,T/A Vehicle Maintenance etc,Transport-Contract Hire,J01374,Transport Related Expenditure ,Contract Hire and Op Leasing  ,CC69,Vehicles - Spot Hire,"1,759.42",22/07/2016,R,GULLIVER'S TRUCK HIRE LTD.    
736,CS -Oth Operating Inc & Expend,T/A Vehicle Maintenance etc,Transport-Contract Hire,J01374,Transport Related Expenditure ,Contract Hire and Op Leasing  ,CC69,Vehicles - Spot Hire,"1,365.00",31/07/2016,R,E H ROBERTS                   
737,CS -Oth Operating Inc & Expend,T/A Vehicle Maintenance etc,Transport-Contract Hire,J01374,Transport Related Expenditure ,Contract Hire and Op Leasing  ,CC69,Vehicles - Spot Hire,745.00,25/07/2016,R,GULLIVER'S TRUCK HIRE LTD.    
738,CS -Oth Operating Inc & Expend,T/A Vehicle Maintenance etc,Transport-Contract Hire,J01374,Transport Related Expenditure ,Contract Hire and Op Leasing  ,CC69,Vehicles - Spot Hire,745.00,18/07/2016,R,GULLIVER'S TRUCK HIRE LTD.    
739,CS -Oth Operating Inc & Expend,T/A Vehicle Maintenance etc,Transport-Contract Hire,J01374,Transport Related Expenditure ,Contract Hire and Op Leasing  ,CC69,Vehicles - Spot Hire,745.00,29/07/2016,R,GULLIVER'S TRUCK HIRE LTD.    
740,CS -Oth Operating Inc & Expend,T/A Vehicle Maintenance etc,Transport-Contract Hire,J01374,Transport Related Expenditure ,Contract Hire and Op Leasing  ,CC69,Vehicles - Spot Hire,745.00,09/08/2016,R,GULLIVER'S TRUCK HIRE LTD.    
741,CS -Oth Operating Inc & Expend,T/A Vehicle Maintenance etc,Transport-Contract Hire,J01374,Transport Related Expenditure ,Contract Hire and Op Leasing  ,CC69,Vehicles - Spot Hire,745.00,23/08/2016,R,GULLIVER'S TRUCK HIRE LTD.    
742,CS -Oth Operating Inc & Expend,T/A Vehicle Maintenance etc,Transport-Contract Hire,J01374,Transport Related Expenditure ,Contract Hire and Op Leasing  ,CC69,Vehicles - Spot Hire,745.00,16/08/2016,R,GULLIVER'S TRUCK HIRE LTD.    
743,CS -Oth Operating Inc & Expend,T/A Vehicle Maintenance etc,Transport-Contract Hire,J01374,Transport Related Expenditure ,Contract Hire and Op Leasing  ,CC69,Vehicles - Spot Hire,693.00,31/07/2016,R,E H ROBERTS                   
744,CS -Oth Operating Inc & Expend,T/A Vehicle Maintenance etc,Transport-Contract Hire,J01374,Transport Related Expenditure ,Contract Hire and Op Leasing  ,CC69,Vehicles - Spot Hire,585.00,31/07/2016,R,E H ROBERTS                   
745,CS -Oth Operating Inc & Expend,T/A Vehicle Maintenance etc,Transport-Contract Hire,J01374,Transport Related Expenditure ,Contract Hire and Op Leasing  ,CC69,Vehicles - Spot Hire,585.00,31/07/2016,R,E H ROBERTS                   
746,CS -Oth Operating Inc & Expend,T/A Vehicle Maintenance etc,Transport-Contract Hire,J01374,Transport Related Expenditure ,Contract Hire and Op Leasing  ,CC69,Vehicles - Spot Hire,585.00,31/07/2016,R,E H ROBERTS                   
747,CS -Oth Operating Inc & Expend,T/A Vehicle Maintenance etc,Transport-Contract Hire,J01374,Transport Related Expenditure ,Contract Hire and Op Leasing  ,CC69,Vehicles - Spot Hire,585.00,31/07/2016,R,E H ROBERTS                   
748,CS -Oth Operating Inc & Expend,T/A Vehicle Maintenance etc,Transport-Workshop,J01376,Premises Related Expenditure  ,RepairsAlterations&MtceOfBldgs,BA03,DDM - Mechanical                        ,549.64,11/08/2016,R,BILFINGER EUROPA FACILITY     
749,CS -Oth Operating Inc & Expend,T/A Vehicle Maintenance etc,Transport-Workshop,J01376,Transport Related Expenditure ,Contract Hire and Op Leasing  ,CC65,Vehicle Hire for Education              ,"2,940.00",31/07/2016,R,BARCLAYS ASSET & SALES FINANCE
750,CS -Oth Operating Inc & Expend,T/A Vehicle Maintenance etc,Transport-Workshop,J01376,Transport Related Expenditure ,Contract Hire and Op Leasing  ,CC65,Vehicle Hire for Education              ,"1,568.00",31/07/2016,R,BARCLAYS ASSET & SALES FINANCE
751,CS -Oth Operating Inc & Expend,T/A Vehicle Maintenance etc,Transport-Workshop,J01376,Transport Related Expenditure ,Contract Hire and Op Leasing  ,CC65,Vehicle Hire for Education              ,850.00,17/07/2016,R,SILVERBURN FINANCE (UK) LTD   
752,CS -Oth Operating Inc & Expend,T/A Vehicle Maintenance etc,Vehicle Workshops,J01378,Employees                     ,Direct Employee Expenses      ,AA17,Agency Staff & Casual Paymts            ,855.00,03/08/2016,R,REDACTED
753,CS -Oth Operating Inc & Expend,T/A Vehicle Maintenance etc,Vehicle Workshops,J01378,Employees                     ,Direct Employee Expenses      ,AA17,Agency Staff & Casual Paymts            ,855.00,17/08/2016,R,REDACTED
754,CS -Oth Operating Inc & Expend,T/A Vehicle Maintenance etc,Vehicle Workshops,J01378,Employees                     ,Direct Employee Expenses      ,AA17,Agency Staff & Casual Paymts            ,817.00,10/08/2016,R,REDACTED
755,CS -Oth Operating Inc & Expend,T/A Vehicle Maintenance etc,Vehicle Workshops,J01378,Employees                     ,Direct Employee Expenses      ,AA17,Agency Staff & Casual Paymts            ,684.00,27/07/2016,R,REDACTED
756,CS -Oth Operating Inc & Expend,T/A Vehicle Maintenance etc,Vehicle Workshops,J01378,Transport Related Expenditure ,Direct Transport Costs        ,CA01,Petrol Derv & Oil                       ,"2,060.00",12/08/2016,R,CBOC LUBRICANTS               
757,CS -Oth Operating Inc & Expend,T/A Vehicle Maintenance etc,Vehicle Workshops,J01378,Transport Related Expenditure ,Direct Transport Costs        ,CA02,Tyres                                   ,"6,803.99",31/07/2016,R,DIRECT TYRE MANAGEMENT LTD    
758,CS -Oth Operating Inc & Expend,T/A Vehicle Maintenance etc,Vehicle Workshops,J01378,Transport Related Expenditure ,Direct Transport Costs        ,CA02,Tyres                                   ,"4,189.21",30/06/2016,R,DIRECT TYRE MANAGEMENT LTD    
759,CS -Oth Operating Inc & Expend,T/A Vehicle Maintenance etc,Vehicle Workshops,J01378,Transport Related Expenditure ,Direct Transport Costs        ,CA02,Tyres                                   ,"1,480.00",20/07/2016,R,ASHCOM TYRES                  
760,CS -Oth Operating Inc & Expend,T/A Vehicle Maintenance etc,Vehicle Workshops,J01378,Transport Related Expenditure ,Direct Transport Costs        ,CA55,Specialist Maint. (Off Site)            ,"1,234.00",20/07/2016,R,S G SMITH                     
761,CS -Oth Operating Inc & Expend,T/A Vehicle Maintenance etc,Vehicle Workshops,J01378,Transport Related Expenditure ,Direct Transport Costs        ,CA55,Specialist Maint. (Off Site)            ,"1,084.17",01/08/2016,R,AUTOMOBILE ASSOC.DEVELOP. LTD 
762,CS -Oth Operating Inc & Expend,T/A Vehicle Maintenance etc,Vehicle Workshops,J01378,Transport Related Expenditure ,Direct Transport Costs        ,CA55,Specialist Maint. (Off Site)            ,832.42,09/08/2016,R,IVECO RETAIL LTD              
763,CS -Oth Operating Inc & Expend,T/A Vehicle Maintenance etc,Vehicle Workshops,J01378,Transport Related Expenditure ,Direct Transport Costs        ,CA55,Specialist Maint. (Off Site)            ,640.00,26/07/2016,R,AUTOSHADES LTD                
764,CS -Oth Operating Inc & Expend,T/A Vehicle Maintenance etc,Vehicle Workshops,J01378,Transport Related Expenditure ,Direct Transport Costs        ,CA55,Specialist Maint. (Off Site)            ,532.99,30/07/2016,R,FLEETSPEED COACHWORKS LTD.    
765,CS -Oth Operating Inc & Expend,T/A Vehicle Maintenance etc,Vehicle Workshops,J01378,Transport Related Expenditure ,Direct Transport Costs        ,CA56,Specialist Maint. (On Site)             ,"1,141.30",08/08/2016,R,A STUBBINGS                   
766,CS -Oth Operating Inc & Expend,T/A Vehicle Maintenance etc,Vehicle Workshops,J01378,Transport Related Expenditure ,Direct Transport Costs        ,CA56,Specialist Maint. (On Site)             ,"1,069.56",12/08/2016,R,GVS HIRE LTD                  
767,CS -Oth Operating Inc & Expend,T/A Vehicle Maintenance etc,Vehicle Workshops,J01378,Transport Related Expenditure ,Direct Transport Costs        ,CA56,Specialist Maint. (On Site)             ,653.75,12/08/2016,R,R.J.H.WELDING                 
768,CS -Oth Operating Inc & Expend,T/A Vehicle Maintenance etc,Vehicle Workshops,J01378,Transport Related Expenditure ,Direct Transport Costs        ,CA56,Specialist Maint. (On Site)             ,619.86,12/08/2016,R,IVECO RETAIL LTD              
769,CS -Oth Operating Inc & Expend,T/A Vehicle Maintenance etc,Vehicle Workshops,J01378,Transport Related Expenditure ,Direct Transport Costs        ,CA56,Specialist Maint. (On Site)             ,598.05,12/08/2016,R,R.J.H.WELDING                 
770,CS -Oth Operating Inc & Expend,T/A Vehicle Maintenance etc,Vehicle Workshops,J01378,Transport Related Expenditure ,Direct Transport Costs        ,CA56,Specialist Maint. (On Site)             ,594.00,08/08/2016,R,A STUBBINGS                   
771,CS -Oth Operating Inc & Expend,T/A Vehicle Maintenance etc,Vehicle Workshops,J01378,Transport Related Expenditure ,Direct Transport Costs        ,CA56,Specialist Maint. (On Site)             ,526.78,03/07/2016,R,JMN SOLUTIONS LTD             
772,CS -Oth Operating Inc & Expend,T/A Vehicle Maintenance etc,Vehicle Workshops,J01378,Transport Related Expenditure ,Direct Transport Costs        ,CA72,Vehicle Parts                           ,"2,369.47",11/08/2016,R,SCANIA(GREAT BRITAIN)LIMITED  
773,CS -Oth Operating Inc & Expend,T/A Vehicle Maintenance etc,Vehicle Workshops,J01378,Transport Related Expenditure ,Direct Transport Costs        ,CA72,Vehicle Parts                           ,"1,129.76",15/08/2016,R,COMMERCIAL & PLANT LTD        
774,CS -Oth Operating Inc & Expend,T/A Vehicle Maintenance etc,Vehicle Workshops,J01378,Transport Related Expenditure ,Direct Transport Costs        ,CA72,Vehicle Parts                           ,"1,078.07",10/08/2016,R,SCANIA(GREAT BRITAIN)LIMITED  
775,CS -Oth Operating Inc & Expend,T/A Vehicle Maintenance etc,Vehicle Workshops,J01378,Transport Related Expenditure ,Direct Transport Costs        ,CA72,Vehicle Parts                           ,813.20,18/08/2016,R,SIGNS EXPRESS (CROYDON)       
776,CS -Oth Operating Inc & Expend,T/A Vehicle Maintenance etc,Vehicle Workshops,J01378,Transport Related Expenditure ,Direct Transport Costs        ,CA72,Vehicle Parts                           ,800.00,26/07/2016,R,EUROCAR PARTS                 
777,CS -Oth Operating Inc & Expend,T/A Vehicle Maintenance etc,Vehicle Workshops,J01378,Transport Related Expenditure ,Direct Transport Costs        ,CA72,Vehicle Parts                           ,692.15,01/08/2016,R,SCARAB SWEEPERS LTD           
778,CS -Oth Operating Inc & Expend,T/A Vehicle Maintenance etc,Vehicle Workshops,J01378,Transport Related Expenditure ,Direct Transport Costs        ,CA72,Vehicle Parts                           ,673.50,16/08/2016,R,JOHNSTON SWEEPERS LIMITED     
779,CS -Oth Operating Inc & Expend,T/A Vehicle Maintenance etc,Vehicle Workshops,J01378,Transport Related Expenditure ,Direct Transport Costs        ,CA72,Vehicle Parts                           ,636.38,08/08/2016,R,COMMERCIAL & PLANT LTD        
780,CS -Oth Operating Inc & Expend,T/A Vehicle Maintenance etc,Vehicle Workshops,J01378,Transport Related Expenditure ,Direct Transport Costs        ,CA72,Vehicle Parts                           ,584.89,29/07/2016,R,GEESINK NORBA                 
781,CS -Oth Operating Inc & Expend,T/A Vehicle Maintenance etc,Vehicle Workshops,J01378,Transport Related Expenditure ,Direct Transport Costs        ,CA72,Vehicle Parts                           ,552.91,01/08/2016,R,COMMERCIAL & PLANT LTD        
782,CS -Oth Operating Inc & Expend,T/A Vehicle Maintenance etc,Vehicle Workshops,J01378,Supplies & Services           ,Clothing Unfrms Laundry       ,DC01,Laundry                                 ,897.20,30/07/2016,R,BERENDSEN UK LTD              
783,CS -Oth Operating Inc & Expend,T/A Vehicle Maintenance etc,Vehicle Workshops,J01378,Supplies & Services           ,Grants and Subscriptions      ,DJ04,Subscriptions                           ,595.00,04/07/2016,R,ECLIPSE AUTOMOTIVE TECHNOLOGY 
784,Cultural Env Reg&Plan Services,Mgt & Support (Env),Estates Mgt,J01420,Supplies & Services           ,Services                      ,DF11,Counsel's Fees                          ,"1,461.50",07/06/2016,R,REDACTED
785,Cultural Env Reg&Plan Services,Mgt & Support (Env),Estates Mgt,J01420,Supplies & Services           ,Services                      ,DF50,Estate Management                       ,"19,529.87",03/08/2016,R,PETER GWILLIAM & COMPANY      
786,Cultural Env Reg&Plan Services,Mgt & Support (Env),Estates Mgt,J01420,Supplies & Services           ,Services                      ,DF50,Estate Management                       ,"1,200.00",22/07/2016,R,ANDREW SCOTT ROBERTSON        
787,Cultural Env Reg&Plan Services,Mgt & Support (Env),Estates Mgt,J01420,Supplies & Services           ,Grants and Subscriptions      ,DJ04,Subscriptions                           ,"1,445.00",09/08/2016,R,CIPFA BUSINESS LTD            
788,CS -Oth Operating Inc & Expend,Extraordinary Items & PY Adj.,Housing Shops,J01533,Premises Related Expenditure  ,RepairsAlterations&MtceOfBldgs,BA05,DDM - ELECTRICAL                        ,585.08,13/07/2016,R,BILFINGER EUROPA FACILITY     
789,CS -Oth Operating Inc & Expend,Extraordinary Items & PY Adj.,Housing Shops,J01533,Premises Related Expenditure  ,RepairsAlterations&MtceOfBldgs,BA05,DDM - ELECTRICAL                        ,554.47,13/07/2016,R,BILFINGER EUROPA FACILITY     
790,CS -Oth Operating Inc & Expend,Extraordinary Items & PY Adj.,Pollards Hill Comm Cntre,J08074,Premises Related Expenditure  ,RepairsAlterations&MtceOfBldgs,BA03,DDM - Mechanical                        ,617.24,11/08/2016,R,BILFINGER EUROPA FACILITY     
791,CS -Oth Operating Inc & Expend,Extraordinary Items & PY Adj.,Pollards Hill Comm Cntre,J08074,Premises Related Expenditure  ,RepairsAlterations&MtceOfBldgs,BA05,DDM - ELECTRICAL                        ,820.37,31/03/2016,R,BILFINGER EUROPA FACILITY     
792,Childrens & Education Services,Statutory & Regulatory Duties,Central Administration,K01008,Supplies & Services           ,Services                      ,DF03,Consultants                             ,"6,600.00",06/07/2016,R,BRAY VALLEY ASSOCIATES        
793,Childrens & Education Services,Statutory & Regulatory Duties,Central Administration,K01008,Supplies & Services           ,Services                      ,DF03,Consultants                             ,"5,500.00",06/07/2016,R,BRAY VALLEY ASSOCIATES        
794,Childrens & Education Services,Statutory & Regulatory Duties,Central Administration,K01008,Supplies & Services           ,Services                      ,DF03,Consultants                             ,"1,800.00",06/07/2016,R,BRAY VALLEY ASSOCIATES        
795,Childrens & Education Services,Statutory & Regulatory Duties,Schools IT Support,K02008,Supplies & Services           ,Comms and Computing           ,DG50,Other IT Expenditure                    ,"1,025.00",05/08/2016,R,ATOMWIDE LTD                  
796,Childrens & Education Services,Statutory & Regulatory Duties,Research and Statistics,K03016,Third Party Payments          ,Private Contractors           ,EH10,Contract Payments                       ,"8,670.00",01/07/2016,R,SIGNIS GROUP                  
797,Childrens & Education Services,Asset Management,PFI Unitary Charges,K03023,Third Party Payments          ,Private Contractors           ,EH02,Miscellaneous Hired Services            ,"9,612.14",14/04/2016,R,NEWSCHOOLS (MERTON) LIMITED   
798,Childrens & Education Services,Asset Management,PFI Unitary Charges,K03023,Third Party Payments          ,Private Contractors           ,EH02,Miscellaneous Hired Services            ,649.93,19/07/2016,R,NEWSCHOOLS (MERTON) LIMITED   
799,Childrens & Education Services,Education Psychology Service,Education Psychology.,K04018,Employees                     ,Direct Employee Expenses      ,AA17,Agency Staff & Casual Paymts            ,"5,400.00",08/08/2016,R,REDACTED
800,Childrens & Education Services,Education Psychology Service,Education Psychology.,K04018,Employees                     ,Direct Employee Expenses      ,AA17,Agency Staff & Casual Paymts            ,"4,000.00",27/07/2016,R,REDACTED
801,Childrens & Education Services,Education Psychology Service,Education Psychology.,K04018,Employees                     ,Direct Employee Expenses      ,AA17,Agency Staff & Casual Paymts            ,"1,000.00",19/07/2016,R,REDACTED
802,Childrens & Education Services,Education Psychology Service,Education Psychology.,K04018,Supplies & Services           ,Comms and Computing           ,DG14,Telephones - Mobile                     ,938.00,10/08/2016,R,EVERYTHING EVERYWHERE         
803,Childrens & Education Services,Support for SEN Pupils,Statementing-Transport,K04023,Transport Related Expenditure ,Public Transport              ,CD50,Home Sch/Coll Trans(Trav Exps)          ,942.80,05/08/2016,R,CROYDON COUNCIL               
804,Childrens & Education Services,Support for SEN Pupils,Statementing-Transport,K04023,Transport Related Expenditure ,Public Transport              ,CD50,Home Sch/Coll Trans(Trav Exps)          ,730.00,05/08/2016,R,CROYDON COUNCIL               
805,Childrens & Education Services,Support for SEN Pupils,Statementing-Transport,K04023,Transport Related Expenditure ,Public Transport              ,CD50,Home Sch/Coll Trans(Trav Exps)          ,569.60,05/08/2016,R,CROYDON COUNCIL               
806,Childrens & Education Services,Support for SEN Pupils,Statementing-Transport,K04023,Transport Related Expenditure ,Public Transport              ,CD50,Home Sch/Coll Trans(Trav Exps)          ,546.80,05/08/2016,R,CROYDON COUNCIL               
807,Childrens & Education Services,Oth U5s Provn Not Prim or Spec,Provider Support,K05078,Supplies & Services           ,Comms and Computing           ,DG08,Computer Hardware                       ,"2,031.00",29/06/2016,R,SCALABLE COMMUNICATIONS PLC   
808,Childrens & Education Services,GENERATED ACCOUNT,Children's centres,K05137,Premises Related Expenditure  ,RepairsAlterations&MtceOfBldgs,BA79,Security of Premises                    ,"2,385.00",01/08/2016,R,SIGHT & SOUND                 
809,Childrens & Education Services,Nursery schools,GSSG Central Administration,K05400,Supplies & Services           ,Comms and Computing           ,DG05,Telephones - Gen-Creditors              ,"1,250.00",31/07/2016,R,NETWORK SOLUTIONS INC         
810,Childrens & Education Services,GENERATED ACCOUNT,Mitcham MAT (Premises),K05412,Premises Related Expenditure  ,RepairsAlterations&MtceOfBldgs,BA01,DDM - General Building                  ,"2,656.50",23/05/2016,R,SALTASH ENTERPRISES LTD       
811,Childrens & Education Services,GENERATED ACCOUNT,Mitcham MAT (Premises),K05412,Premises Related Expenditure  ,Cleaning and Domestic Supplies,BH03,Cleaning Services                       ,"1,564.45",01/08/2016,R,BIRKIN CLEANING SERVICES LTD  
812,Childrens & Education Services,GENERATED ACCOUNT,Morden MAT,K05413,Premises Related Expenditure  ,Cleaning and Domestic Supplies,BH03,Cleaning Services                       ,"1,312.19",01/08/2016,R,BIRKIN CLEANING SERVICES LTD  
813,Childrens & Education Services,Nursery schools,E.Years-Intergenerational Cntr,K05416,Premises Related Expenditure  ,Cleaning and Domestic Supplies,BH03,Cleaning Services                       ,911.55,01/08/2016,R,BIRKIN CLEANING SERVICES LTD  
814,Childrens & Education Services,Vocational - Adult Education,MAE-Bldgs Repairs & Maintenanc,K06048,Premises Related Expenditure  ,RepairsAlterations&MtceOfBldgs,BA03,DDM - Mechanical                        ,"1,043.72",22/08/2016,R,BILFINGER EUROPA FACILITY     
815,Childrens & Education Services,Vocational - Adult Education,AE-Adult Education Main,K06049,Supplies & Services           ,Services                      ,DF03,Consultants                             ,"3,145.10",14/07/2016,R,TCMD LTD                      
816,Childrens & Education Services,Vocational - Adult Education,AE-Adult Education Main,K06049,Supplies & Services           ,Services                      ,DF27,Examination Fees                        ,"1,400.00",15/06/2016,R,UCLES                         
817,Childrens & Education Services,Vocational - Adult Education,AE-Adult Education Main,K06049,Supplies & Services           ,Services                      ,DF30,Activities Programme                    ,"1,150.00",13/07/2016,R,ST MARKS FAMILY CENTRE        
818,Childrens & Education Services,Vocational - Adult Education,AE-Adult Education Main,K06049,Supplies & Services           ,Services                      ,DF30,Activities Programme                    ,596.25,13/07/2016,R,ST MARKS FAMILY CENTRE        
819,Childrens & Education Services,Vocational - Adult Education,AE-Adult Education Main,K06049,Supplies & Services           ,Services                      ,DF30,Activities Programme                    ,575.00,13/07/2016,R,ST MARKS FAMILY CENTRE        
820,Childrens & Education Services,Vocational - Adult Education,AE-Adult Education Main,K06049,Supplies & Services           ,Comms and Computing           ,DG05,Telephones - Gen-Creditors              ,"1,347.86",29/07/2016,R,GETRONICS UNIFIED COM (UK) LTD
821,Childrens & Education Services,Vocational - Adult Education,AE-Adult Education Main,K06049,Supplies & Services           ,Comms and Computing           ,DG08,Computer Hardware                       ,580.00,31/07/2016,R,NETWORK SOLUTIONS INC         
822,Childrens & Education Services,Vocational - Adult Education,AE-Adult Education Main,K06049,Supplies & Services           ,Grants and Subscriptions      ,DJ04,Subscriptions                           ,820.00,11/08/2016,R,ASS.OF ADULT EDUC & TRAINING  
823,Childrens & Education Services,Youth Centres (Residential),Youth Service,K06053,Supplies & Services           ,Grants and Subscriptions      ,DJ04,Subscriptions                           ,"2,200.00",10/08/2016,R,PARTNERSHIP FOR YOUNG LONDON  
824,Childrens & Education Services,Youth Centres (Residential),Leyton Rd Premises Costs.,K06054,Premises Related Expenditure  ,Cleaning and Domestic Supplies,BH03,Cleaning Services                       ,573.87,01/08/2016,R,BIRKIN CLEANING SERVICES LTD  
825,Childrens & Education Services,Pupil Support,Young Person Substance Misuse,K06114,Third Party Payments          ,Private Contractors           ,EH01,Miscellaneous Agency Services           ,"77,041.00",07/07/2016,R,CATCH 22                      
826,Childrens & Education Services,Facilitating School Improvemnt,Virtual Schools (Balance),K07109,Supplies & Services           ,Grants and Subscriptions      ,DJ01,Grants                                  ,600.00,16/08/2016,R,HELENSWOOD ACADEMY            
827,Childrens & Education Services,Asset Management,S106 Bid,K08077,Supplies & Services           ,Prntng Stnry Gen Off Exp      ,DE52,Office Removal Expenses                 ,"2,624.00",29/07/2016,R,EDE'S (U.K.) LTD              
828,Childrens & Education Services,Asset Management,S106 Bid,K08077,Supplies & Services           ,Services                      ,DF57,Consulting Engineers Fees               ,"1,905.75",22/08/2016,R,DAVID LOCK ASSOCIATES LTD     
829,Childrens & Education Services,Asset Management,Centre Commissioned Servs,K08078,Supplies & Services           ,Grants and Subscriptions      ,DJ01,Grants                                  ,"25,954.00",02/08/2016,R,MERTON MENCAP                 
830,Childrens & Education Services,Asset Management,Centre Commissioned Servs,K08078,Supplies & Services           ,Grants and Subscriptions      ,DJ01,Grants                                  ,"18,750.00",21/07/2016,R,CARERS SUPPORT MERTON         
831,Childrens & Education Services,Asset Management,Centre Commissioned Servs,K08078,Supplies & Services           ,Grants and Subscriptions      ,DJ01,Grants                                  ,"14,000.00",02/08/2016,R,MERTON MENCAP                 
832,Childrens & Education Services,Asset Management,Centre Commissioned Servs,K08078,Supplies & Services           ,Grants and Subscriptions      ,DJ01,Grants                                  ,"12,500.00",10/08/2016,R,JIGSAW4U                      
833,Childrens & Education Services,Asset Management,Centre Commissioned Servs,K08078,Supplies & Services           ,Grants and Subscriptions      ,DJ01,Grants                                  ,"12,500.00",10/08/2016,R,JIGSAW4U                      
834,Childrens & Education Services,Asset Management,Centre Commissioned Servs,K08078,Supplies & Services           ,Grants and Subscriptions      ,DJ01,Grants                                  ,"12,000.00",02/08/2016,R,MERTON MENCAP                 
835,Childrens & Education Services,Asset Management,Centre Commissioned Servs,K08078,Supplies & Services           ,Grants and Subscriptions      ,DJ01,Grants                                  ,"12,000.00",02/08/2016,R,MERTON MENCAP                 
836,Childrens & Education Services,Asset Management,Centre Commissioned Servs,K08078,Supplies & Services           ,Grants and Subscriptions      ,DJ01,Grants                                  ,"9,334.75",02/08/2016,R,MERTON MENCAP                 
837,Childrens & Education Services,Asset Management,Centre Commissioned Servs,K08078,Supplies & Services           ,Grants and Subscriptions      ,DJ01,Grants                                  ,"9,334.75",02/08/2016,R,MERTON MENCAP                 
838,Childrens & Education Services,Asset Management,Centre Commissioned Servs,K08078,Supplies & Services           ,Grants and Subscriptions      ,DJ01,Grants                                  ,"8,130.00",02/08/2016,R,MERTON MENCAP                 
839,Childrens & Education Services,Asset Management,Centre Commissioned Servs,K08078,Supplies & Services           ,Grants and Subscriptions      ,DJ01,Grants                                  ,"8,130.00",02/08/2016,R,MERTON MENCAP                 
840,Childrens & Education Services,Asset Management,Centre Commissioned Servs,K08078,Supplies & Services           ,Grants and Subscriptions      ,DJ01,Grants                                  ,"4,500.00",02/08/2016,R,MERTON MENCAP                 
841,Childrens & Education Services,Asset Management,Centre Commissioned Servs,K08078,Supplies & Services           ,Grants and Subscriptions      ,DJ01,Grants                                  ,"4,500.00",02/08/2016,R,MERTON MENCAP                 
842,Childrens & Education Services,Facilitating School Improvemnt,SSQ,K09077,Supplies & Services           ,Services                      ,DF03,Consultants                             ,"2,200.00",18/07/2016,R,J G FORREST                   
843,Childrens & Education Services,Sch Meals & Milk-Not Delegated,Free School Meals,K90002,Premises Related Expenditure  ,RepairsAlterations&MtceOfBldgs,BA01,DDM - General Building                  ,"1,763.00",08/07/2016,R,DF20 LTD                      
844,Childrens & Education Services,Sch Meals & Milk-Not Delegated,Free School Meals,K90002,Supplies & Services           ,Grants and Subscriptions      ,DJ80,Free School Meals                       ,"4,948.30",29/07/2016,R,PARENTPAY LTD                 
845,Childrens & Education Services,Ensuring Attendance At School,Behaviour Support,K90004,Third Party Payments          ,Private Contractors           ,EH01,Miscellaneous Agency Services           ,"3,799.00",26/05/2016,R,SW LONDON ST GEORGES NHS TRUST
846,Childrens & Education Services,Ensuring Attendance At School,Behaviour Support,K90004,Third Party Payments          ,Private Contractors           ,EH01,Miscellaneous Agency Services           ,"1,642.00",28/07/2016,R,SW LONDON ST GEORGES NHS TRUST
847,Childrens & Education Services,Facilitating School Improvemnt,Virtual Schools - PEA's,K90016,Supplies & Services           ,Expenses                      ,DH12,Young Peoples Expenses                  ,"1,250.00",22/07/2016,R,SOUTH THAMES COLLEGE          
848,Childrens & Education Services,Support for SEN Pupils,Non-Delegated Statements,K90024,Employees                     ,Direct Employee Expenses      ,AA17,Agency Staff & Casual Paymts            ,720.00,31/07/2016,R,REDACTED
849,Childrens & Education Services,Support for SEN Pupils,Non-Delegated Statements,K90024,Employees                     ,Direct Employee Expenses      ,AA17,Agency Staff & Casual Paymts            ,552.50,11/07/2016,R,REDACTED
850,Childrens & Education Services,Support for SEN Pupils,Non-Delegated Statements,K90024,Supplies & Services           ,Services                      ,DF09,Miscellaneous Fees                      ,"2,520.00",13/07/2016,R,JULIA TERTERYAN THERAPY LTD   
851,Childrens & Education Services,Support for SEN Pupils,Non-Delegated Statements,K90024,Supplies & Services           ,Services                      ,DF11,Counsel's Fees                          ,"3,810.55",12/07/2016,R,MISS FIONA SCOLDING           
